Workbook

Sheet Help
B3: Bitte aktivieren Sie die Makros!
B4: S'il vous plaît activez les macros!
B5: Si prega di attivare le macro!

Sheet Abrechnung
AZ1: KL3 | BA1: KL4 | BB1: KL5 | BC1: KL6 | BD1: KL7a | BE1: KL7b | BF1: KL7c | BG1: KL8temp | BK1: KL8 | BL1: KL9 | BM1: KL9a | BN1: KL9b | BO1: KL10 | BP1: KL11 | BQ1: KL11a | BR1: KL12 | BS1: KL13 | BT1: KL13a | BU1: KL14 | BV1: KL15
E2: =StammMA & " 1" -> Stammdaten MitarbeiterInnen Seite 1 | P2: =Abrechnung & " " & KAE_SWE_TEXT & " Fürstentum Liechtenstein" -> Abrechnung Kurzarbeitsentschädigung Fürstentum Liechtenstein | AI2: =t_e_titel & " " & MonatVor(StammPeriode2,0, "MMMM YYYY") -> Erhebungsbogen für die Ermittlung der saisonalen Ausfallstunden für die Abrechnungsperiode Dezember 2018
AI3: =A3 -> 0 | AP3: =I3 -> 0
A4: =Firma & ":" -> Firma: | B4: =StammFirma -> 0 | J4: =AC4 -> LUR-Nr.: | L4: =StammBURNummer -> LURNUMMER | Q4: =A4 -> Firma: | R4: =StammFirma -> 0 | AC4: =BURNr & ": " -> LUR-Nr.: | AD4: =L4 -> LURNUMMER | AO4: =t_e_titel_2 -> Dieses Formular ist nur auszufüllen, wenn das Amt für Volkwirtschaft in ihrem Entscheid bezüglich der Saisonalität einen Vorbehalt angebracht hat. Wenn das Amt für Volkwirtschaft in ihrem Entscheid bezüglich der Saisonalität einen Vorbehalt angebracht hat, müssen Sie sämtliche theoretisch bezugsberechtigte Mitarbeiter und MitarbeiterInnen auf der Abrechnung aufführen.
A5: =Adresse & ":" -> Adresse: | B5: =StammAdresse -> 0 | I5: =AC5 -> Betrieb/Betriebsabteilung: | L5: =StammBetriebsabteilung -> ABTEILUNG | Q5: =A5 -> Adresse: | R5: =B5 -> 0 | AC5: =BetriebAbteilung&": " -> Betrieb/Betriebsabteilung: | AD5: =StammBetriebsabteilung -> ABTEILUNG | AJ5: =AC5 -> Betrieb/Betriebsabteilung: | AK5: =StammFirma & IF(LEN(StammBetriebsabteilung)>0," / " & StammBetriebsabteilung,"") -> / ABTEILUNG | AP5: =#REF! -> 
A6: =PLZundOrt & ":" -> PLZ und Ort: | B6: =StammPLZOrt -> 0 | Q6: =A6 -> PLZ und Ort: | R6: =B6 -> 0 | AC6: =Karenz&": " -> Karenzzeit: | AD6: =AF14 -> 0 Tage | AJ6: =AC4 -> LUR-Nr.: | AK6: =AD4 -> LURNUMMER | AP6: =I6 -> 0 | AS6: =DatumZeit & ": " -> Datum und Zeit: | AT6: =TODAY() -> 2020-11-30 | AU6: =NOW() -> 44165.60065 | BO6: =RelativerMehrausfall*100 -> 0
A7: =SachbearbeiterIn & ":" -> Sachbearbeiter(in): | B7: =StammSachbearbeiterin -> 0 | I7: =AC7 -> Abrechnungsperiode: | L7: =MonatVor(StammPeriode2,0, "MMMM YYYY") -> Dezember 2018 | Q7: =A7 -> Sachbearbeiter(in): | R7: =B7 -> 0 | AC7: =Abrechnungsperiode&": " -> Abrechnungsperiode: | AD7: =MonatVor(StammPeriode2,0, "MMMM YYYY") -> Dezember 2018 | BO7: =RelativerMehrausfall -> 0
A8: =FonFaxMail & ":" -> Telefon / E-Mail: | B8: =StammTelefon & " / " & StammEmail -> / | J8: =AC9 -> Datum und Zeit: | L8: =NOW() -> 2020-11-30T14:24:55.960 | N8: =NOW() -> 44165.60065 | Q8: =A8 -> Telefon / E-Mail: | R8: =B8 -> / | AC8: =IF(AD8>0,BeginnEnde & ": ","") ->  | AD8: =IF(KAE_SWE=1,StammBeginnEnde,0) -> 00:00:00 | AI8: =t_e_pvorjahr & " (" & MonatVor(StammPeriode2,12, "MMMM YYYY") & "):" -> Zeitgleiche Periode des Vorjahres (Dezember 2017): | AP8: =t_e_pvorjahr2& " (" & MonatVor(StammPeriode2,24, "MMMM YYYY") & "):" -> Zeitgleiche Periode des vorletzten Jahres (Dezember 2016): | BO8: =IF(KAE_SWE=1,IF(Arbeitsausfall_in_Prozent-VP_Schnitt>0,(Arbeitsausfall_in_Prozent-VP_Schnitt*100),0),Arbeitsausfall_in_Prozent) -> 0
A9: =Zahlungsverbindung & ":" -> Zahlungsverbindung: | B9: =StammZahlungsverbindung -> IBAN Nummer | H9: =ArbeitstageJahr&": " -> Anzahl Arbeitstage im Jahr: | L9: =AnzTag -> 261 Tage | Q9: =Zahlungsverbindung & ":" -> Zahlungsverbindung: | R9: =B9 -> IBAN Nummer | AC9: =DatumZeit & ": " -> Datum und Zeit: | AD9: =TODAY() -> 2020-11-30 | AF9: =NOW() -> 44165.60065
AJ10: =R10 -> 0 | AQ10: =Y10 -> 0 | AZ10: =Q11 -> 2 | BA10: 3 | BB10: 4 | BC10: 5 | BD10: 6 | BE10: 0 | BF10: 7 (nur für Gleitzeit)
A11: Name Vorname | B11: AHV-Nummer | C11: Freies Feld, z.B. Personalnummer | D11: Geburtsdatum | E11: Grundlohn (Monatslohn oder Stundenlohn) | F11: Durch- schnittliche wöchentliche Arbeitszeit | G11: Anzahl Monatslöhne (12, 13, 13.5 etc.) oder Prozentzuschlag gem. GAV | I11: Gratifikation etc. mit vertraglichem Anspruch | J11: Ferienentschädigung in Tagen oder in Lohnprozenten | L11: Feiertagsentschädigung in Tagen oder in Lohnprozenten | N11: SWE-Zuschlag nach GAV in Prozent | O11: Anrechen- barer Stunden- verdienst | P11: 1 | Q11: 2 | R11: 3 | S11: 4 | T11: 5 | U11: 6 | W11: =B_7 -> 7 (nur für Gleitzeit) | Y11: 8 | Z11: 9 | AA11: 10 | AB11: 11 | AC11: 12 | AD11: 13 | AE11: 14 | AF11: 15 | AG11: 16 | AI11: 1 | AJ11: 2 | AK11: 3 | AL11: 4 | AM11: 5 | AN11: 6 | AP11: =AI11 -> 1 | AQ11: =AJ11 -> 2 | AR11: 3 | AS11: 4 | AT11: 5 | AU11: 6 | AZ11: =R12 -> Vertragliche wöchentl. Arbeitszeit | BA11: Sollstunden Abrechnungs- periode | BB11: Istzeit (tatsächl. Anwesenh.) | BC11: Bezahlte u. unbezahlte Absenzen | BD11: Saldo Ende Periode | BE11: 0 | BF11: Diffe- renz | BI11: Mindest- | BJ11: erreicht | BK11: =Y12 -> Ausfallstd. Kurzarbeit | BL11: Saldo Mehrstd. Vormonat | BM11: Anrechenbare | BN11: Abzuziehende | BO11: =AA12 -> Saisonale Ausfall- stunden | BP11: Anrech. Ausfall- stunden | BR11: =AC12 -> Verdienst- ausfall | BS11: KAE gemäss Art. 42 ALVG | BU11: =AF12 -> Abzug Karenzzeit | BV11: Beantragte Vergütung
C12: =B_FF1 -> Freies Feld | P12: =A11 -> Name Vorname | Q12: =O11 -> Anrechen- barer Stunden- verdienst | R12: Vertragliche wöchentl. Arbeitszeit | S12: Sollstunden Abrechnungs- periode | T12: Istzeit (tatsächl. Anwesenh.) | U12: Bezahlte u. unbezahlte Absenzen | V12: =B_7a1 -> Saldo Ende Periode | X12: Diffe- renz | Y12: =B_81 & " " & B_82 -> Ausfallstd. Kurzarbeit | Z12: =B_91 & " " & B_92 & " " & B_93 -> Saldo Mehrstd. Vormonat | AA12: =B_101 & " " & B_102 & " " & B_103 -> Saisonale Ausfall- stunden | AB12: =B_111 & " " & B_112 & " " & B_113 -> Anrech. Ausfall- stunden | AC12: =B_121 & " " & B_122 -> Verdienst- ausfall | AD12: =B_131 & " " & B_132 -> KAE gemäss Art. 42 ALVG | AE12: Anteil ALV gm. Art. 42 ALVG | AF12: =B_141 & " " & B_142 -> Abzug Karenzzeit | AG12: =B_151 & " " & B_152 -> Beantragte Vergütung | AI12: =A11 -> Name Vorname | AJ12: =R12 -> Vertragliche wöchentl. Arbeitszeit | AK12: Sollstunden | AL12: Istzeit | AM12: =U12 -> Bezahlte u. unbezahlte Absenzen | AN12: =Y12 -> Ausfallstd. Kurzarbeit | AP12: =A$11 -> Name Vorname | AQ12: Vertragliche wöchentl. Arbeitszeit | AR12: Sollstunden | AS12: Istzeit | AT12: Bezahlte u. unbezahlte Absenzen | AU12: Ausfallstd. Kurzarbeit | AZ12: 0 | BA12: 0 | BB12: 0 | BC12: 0 | BD12: vorher- gehende | BE12: laufende | BF12: 0 | BI12: ausfall | BJ12: oder | BK12: 0 | BL12: 0 | BM12: Mehrstd. | BN12: Mehrstunden f. | BO12: 0 | BP12: 0 | BR12: 0 | BS12: 0 | BU12: 0 | BV12: 0 | BX12: Zähler | BY12: Zähler Be- | BZ12: Brutto | CA12: Netto | CB12: Std pro Tag | CD12: Netto | CF12: StdLohn | CG12: Hilfs1 | CI12: SWE Zuschlag | CK12: Monatslohn | CL12: Monatslohn
C13: =B_FF2 -> z.B. | V13: vorher- gehende | W13: =B_7b2 -> laufende | AK13: =MonatVor(StammPeriode2,12, "MMMM") -> Dezember | AL13: =AK13 -> Dezember | AR13: =MonatVor(StammPeriode2,24, "MMMM") -> Dezember | AS13: =AR13 -> Dezember | AZ13: 0 | BA13: 0 | BB13: 0 | BC13: 0 | BD13: 0 | BE13: 0 | BF13: 0 | BJ13: nicht | BK13: 0 | BL13: 0 | BM13: Vormonat | BN13: Ausfallberech. | BO13: 0 | BP13: 0 | BR13: 100% | BS13: 80% | BU13: 0 Tage | BV13: KSE | BX13: Betroffene | BY13: zugsberechtigte | BZ13: Stunden | CA13: Stunden | CD13: Tage | CI13: Betrag | CL13: ungekürzt
C14: =B_FF3 -> Personalnummer | G14: Monate | H14: Prozent | J14: Tage | K14: =H14 -> Prozent | L14: =J14 -> Tage | M14: =K14 -> Prozent | AC14: =B_123 -> 100% | AD14: =B_133 -> 80% | AE14: ="60%" -> 60% | AF14: =B_143 -> 0 Tage | AG14: =B_153 -> KSE | AK14: =MonatVor(StammPeriode2,12, "YYYY") -> 2017 | AL14: =AK14 -> 2017 | AR14: =MonatVor(StammPeriode2,24, "YYYY") -> 2016 | AS14: =AR14 -> 2016 | AZ14: KL3 | BA14: KL4 | BB14: KL5 | BC14: KL6 | BD14: KL7a | BE14: KL7b | BF14: KL7c | BG14: KL8temp | BH14: Überzeit | BI14: Mindestausfall | BK14: KL8 | BL14: KL9 | BM14: KL9a | BN14: KL9b | BO14: KL10 | BP14: KL11 | BQ14: KL11a | BR14: KL12 | BS14: KL13 | BU14: KL14 | BV14: KL15 | BX14: Mitarbeiter | BY14: Mitarbeiter | BZ14: BrStd | CA14: NetStd | CB14: StdTg | CD14: NetTg | CF14: Resultat | CG14: nichtgekürzt | CI14: SWEZuschlagBetrag | CK14: Resultat | CL14: LohnMonat
H15: 0 | J15: 0 | K15: 0 | L15: 0 | M15: 0 | O15: =Q15 -> 0 | P15: =A15 -> 0 | Q15: =ROUND(IF(AnzMonJahr > 11,IF(Lohn > 100,MonLohn,StdLohn),0),2) -> 0 | X15: =KL7c -> 0 | Y15: =_KL8 -> 0 | Z15: 0 | AA15: =_KL10 -> 0 | AB15: =KL11a -> 0 | AC15: =_KL12 -> 0 | AD15: =_KL13 -> 0 | AE15: =BT15 -> 0 | AF15: =_KL14 -> 0 | AG15: =_KL15 -> 0 | AI15: =A15 -> 0 | AM15: 0 | AN15: =AK15-AL15-AM15 -> 0 | AP15: 0 | AT15: 0 | AU15: =AR15-AS15-AT15 -> 0 | AZ15: =R15 -> 0 | BA15: 0 | BB15: 0 | BC15: 0 | BD15: 0 | BE15: 0 | BF15: =KL7a-KL7b -> 0 | BG15: =ROUND(SUM(_KL4-_KL5-_KL6-KL7c),2) -> 0 | BH15: =IF(KL8temp<0,KL8temp,0) -> 0 | BI15: =_KL3 / 5 * StammMindestausfall -> 0 | BJ15: =IF(KL8temp < Mindestausfall,"nein","ja") -> ja | BK15: =ROUND(IF(KL8temp>0,KL8temp,0),2) -> 0 | BL15: =Z15 -> 0 | BM15: =IF(_KL9>_KL10,_KL9-_KL10,0) -> 0 | BN15: =IF(_KL8-_KL9>0,_KL8-_KL9,0) -> 0 | BO15: =_KL8-_KL11 -> 0 | BP15: =IF(Arbeitsausfall_in_Prozent>0,IF(_KL8>0,ROUND(_KL8/Arbeitsausfall_in_Prozent*RelativerMehrausfall,2),0),0) -> 0 | BQ15: =_KL11-KL9a+Überzeit -> 0 | BR15: =IF(KL8temp < Mindestausfall,IF(KL11a>0,0,0),IF(KL11a<=0,0,ROUND(_KL2*KL11a,2))) -> 0 | BS15: =IF(MindestausfallJaNein="ja",ROUND(K_12*StammAnspruch_in_Prozent/100,2),0) -> 0 | BT15: =IF(MindestausfallJaNein="ja",ROUND(K_12*Entsch_Liechtenstein_in_Prozent/100,2),0) -> 0 | BU15: =IF(MindestausfallJaNein="ja",ROUND(IF(KL11a>0,_KL3/5*_KL2*KZ_V*Entsch_Liechtenstein_in_Prozent/100,0),2),0) -> 0 | BV15: =IF(KL13a-_KL14>=0,ROUND(SUM(KL13a-_KL14)*20,0)/20,0) -> 0 | BX15: =IF(K_15<>0,1,0) -> 0 | BY15: =IF(SollStd<>0,1,0) -> 0 | BZ15: =StdTg*StammJahrestage -> 0 | CA15: =(StdTg*StammJahrestage)-(StdTg*(Fer+Fei)) -> 0 | CB15: =StdWo/5 -> 0 | CD15: =StammJahrestage-Fer-Fei -> 261 | CF15: =IF(Hilfs1 * NetStd/12 > StammVV,StammVV / (NetStd /12 ), Hilfs1) ->  | CG15: =(Lohn + SWEZuschlagBetrag) + ((Lohn + SWEZuschlagBetrag) * ((StammJahrestage /12 * AnzMonJahr) - NetTg) * 100 / NetTg)/100 + Grati/NetStd ->  | CI15: =Lohn * SWEZuschlag -> 0 | CK15: =IF(LohnMon > StammVV,StammVV/(NetStd/12),LohnMon/(NetStd/12)) ->  | CL15: =((Lohn + SWEZuschlagBetrag)*AnzMonJahr/12)+Grati/12 -> 0
O16: =Q16 -> 0 | P16: =A16 -> 0 | Q16: 0 | X16: 0 | Y16: 0 | AA16: 0 | AB16: 0 | AC16: 0 | AD16: 0 | AE16: =BT16 -> 0 | AF16: 0 | AG16: 0 | AI16: 0 | AN16: =AK16-AL16-AM16 -> 0 | AP16: 0 | AU16: =AR16-AS16-AT16 -> 0 | AZ16: =R16 -> 0 | BA16: =S16 -> 0 | BB16: =T16 -> 0 | BC16: =U16 -> 0 | BD16: =V16 -> 0 | BE16: =W16 -> 0 | BF16: 0 | BG16: 0 | BH16: 0 | BI16: 0 | BJ16: ja | BK16: 0 | BL16: =Z16 -> 0 | BM16: 0 | BN16: 0 | BO16: 0 | BP16: 0 | BQ16: 0 | BR16: 0 | BS16: 0 | BT16: 0 | BU16: 0 | BV16: 0 | BX16: 0 | BY16: 0 | BZ16: 0 | CA16: 0 | CB16: 0 | CD16: 261 | CI16: 0 | CL16: 0
H17: 0 | J17: 0 | K17: 0 | L17: 0 | M17: 0 | O17: =Q17 -> 0 | P17: =A17 -> 0 | Q17: 0 | X17: 0 | Y17: 0 | AA17: 0 | AB17: 0 | AC17: 0 | AD17: 0 | AE17: 0 | AF17: 0 | AG17: 0 | AI17: 0 | AN17: 0 | AP17: =AI17 -> 0 | AU17: 0 | AZ17: 0 | BA17: 0 | BB17: 0 | BC17: 0 | BD17: 0 | BE17: 0 | BF17: 0 | BG17: 0 | BH17: 0 | BI17: 0 | BJ17: ja | BK17: 0 | BL17: 0 | BM17: 0 | BN17: 0 | BO17: 0 | BP17: 0 | BQ17: 0 | BR17: 0 | BS17: 0 | BT17: 0 | BU17: 0 | BV17: 0 | BX17: 0 | BY17: 0 | BZ17: 0 | CA17: 0 | CB17: 0 | CD17: 261 | CI17: 0 | CL17: 0
O18: 0 | P18: =A18 -> 0 | Q18: 0 | X18: 0 | Y18: 0 | AA18: 0 | AB18: 0 | AC18: 0 | AD18: 0 | AE18: 0 | AF18: 0 | AG18: 0 | AI18: 0 | AN18: 0 | AP18: 0 | AU18: 0 | AZ18: 0 | BA18: 0 | BB18: 0 | BC18: 0 | BD18: 0 | BE18: 0 | BF18: 0 | BG18: 0 | BH18: 0 | BI18: 0 | BJ18: ja | BK18: 0 | BL18: 0 | BM18: 0 | BN18: 0 | BO18: 0 | BP18: 0 | BQ18: 0 | BR18: 0 | BS18: 0 | BT18: 0 | BU18: 0 | BV18: 0 | BX18: 0 | BY18: 0 | BZ18: 0 | CA18: 0 | CB18: 0 | CD18: 261 | CI18: 0 | CL18: 0
O19: 0 | P19: =A19 -> 0 | Q19: 0 | X19: 0 | Y19: 0 | AA19: 0 | AB19: 0 | AC19: 0 | AD19: 0 | AE19: 0 | AF19: 0 | AG19: 0 | AI19: 0 | AN19: 0 | AP19: 0 | AU19: 0 | AZ19: 0 | BA19: 0 | BB19: 0 | BC19: 0 | BD19: 0 | BE19: 0 | BF19: 0 | BG19: 0 | BH19: 0 | BI19: 0 | BJ19: ja | BK19: 0 | BL19: 0 | BM19: 0 | BN19: 0 | BO19: 0 | BP19: 0 | BQ19: 0 | BR19: 0 | BS19: 0 | BT19: 0 | BU19: 0 | BV19: 0 | BX19: 0 | BY19: 0 | BZ19: 0 | CA19: 0 | CB19: 0 | CD19: 261 | CI19: 0 | CL19: 0
O20: 0 | P20: =A20 -> 0 | Q20: 0 | X20: 0 | Y20: 0 | AA20: 0 | AB20: 0 | AC20: 0 | AD20: 0 | AE20: 0 | AF20: 0 | AG20: 0 | AI20: 0 | AN20: 0 | AP20: 0 | AU20: 0 | AZ20: 0 | BA20: 0 | BB20: 0 | BC20: 0 | BD20: 0 | BE20: 0 | BF20: 0 | BG20: 0 | BH20: 0 | BI20: 0 | BJ20: ja | BK20: 0 | BL20: 0 | BM20: 0 | BN20: 0 | BO20: 0 | BP20: 0 | BQ20: 0 | BR20: 0 | BS20: 0 | BT20: 0 | BU20: 0 | BV20: 0 | BX20: 0 | BY20: 0 | BZ20: 0 | CA20: 0 | CB20: 0 | CD20: 261 | CI20: 0 | CL20: 0
O21: 0 | P21: 0 | Q21: 0 | X21: 0 | Y21: 0 | AA21: 0 | AB21: 0 | AC21: 0 | AD21: 0 | AE21: 0 | AF21: 0 | AG21: 0 | AI21: 0 | AN21: 0 | AP21: 0 | AQ21: 0 | AU21: 0 | AZ21: 0 | BA21: 0 | BB21: 0 | BC21: 0 | BD21: 0 | BE21: 0 | BF21: 0 | BG21: 0 | BH21: 0 | BI21: 0 | BJ21: ja | BK21: 0 | BL21: 0 | BM21: 0 | BN21: 0 | BO21: 0 | BP21: 0 | BQ21: 0 | BR21: 0 | BS21: 0 | BT21: 0 | BU21: 0 | BV21: 0 | BX21: 0 | BY21: 0 | BZ21: 0 | CA21: 0 | CB21: 0 | CD21: 261 | CI21: 0 | CL21: 0
O22: 0 | P22: 0 | Q22: 0 | X22: 0 | Y22: 0 | AA22: 0 | AB22: 0 | AC22: 0 | AD22: 0 | AE22: 0 | AF22: 0 | AG22: 0 | AI22: 0 | AN22: 0 | AP22: 0 | AU22: 0 | AZ22: 0 | BA22: 0 | BB22: 0 | BC22: 0 | BD22: 0 | BE22: 0 | BF22: 0 | BG22: 0 | BH22: 0 | BI22: 0 | BJ22: ja | BK22: 0 | BL22: 0 | BM22: 0 | BN22: 0 | BO22: 0 | BP22: 0 | BQ22: 0 | BR22: 0 | BS22: 0 | BT22: 0 | BU22: 0 | BV22: 0 | BX22: 0 | BY22: 0 | BZ22: 0 | CA22: 0 | CB22: 0 | CD22: 261 | CI22: 0 | CL22: 0
O23: 0 | P23: 0 | Q23: 0 | X23: 0 | Y23: 0 | AA23: 0 | AB23: 0 | AC23: 0 | AD23: 0 | AE23: 0 | AF23: 0 | AG23: 0 | AI23: 0 | AN23: 0 | AP23: 0 | AU23: 0 | AZ23: 0 | BA23: 0 | BB23: 0 | BC23: 0 | BD23: 0 | BE23: 0 | BF23: 0 | BG23: 0 | BH23: 0 | BI23: 0 | BJ23: ja | BK23: 0 | BL23: 0 | BM23: 0 | BN23: 0 | BO23: 0 | BP23: 0 | BQ23: 0 | BR23: 0 | BS23: 0 | BT23: 0 | BU23: 0 | BV23: 0 | BX23: 0 | BY23: 0 | BZ23: 0 | CA23: 0 | CB23: 0 | CD23: 261 | CI23: 0 | CL23: 0
O24: 0 | P24: 0 | Q24: 0 | X24: 0 | Y24: 0 | AA24: 0 | AB24: 0 | AC24: 0 | AD24: 0 | AE24: 0 | AF24: 0 | AG24: 0 | AI24: 0 | AN24: 0 | AP24: 0 | AU24: 0 | AZ24: 0 | BA24: 0 | BB24: 0 | BC24: 0 | BD24: 0 | BE24: 0 | BF24: 0 | BG24: 0 | BH24: 0 | BI24: 0 | BJ24: ja | BK24: 0 | BL24: 0 | BM24: 0 | BN24: 0 | BO24: 0 | BP24: 0 | BQ24: 0 | BR24: 0 | BS24: 0 | BT24: 0 | BU24: 0 | BV24: 0 | BX24: 0 | BY24: 0 | BZ24: 0 | CA24: 0 | CB24: 0 | CD24: 261 | CI24: 0 | CL24: 0
O25: 0 | P25: 0 | Q25: 0 | X25: 0 | Y25: 0 | AA25: 0 | AB25: 0 | AC25: 0 | AD25: 0 | AE25: 0 | AF25: 0 | AG25: 0 | AI25: 0 | AN25: 0 | AP25: 0 | AU25: 0 | AZ25: 0 | BA25: 0 | BB25: 0 | BC25: 0 | BD25: 0 | BE25: 0 | BF25: 0 | BG25: 0 | BH25: 0 | BI25: 0 | BJ25: ja | BK25: 0 | BL25: 0 | BM25: 0 | BN25: 0 | BO25: 0 | BP25: 0 | BQ25: 0 | BR25: 0 | BS25: 0 | BT25: 0 | BU25: 0 | BV25: 0 | BX25: 0 | BY25: 0 | BZ25: 0 | CA25: 0 | CB25: 0 | CD25: 261 | CI25: 0 | CL25: 0
O26: 0 | P26: 0 | Q26: 0 | X26: 0 | Y26: 0 | AA26: 0 | AB26: 0 | AC26: 0 | AD26: 0 | AE26: 0 | AF26: 0 | AG26: 0 | AI26: 0 | AN26: 0 | AP26: 0 | AU26: 0 | AZ26: 0 | BA26: 0 | BB26: 0 | BC26: 0 | BD26: 0 | BE26: 0 | BF26: 0 | BG26: 0 | BH26: 0 | BI26: 0 | BJ26: ja | BK26: 0 | BL26: 0 | BM26: 0 | BN26: 0 | BO26: 0 | BP26: 0 | BQ26: 0 | BR26: 0 | BS26: 0 | BT26: 0 | BU26: 0 | BV26: 0 | BX26: 0 | BY26: 0 | BZ26: 0 | CA26: 0 | CB26: 0 | CD26: 261 | CI26: 0 | CL26: 0
O27: 0 | P27: 0 | Q27: 0 | X27: 0 | Y27: 0 | AA27: 0 | AB27: 0 | AC27: 0 | AD27: 0 | AE27: 0 | AF27: 0 | AG27: 0 | AI27: 0 | AN27: 0 | AP27: 0 | AU27: 0 | AZ27: 0 | BA27: 0 | BB27: 0 | BC27: 0 | BD27: 0 | BE27: 0 | BF27: 0 | BG27: 0 | BH27: 0 | BI27: 0 | BJ27: ja | BK27: 0 | BL27: 0 | BM27: 0 | BN27: 0 | BO27: 0 | BP27: 0 | BQ27: 0 | BR27: 0 | BS27: 0 | BT27: 0 | BU27: 0 | BV27: 0 | BX27: 0 | BY27: 0 | BZ27: 0 | CA27: 0 | CB27: 0 | CD27: 261 | CI27: 0 | CL27: 0
O28: 0 | P28: =A28 -> 0 | Q28: 0 | X28: 0 | Y28: 0 | AA28: 0 | AB28: 0 | AC28: 0 | AD28: 0 | AE28: 0 | AF28: 0 | AG28: 0 | AI28: 0 | AN28: 0 | AP28: 0 | AU28: 0 | AZ28: 0 | BA28: 0 | BB28: 0 | BC28: 0 | BD28: 0 | BE28: 0 | BF28: 0 | BG28: 0 | BH28: 0 | BI28: 0 | BJ28: ja | BK28: 0 | BL28: 0 | BM28: 0 | BN28: 0 | BO28: 0 | BP28: 0 | BQ28: 0 | BR28: 0 | BS28: 0 | BT28: 0 | BU28: 0 | BV28: 0 | BX28: 0 | BY28: 0 | BZ28: 0 | CA28: 0 | CB28: 0 | CD28: 261 | CI28: 0 | CL28: 0
O29: 0 | P29: 0 | Q29: 0 | X29: 0 | Y29: 0 | AA29: 0 | AB29: 0 | AC29: 0 | AD29: 0 | AE29: 0 | AF29: 0 | AG29: 0 | AI29: 0 | AN29: 0 | AP29: 0 | AU29: 0 | AZ29: 0 | BA29: 0 | BB29: 0 | BC29: 0 | BD29: 0 | BE29: 0 | BF29: 0 | BG29: 0 | BH29: 0 | BI29: 0 | BJ29: ja | BK29: 0 | BL29: 0 | BM29: 0 | BN29: 0 | BO29: 0 | BP29: 0 | BQ29: 0 | BR29: 0 | BS29: 0 | BT29: 0 | BU29: 0 | BV29: 0 | BX29: 0 | BY29: 0 | BZ29: 0 | CA29: 0 | CB29: 0 | CD29: 261 | CI29: 0 | CL29: 0
O30: 0 | P30: 0 | Q30: 0 | X30: 0 | Y30: 0 | AA30: 0 | AB30: 0 | AC30: 0 | AD30: 0 | AE30: 0 | AF30: 0 | AG30: 0 | AI30: 0 | AN30: 0 | AP30: 0 | AU30: 0 | AZ30: 0 | BA30: 0 | BB30: 0 | BC30: 0 | BD30: 0 | BE30: 0 | BF30: 0 | BG30: 0 | BH30: 0 | BI30: 0 | BJ30: ja | BK30: 0 | BL30: 0 | BM30: 0 | BN30: 0 | BO30: 0 | BP30: 0 | BQ30: 0 | BR30: 0 | BS30: 0 | BT30: 0 | BU30: 0 | BV30: 0 | BX30: 0 | BY30: 0 | BZ30: 0 | CA30: 0 | CB30: 0 | CD30: 261 | CI30: 0 | CL30: 0
O31: 0 | P31: 0 | Q31: 0 | X31: 0 | Y31: 0 | AA31: 0 | AB31: 0 | AC31: 0 | AD31: 0 | AE31: 0 | AF31: 0 | AG31: 0 | AI31: 0 | AN31: 0 | AP31: 0 | AU31: 0 | AZ31: 0 | BA31: 0 | BB31: 0 | BC31: 0 | BD31: 0 | BE31: 0 | BF31: 0 | BG31: 0 | BH31: 0 | BI31: 0 | BJ31: ja | BK31: 0 | BL31: 0 | BM31: 0 | BN31: 0 | BO31: 0 | BP31: 0 | BQ31: 0 | BR31: 0 | BS31: 0 | BT31: 0 | BU31: 0 | BV31: 0 | BX31: 0 | BY31: 0 | BZ31: 0 | CA31: 0 | CB31: 0 | CD31: 261 | CI31: 0 | CL31: 0
O32: 0 | P32: 0 | Q32: 0 | X32: 0 | Y32: 0 | AA32: 0 | AB32: 0 | AC32: 0 | AD32: 0 | AE32: 0 | AF32: 0 | AG32: 0 | AI32: 0 | AN32: 0 | AP32: 0 | AU32: 0 | AZ32: 0 | BA32: 0 | BB32: 0 | BC32: 0 | BD32: 0 | BE32: 0 | BF32: 0 | BG32: 0 | BH32: 0 | BI32: 0 | BJ32: ja | BK32: 0 | BL32: 0 | BM32: 0 | BN32: 0 | BO32: 0 | BP32: 0 | BQ32: 0 | BR32: 0 | BS32: 0 | BT32: 0 | BU32: 0 | BV32: 0 | BX32: 0 | BY32: 0 | BZ32: 0 | CA32: 0 | CB32: 0 | CD32: 261 | CI32: 0 | CL32: 0
O33: 0 | P33: 0 | Q33: 0 | X33: 0 | Y33: 0 | AA33: 0 | AB33: 0 | AC33: 0 | AD33: 0 | AE33: 0 | AF33: 0 | AG33: 0 | AI33: 0 | AN33: 0 | AP33: 0 | AU33: 0 | AZ33: 0 | BA33: 0 | BB33: 0 | BC33: 0 | BD33: 0 | BE33: 0 | BF33: 0 | BG33: 0 | BH33: 0 | BI33: 0 | BJ33: ja | BK33: 0 | BL33: 0 | BM33: 0 | BN33: 0 | BO33: 0 | BP33: 0 | BQ33: 0 | BR33: 0 | BS33: 0 | BT33: 0 | BU33: 0 | BV33: 0 | BX33: 0 | BY33: 0 | BZ33: 0 | CA33: 0 | CB33: 0 | CD33: 261 | CI33: 0 | CL33: 0
O34: =Q34 -> 0 | P34: 0 | Q34: 0 | X34: 0 | Y34: 0 | AA34: 0 | AB34: 0 | AC34: 0 | AD34: 0 | AE34: 0 | AF34: 0 | AG34: 0 | AI34: 0 | AN34: 0 | AP34: 0 | AU34: 0 | AZ34: 0 | BA34: 0 | BB34: 0 | BC34: 0 | BD34: 0 | BE34: 0 | BF34: 0 | BG34: 0 | BH34: 0 | BI34: 0 | BJ34: ja | BK34: 0 | BL34: 0 | BM34: 0 | BN34: 0 | BO34: 0 | BP34: 0 | BQ34: 0 | BR34: 0 | BS34: 0 | BT34: 0 | BU34: 0 | BV34: 0 | BX34: 0 | BY34: 0 | BZ34: 0 | CA34: 0 | CB34: 0 | CD34: 261 | CI34: 0 | CL34: 0
O35: 0 | P35: 0 | Q35: 0 | X35: 0 | Y35: 0 | AA35: 0 | AB35: 0 | AC35: 0 | AD35: 0 | AE35: 0 | AF35: 0 | AG35: 0 | AI35: 0 | AN35: 0 | AP35: 0 | AU35: 0 | AZ35: 0 | BA35: 0 | BB35: 0 | BC35: 0 | BD35: 0 | BE35: 0 | BF35: 0 | BG35: 0 | BH35: 0 | BI35: 0 | BJ35: ja | BK35: 0 | BL35: 0 | BM35: 0 | BN35: 0 | BO35: 0 | BP35: 0 | BQ35: 0 | BR35: 0 | BS35: 0 | BT35: 0 | BU35: 0 | BV35: 0 | BX35: 0 | BY35: 0 | BZ35: 0 | CA35: 0 | CB35: 0 | CD35: 261 | CI35: 0 | CL35: 0
O36: 0 | P36: 0 | Q36: 0 | X36: 0 | Y36: 0 | AA36: 0 | AB36: 0 | AC36: 0 | AD36: 0 | AE36: 0 | AF36: 0 | AG36: 0 | AI36: 0 | AN36: 0 | AP36: 0 | AU36: 0 | AZ36: 0 | BA36: 0 | BB36: 0 | BC36: 0 | BD36: 0 | BE36: 0 | BF36: 0 | BG36: 0 | BH36: 0 | BI36: 0 | BJ36: ja | BK36: 0 | BL36: 0 | BM36: 0 | BN36: 0 | BO36: 0 | BP36: 0 | BQ36: 0 | BR36: 0 | BS36: 0 | BT36: 0 | BU36: 0 | BV36: 0 | BX36: 0 | BY36: 0 | BZ36: 0 | CA36: 0 | CB36: 0 | CD36: 261 | CI36: 0 | CL36: 0
O37: 0 | P37: 0 | Q37: 0 | X37: 0 | Y37: 0 | AA37: 0 | AB37: 0 | AC37: 0 | AD37: 0 | AE37: 0 | AF37: 0 | AG37: 0 | AI37: 0 | AN37: 0 | AP37: 0 | AU37: 0 | AZ37: 0 | BA37: 0 | BB37: 0 | BC37: 0 | BD37: 0 | BE37: 0 | BF37: 0 | BG37: 0 | BH37: 0 | BI37: 0 | BJ37: ja | BK37: 0 | BL37: 0 | BM37: 0 | BN37: 0 | BO37: 0 | BP37: 0 | BQ37: 0 | BR37: 0 | BS37: 0 | BT37: 0 | BU37: 0 | BV37: 0 | BX37: 0 | BY37: 0 | BZ37: 0 | CA37: 0 | CB37: 0 | CD37: 261 | CI37: 0 | CL37: 0
O38: 0 | P38: 0 | Q38: 0 | X38: 0 | Y38: 0 | AA38: 0 | AB38: 0 | AC38: 0 | AD38: 0 | AE38: 0 | AF38: 0 | AG38: 0 | AI38: 0 | AN38: 0 | AP38: 0 | AU38: 0 | AZ38: 0 | BA38: 0 | BB38: 0 | BC38: 0 | BD38: 0 | BE38: 0 | BF38: 0 | BG38: 0 | BH38: 0 | BI38: 0 | BJ38: ja | BK38: 0 | BL38: 0 | BM38: 0 | BN38: 0 | BO38: 0 | BP38: 0 | BQ38: 0 | BR38: 0 | BS38: 0 | BT38: 0 | BU38: 0 | BV38: 0 | BX38: 0 | BY38: 0 | BZ38: 0 | CA38: 0 | CB38: 0 | CD38: 261 | CI38: 0 | CL38: 0
O39: 0 | P39: 0 | Q39: 0 | X39: 0 | Y39: 0 | AA39: 0 | AB39: 0 | AC39: 0 | AD39: 0 | AE39: 0 | AF39: 0 | AG39: 0 | AI39: 0 | AN39: 0 | AP39: 0 | AU39: 0 | AZ39: 0 | BA39: 0 | BB39: 0 | BC39: 0 | BD39: 0 | BE39: 0 | BF39: 0 | BG39: 0 | BH39: 0 | BI39: 0 | BJ39: ja | BK39: 0 | BL39: 0 | BM39: 0 | BN39: 0 | BO39: 0 | BP39: 0 | BQ39: 0 | BR39: 0 | BS39: 0 | BT39: 0 | BU39: 0 | BV39: 0 | BX39: 0 | BY39: 0 | BZ39: 0 | CA39: 0 | CB39: 0 | CD39: 261 | CI39: 0 | CL39: 0
O40: 0 | P40: 0 | Q40: 0 | X40: 0 | Y40: 0 | AA40: 0 | AB40: 0 | AC40: 0 | AD40: 0 | AE40: 0 | AF40: 0 | AG40: 0 | AI40: 0 | AN40: 0 | AP40: 0 | AU40: 0 | AZ40: 0 | BA40: 0 | BB40: 0 | BC40: 0 | BD40: 0 | BE40: 0 | BF40: 0 | BG40: 0 | BH40: 0 | BI40: 0 | BJ40: ja | BK40: 0 | BL40: 0 | BM40: 0 | BN40: 0 | BO40: 0 | BP40: 0 | BQ40: 0 | BR40: 0 | BS40: 0 | BT40: 0 | BU40: 0 | BV40: 0 | BX40: 0 | BY40: 0 | BZ40: 0 | CA40: 0 | CB40: 0 | CD40: 261 | CI40: 0 | CL40: 0
O41: 0 | P41: 0 | Q41: 0 | X41: 0 | Y41: 0 | AA41: 0 | AB41: 0 | AC41: 0 | AD41: =_KL13 -> 0 | AE41: 0 | AF41: 0 | AG41: 0 | AI41: 0 | AN41: 0 | AP41: 0 | AU41: 0 | AZ41: 0 | BA41: 0 | BB41: 0 | BC41: 0 | BD41: 0 | BE41: 0 | BF41: 0 | BG41: 0 | BH41: 0 | BI41: 0 | BJ41: ja | BK41: 0 | BL41: 0 | BM41: 0 | BN41: 0 | BO41: 0 | BP41: 0 | BQ41: 0 | BR41: 0 | BS41: 0 | BT41: 0 | BU41: 0 | BV41: 0 | BX41: 0 | BY41: 0 | BZ41: 0 | CA41: 0 | CB41: 0 | CD41: 261 | CI41: 0 | CL41: 0
P42: =übertrag -> Übertrag | S42: =SUM(S15:S41) -> 0 | U42: =SUM(U15:U41) -> 0 | Y42: =SUM(Y15:Y41) -> 0 | AC42: =SUM(AC15:AC41) -> 0 | AG42: =SUM(AG15:AG41) -> 0 | AI42: =P42 -> Übertrag | AK42: =SUM(AK15:AK41) -> 0 | AM42: =SUM(AM15:AM41) -> 0 | AN42: =SUM(AN15:AN41) -> 0 | AP42: Übertrag | AR42: =SUM(AR15:AR41) -> 0 | AT42: =SUM(AT15:AT41) -> 0 | AU42: =SUM(AU15:AU41) -> 0
E43: =StammMA & " 2" -> Stammdaten MitarbeiterInnen Seite 2 | W43: =Abrechnung & " " & KAE_SWE_TEXT & ", " & Seite & " 2, " & MonatVor(StammPeriode2,0, "MMMM YYYY") -> Abrechnung Kurzarbeitsentschädigung, Seite 2, Dezember 2018 | AI43: =E43 -> Stammdaten MitarbeiterInnen Seite 2 | AO43: ="Erhebungsbogen Saisonalität"&" - "& MonatVor(StammPeriode2,0, "MMMM YYYY") & " - "&AK5 -> Erhebungsbogen Saisonalität - Dezember 2018 - / ABTEILUNG | AT43: =AT6 -> 2020-11-30 | AU43: =AU6 -> 44165.60065
A44: =A$11 -> Name Vorname | B44: AHV-Nummer | C44: Freies Feld, z.B. Personalnummer | D44: Geburtsdatum | E44: Grundlohn (Monatslohn oder Stundenlohn) | F44: Durch- schnittliche wöchentliche Arbeitszeit | G44: =G$11 -> Anzahl Monatslöhne (12, 13, 13.5 etc.) oder Prozentzuschlag gem. GAV | I44: =I$11 -> Gratifikation etc. mit vertraglichem Anspruch | J44: Ferienentschädigung in Tagen oder in Lohnprozenten | L44: =L$11 -> Feiertagsentschädigung in Tagen oder in Lohnprozenten | N44: =N$11 -> SWE-Zuschlag nach GAV in Prozent | O44: Anrechen- barer Stunden- verdienst | P44: =P$11 -> 1 | Q44: =Q$11 -> 2 | R44: =R$11 -> 3 | S44: =S$11 -> 4 | T44: 5 | U44: 6 | W44: =W$11 -> 7 (nur für Gleitzeit) | Y44: =Y$11 -> 8 | Z44: =Z$11 -> 9 | AA44: =AA$11 -> 10 | AB44: =AB$11 -> 11 | AC44: 12 | AD44: 13 | AE44: 14 | AF44: 15 | AG44: 16 | AI44: =AI$11 -> 1 | AJ44: =AJ$11 -> 2 | AK44: 3 | AL44: 4 | AM44: 5 | AN44: 6 | AP44: =AI$44 -> 1 | AQ44: =AJ$44 -> 2 | AR44: =AK$44 -> 3 | AS44: 4 | AT44: 5 | AU44: 6 | AZ44: =R45 -> Vertragliche wöchentl. Arbeitszeit | BA44: Sollstunden Abrechnungs- periode | BB44: Istzeit (tatsächl. Anwesenh.) | BC44: Bezahlte u. unbezahlte Absenzen | BD44: Saldo Ende Periode | BE44: 0 | BF44: Diffe- renz | BK44: =Y45 -> Ausfallstd. Kurzarbeit | BL44: Saldo Mehrstd. Vormonat | BM44: Anrechenbare | BN44: Abzuziehende | BO44: =AA45 -> Saisonale Ausfall- stunden | BP44: Anrech. Ausfall- stunden | BR44: =AC45 -> Verdienst- ausfall | BS44: KAE gemäss Art. 42 ALVG | BU44: =AF45 -> Abzug Karenzzeit | BV44: Beantragte Vergütung
A45: =A$11 -> Name Vorname | B45: =B$12 -> 0 | C45: =B_FF1 -> Freies Feld | D45: =D$11 -> Geburtsdatum | E45: =E$11 -> Grundlohn (Monatslohn oder Stundenlohn) | F45: =F$11 -> Durch- schnittliche wöchentliche Arbeitszeit | G45: =G$12 -> 0 | I45: =I$11 -> Gratifikation etc. mit vertraglichem Anspruch | J45: 0 | L45: =#REF! ->  | O45: 0 | P45: =P$12 -> Name Vorname | Q45: =Q$12 -> Anrechen- barer Stunden- verdienst | R45: =R$12 -> Vertragliche wöchentl. Arbeitszeit | S45: =S$12 -> Sollstunden Abrechnungs- periode | T45: Istzeit (tatsächl. Anwesenh.) | U45: Bezahlte u. unbezahlte Absenzen | V45: =V$12 -> Saldo Ende Periode | X45: =X$12 -> Diffe- renz | Y45: Ausfallstd. Kurzarbeit | Z45: Saldo Mehrstd. Vormonat | AA45: Saisonale Ausfall- stunden | AB45: Anrech. Ausfall- stunden | AC45: Verdienst- ausfall | AD45: =AD$12 -> KAE gemäss Art. 42 ALVG | AE45: Anteil ALV gm. Art. 42 ALVG | AF45: Abzug Karenzzeit | AG45: =AG$12 -> Beantragte Vergütung | AI45: =AI$12 -> Name Vorname | AJ45: =R$45 -> Vertragliche wöchentl. Arbeitszeit | AK45: Sollstunden | AL45: Istzeit | AM45: =AM$12 -> Bezahlte u. unbezahlte Absenzen | AN45: =AN$12 -> Ausfallstd. Kurzarbeit | AP45: =AP$12 -> Name Vorname | AQ45: =AJ$45 -> Vertragliche wöchentl. Arbeitszeit | AR45: =AR$12 -> Sollstunden | AS45: =AS$12 -> Istzeit | AT45: =AT$12 -> Bezahlte u. unbezahlte Absenzen | AU45: =AU$12 -> Ausfallstd. Kurzarbeit | AZ45: 0 | BA45: 0 | BB45: 0 | BC45: 0 | BD45: vorher- gehende | BE45: laufende | BF45: 0 | BK45: 0 | BL45: 0 | BM45: Mehrstd. | BN45: Mehrstunden f. | BO45: 0 | BP45: 0 | BR45: 0 | BS45: 0 | BU45: 0 | BV45: 0 | BX45: Zähler | BY45: Zähler Be- | BZ45: Brutto | CA45: Netto | CB45: Std pro Tag | CD45: Netto | CF45: StdLohn | CG45: Hilfs1 | CK45: Monatslohn | CL45: Monatslohn
A46: =A$13 -> 0 | B46: =B$11 -> AHV-Nummer | C46: =B_FF2 -> z.B. | D46: =D$13 -> 00:00:00 | E46: 0 | F46: 0 | G46: 0 | I46: 0 | J46: 0 | L46: 0 | O46: 0 | V46: =V$13 -> vorher- gehende | W46: =W$13 -> laufende | AK46: =AK$13 -> Dezember | AL46: =AL$13 -> Dezember | AR46: =AR$13 -> Dezember | AS46: =AS$13 -> Dezember | AZ46: 0 | BA46: 0 | BB46: 0 | BC46: 0 | BD46: 0 | BE46: 0 | BF46: 0 | BK46: 0 | BL46: 0 | BM46: Vormonat | BN46: Ausfallberech. | BO46: 0 | BP46: 0 | BR46: 100% | BS46: 80% | BU46: 0 Tage | BV46: KSE | BX46: Betroffene | BY46: zugsberechtigte | BZ46: Stunden | CA46: Stunden | CD46: Tage | CL46: ungekürzt
A47: =A$14 -> 0 | B47: =B$14 -> 0 | C47: =B_FF3 -> Personalnummer | D47: =D$14 -> 00:00:00 | E47: 0 | F47: 0 | G47: Monate | H47: =K$14 -> Prozent | I47: 0 | J47: Tage | K47: =K$14 -> Prozent | L47: Tage | M47: =M$14 -> Prozent | O47: 0 | AC47: =AC$14 -> 100% | AD47: =AD$14 -> 80% | AE47: 60% | AF47: 0 Tage | AG47: KSE | AK47: =AK$14 -> 2017 | AL47: =AL$14 -> 2017 | AR47: =AR$14 -> 2016 | AS47: =AS$14 -> 2016 | AZ47: KL3 | BA47: KL4 | BB47: KL5 | BC47: KL6 | BD47: KL7a | BE47: KL7b | BF47: KL7c | BG47: KL8temp | BH47: Überzeit | BK47: KL8 | BL47: KL9 | BM47: KL9a | BN47: KL9b | BO47: KL10 | BP47: KL11 | BQ47: KL11a | BR47: KL12 | BS47: KL13 | BU47: KL14 | BV47: KL15 | BX47: Mitarbeiter | BY47: Mitarbeiter | BZ47: BrStd | CA47: NetStd | CD47: NetTg | CF47: Resultat | CG47: nichtgekürzt | CK47: Resultat | CL47: LohnMonat
A48: =übertrag -> Übertrag | P48: =A48 -> Übertrag | S48: =S42 -> 0 | U48: =U42 -> 0 | Y48: =Y42 -> 0 | AC48: =AC42 -> 0 | AG48: =AG42 -> 0 | AI48: =A48 -> Übertrag | AK48: =AK42 -> 0 | AM48: =AM42 -> 0 | AN48: =AN42 -> 0 | AP48: Übertrag | AR48: =AR42 -> 0 | AT48: =AT42 -> 0 | AU48: =AU42 -> 0
O49: =Q49 -> 0 | P49: 0 | Q49: =ROUND(IF(AnzMonJahr > 11,IF(Lohn > 100,MonLohn,StdLohn),0),2) -> 0 | X49: =KL7c -> 0 | Y49: =_KL8 -> 0 | AA49: =_KL10 -> 0 | AB49: =KL11a -> 0 | AC49: =_KL12 -> 0 | AD49: =_KL13 -> 0 | AE49: =BT49 -> 0 | AF49: =_KL14 -> 0 | AG49: =_KL15 -> 0 | AI49: 0 | AN49: =AK49-AL49-AM49 -> 0 | AP49: 0 | AU49: =AR49-AS49-AT49 -> 0 | AZ49: =R49 -> 0 | BA49: =S49 -> 0 | BB49: =T49 -> 0 | BC49: =U49 -> 0 | BD49: =V49 -> 0 | BE49: =W49 -> 0 | BF49: =KL7a-KL7b -> 0 | BG49: =ROUND(SUM(_KL4-_KL5-_KL6-KL7c),2) -> 0 | BH49: =IF(KL8temp<0,KL8temp,0) -> 0 | BI49: =_KL3 / 5 * StammMindestausfall -> 0 | BJ49: =IF(KL8temp < Mindestausfall,"nein","ja") -> ja | BK49: =ROUND(IF(KL8temp>0,KL8temp,0),2) -> 0 | BL49: =Z49 -> 0 | BM49: =IF(_KL9>_KL10,_KL9-_KL10,0) -> 0 | BN49: =IF(_KL8-_KL9>0,_KL8-_KL9,0) -> 0 | BO49: =_KL8-_KL11 -> 0 | BP49: =IF(Arbeitsausfall_in_Prozent>0,IF(_KL8>0,ROUND(_KL8/Arbeitsausfall_in_Prozent*RelativerMehrausfall,2),0),0) -> 0 | BQ49: =_KL11-KL9a+Überzeit -> 0 | BR49: =IF(KL8temp < Mindestausfall,IF(KL11a>0,0,0),IF(KL11a<=0,0,ROUND(_KL2*KL11a,2))) -> 0 | BS49: =IF(MindestausfallJaNein="ja",ROUND(K_12*StammAnspruch_in_Prozent/100,2),0) -> 0 | BT49: =IF(MindestausfallJaNein="ja",ROUND(K_12*Entsch_Liechtenstein_in_Prozent/100,2),0) -> 0 | BU49: =IF(MindestausfallJaNein="ja",ROUND(IF(KL11a>0,_KL3/5*_KL2*KZ_V*Entsch_Liechtenstein_in_Prozent/100,0),2),0) -> 0 | BV49: =IF(KL13a-_KL14>=0,ROUND(SUM(KL13a-_KL14)*20,0)/20,0) -> 0 | BX49: =IF(K_15<>0,1,0) -> 0 | BY49: =IF(SollStd<>0,1,0) -> 0 | BZ49: =StdTg*StammJahrestage -> 0 | CA49: =(StdTg*StammJahrestage)-(StdTg*(Fer+Fei)) -> 0 | CB49: =StdWo/5 -> 0 | CD49: =StammJahrestage-Fer-Fei -> 261 | CF49: =IF(Hilfs1 * NetStd/12 > StammVV,StammVV / (NetStd /12 ), Hilfs1) ->  | CG49: =(Lohn + SWEZuschlagBetrag) + ((Lohn + SWEZuschlagBetrag) * ((StammJahrestage /12 * AnzMonJahr) - NetTg) * 100 / NetTg)/100 + Grati/NetStd ->  | CI49: =Lohn * SWEZuschlag -> 0 | CK49: =IF(LohnMon > StammVV,StammVV/(NetStd/12),LohnMon/(NetStd/12)) ->  | CL49: =((Lohn + SWEZuschlagBetrag)*AnzMonJahr/12)+Grati/12 -> 0
O50: =Q50 -> 0 | P50: 0 | Q50: 0 | X50: 0 | Y50: 0 | AA50: 0 | AB50: 0 | AC50: 0 | AD50: 0 | AE50: =BT50 -> 0 | AF50: 0 | AG50: 0 | AI50: 0 | AN50: =AK50-AL50-AM50 -> 0 | AP50: 0 | AU50: =AR50-AS50-AT50 -> 0 | AZ50: =R50 -> 0 | BA50: =S50 -> 0 | BB50: =T50 -> 0 | BC50: =U50 -> 0 | BD50: =V50 -> 0 | BE50: =W50 -> 0 | BF50: 0 | BG50: 0 | BH50: 0 | BI50: 0 | BJ50: ja | BK50: 0 | BL50: =Z50 -> 0 | BM50: 0 | BN50: 0 | BO50: 0 | BP50: 0 | BQ50: 0 | BR50: 0 | BS50: 0 | BT50: 0 | BU50: 0 | BV50: 0 | BX50: 0 | BY50: 0 | BZ50: 0 | CA50: 0 | CB50: 0 | CD50: 261 | CI50: 0 | CL50: 0
O51: 0 | P51: 0 | Q51: 0 | X51: 0 | Y51: 0 | AA51: 0 | AB51: 0 | AC51: 0 | AD51: 0 | AE51: 0 | AF51: 0 | AG51: 0 | AI51: 0 | AN51: 0 | AP51: 0 | AU51: 0 | AZ51: 0 | BA51: 0 | BB51: 0 | BC51: 0 | BD51: 0 | BE51: 0 | BF51: 0 | BG51: 0 | BH51: 0 | BI51: 0 | BJ51: ja | BK51: 0 | BL51: 0 | BM51: 0 | BN51: 0 | BO51: 0 | BP51: 0 | BQ51: 0 | BR51: 0 | BS51: 0 | BT51: 0 | BU51: 0 | BV51: 0 | BX51: 0 | BY51: 0 | BZ51: 0 | CA51: 0 | CB51: 0 | CD51: 261 | CI51: 0 | CL51: 0
O52: 0 | P52: 0 | Q52: 0 | X52: 0 | Y52: 0 | AA52: 0 | AB52: 0 | AC52: 0 | AD52: 0 | AE52: 0 | AF52: 0 | AG52: 0 | AI52: 0 | AN52: 0 | AP52: 0 | AU52: 0 | AZ52: 0 | BA52: 0 | BB52: 0 | BC52: 0 | BD52: 0 | BE52: 0 | BF52: 0 | BG52: 0 | BH52: 0 | BI52: 0 | BJ52: ja | BK52: 0 | BL52: 0 | BM52: 0 | BN52: 0 | BO52: 0 | BP52: 0 | BQ52: 0 | BR52: 0 | BS52: 0 | BT52: 0 | BU52: 0 | BV52: 0 | BX52: 0 | BY52: 0 | BZ52: 0 | CA52: 0 | CB52: 0 | CD52: 261 | CI52: 0 | CL52: 0
O53: 0 | P53: 0 | Q53: 0 | X53: 0 | Y53: 0 | AA53: 0 | AB53: 0 | AC53: 0 | AD53: 0 | AE53: 0 | AF53: 0 | AG53: 0 | AI53: 0 | AN53: 0 | AP53: 0 | AU53: 0 | AZ53: 0 | BA53: 0 | BB53: 0 | BC53: 0 | BD53: 0 | BE53: 0 | BF53: 0 | BG53: 0 | BH53: 0 | BI53: 0 | BJ53: ja | BK53: 0 | BL53: 0 | BM53: 0 | BN53: 0 | BO53: 0 | BP53: 0 | BQ53: 0 | BR53: 0 | BS53: 0 | BT53: 0 | BU53: 0 | BV53: 0 | BX53: 0 | BY53: 0 | BZ53: 0 | CA53: 0 | CB53: 0 | CD53: 261 | CI53: 0 | CL53: 0
O54: 0 | P54: =A54 -> 0 | Q54: 0 | X54: 0 | Y54: 0 | AA54: 0 | AB54: 0 | AC54: 0 | AD54: 0 | AE54: 0 | AF54: 0 | AG54: 0 | AI54: 0 | AN54: 0 | AP54: 0 | AU54: 0 | AZ54: 0 | BA54: 0 | BB54: 0 | BC54: 0 | BD54: 0 | BE54: 0 | BF54: 0 | BG54: 0 | BH54: 0 | BI54: 0 | BJ54: ja | BK54: 0 | BL54: 0 | BM54: 0 | BN54: 0 | BO54: 0 | BP54: 0 | BQ54: 0 | BR54: 0 | BS54: 0 | BT54: 0 | BU54: 0 | BV54: 0 | BX54: 0 | BY54: 0 | BZ54: 0 | CA54: 0 | CB54: 0 | CD54: 261 | CI54: 0 | CL54: 0
O55: 0 | P55: 0 | Q55: 0 | X55: 0 | Y55: 0 | AA55: 0 | AB55: 0 | AC55: 0 | AD55: 0 | AE55: 0 | AF55: 0 | AG55: 0 | AI55: 0 | AN55: 0 | AP55: 0 | AU55: 0 | AZ55: 0 | BA55: 0 | BB55: 0 | BC55: 0 | BD55: 0 | BE55: 0 | BF55: 0 | BG55: 0 | BH55: 0 | BI55: 0 | BJ55: ja | BK55: 0 | BL55: 0 | BM55: 0 | BN55: 0 | BO55: 0 | BP55: 0 | BQ55: 0 | BR55: 0 | BS55: 0 | BT55: 0 | BU55: 0 | BV55: 0 | BX55: 0 | BY55: 0 | BZ55: 0 | CA55: 0 | CB55: 0 | CD55: 261 | CI55: 0 | CL55: 0
O56: 0 | P56: 0 | Q56: 0 | X56: 0 | Y56: 0 | AA56: 0 | AB56: 0 | AC56: 0 | AD56: 0 | AE56: 0 | AF56: 0 | AG56: 0 | AI56: 0 | AN56: 0 | AP56: 0 | AU56: 0 | AZ56: 0 | BA56: 0 | BB56: 0 | BC56: 0 | BD56: 0 | BE56: 0 | BF56: 0 | BG56: 0 | BH56: 0 | BI56: 0 | BJ56: ja | BK56: 0 | BL56: 0 | BM56: 0 | BN56: 0 | BO56: 0 | BP56: 0 | BQ56: 0 | BR56: 0 | BS56: 0 | BT56: 0 | BU56: 0 | BV56: 0 | BX56: 0 | BY56: 0 | BZ56: 0 | CA56: 0 | CB56: 0 | CD56: 261 | CI56: 0 | CL56: 0
O57: 0 | P57: 0 | Q57: 0 | X57: 0 | Y57: 0 | AA57: 0 | AB57: 0 | AC57: 0 | AD57: 0 | AE57: 0 | AF57: 0 | AG57: 0 | AI57: 0 | AN57: 0 | AP57: 0 | AU57: 0 | AZ57: 0 | BA57: 0 | BB57: 0 | BC57: 0 | BD57: 0 | BE57: 0 | BF57: 0 | BG57: 0 | BH57: 0 | BI57: 0 | BJ57: ja | BK57: 0 | BL57: 0 | BM57: 0 | BN57: 0 | BO57: 0 | BP57: 0 | BQ57: 0 | BR57: 0 | BS57: 0 | BT57: 0 | BU57: 0 | BV57: 0 | BX57: 0 | BY57: 0 | BZ57: 0 | CA57: 0 | CB57: 0 | CD57: 261 | CI57: 0 | CL57: 0
O58: 0 | P58: 0 | Q58: 0 | X58: 0 | Y58: 0 | AA58: 0 | AB58: 0 | AC58: 0 | AD58: 0 | AE58: 0 | AF58: 0 | AG58: 0 | AI58: 0 | AN58: 0 | AP58: 0 | AU58: 0 | AZ58: 0 | BA58: 0 | BB58: 0 | BC58: 0 | BD58: 0 | BE58: 0 | BF58: 0 | BG58: 0 | BH58: 0 | BI58: 0 | BJ58: ja | BK58: 0 | BL58: 0 | BM58: 0 | BN58: 0 | BO58: 0 | BP58: 0 | BQ58: 0 | BR58: 0 | BS58: 0 | BT58: 0 | BU58: 0 | BV58: 0 | BX58: 0 | BY58: 0 | BZ58: 0 | CA58: 0 | CB58: 0 | CD58: 261 | CI58: 0 | CL58: 0
O59: 0 | P59: 0 | Q59: 0 | X59: 0 | Y59: 0 | AA59: 0 | AB59: 0 | AC59: 0 | AD59: 0 | AE59: 0 | AF59: 0 | AG59: 0 | AI59: 0 | AN59: 0 | AP59: 0 | AU59: 0 | AZ59: 0 | BA59: 0 | BB59: 0 | BC59: 0 | BD59: 0 | BE59: 0 | BF59: 0 | BG59: 0 | BH59: 0 | BI59: 0 | BJ59: ja | BK59: 0 | BL59: 0 | BM59: 0 | BN59: 0 | BO59: 0 | BP59: 0 | BQ59: 0 | BR59: 0 | BS59: 0 | BT59: 0 | BU59: 0 | BV59: 0 | BX59: 0 | BY59: 0 | BZ59: 0 | CA59: 0 | CB59: 0 | CD59: 261 | CI59: 0 | CL59: 0
O60: 0 | P60: 0 | Q60: 0 | X60: 0 | Y60: 0 | AA60: 0 | AB60: 0 | AC60: 0 | AD60: 0 | AE60: 0 | AF60: 0 | AG60: 0 | AI60: 0 | AN60: 0 | AP60: 0 | AU60: 0 | AZ60: 0 | BA60: 0 | BB60: 0 | BC60: 0 | BD60: 0 | BE60: 0 | BF60: 0 | BG60: 0 | BH60: 0 | BI60: 0 | BJ60: ja | BK60: 0 | BL60: 0 | BM60: 0 | BN60: 0 | BO60: 0 | BP60: 0 | BQ60: 0 | BR60: 0 | BS60: 0 | BT60: 0 | BU60: 0 | BV60: 0 | BX60: 0 | BY60: 0 | BZ60: 0 | CA60: 0 | CB60: 0 | CD60: 261 | CI60: 0 | CL60: 0
O61: 0 | P61: 0 | Q61: 0 | X61: 0 | Y61: 0 | AA61: 0 | AB61: 0 | AC61: 0 | AD61: 0 | AE61: 0 | AF61: 0 | AG61: 0 | AI61: 0 | AN61: 0 | AP61: 0 | AU61: 0 | AZ61: 0 | BA61: 0 | BB61: 0 | BC61: 0 | BD61: 0 | BE61: 0 | BF61: 0 | BG61: 0 | BH61: 0 | BI61: 0 | BJ61: ja | BK61: 0 | BL61: 0 | BM61: 0 | BN61: 0 | BO61: 0 | BP61: 0 | BQ61: 0 | BR61: 0 | BS61: 0 | BT61: 0 | BU61: 0 | BV61: 0 | BX61: 0 | BY61: 0 | BZ61: 0 | CA61: 0 | CB61: 0 | CD61: 261 | CI61: 0 | CL61: 0
O62: 0 | P62: 0 | Q62: 0 | X62: 0 | Y62: 0 | AA62: 0 | AB62: 0 | AC62: 0 | AD62: 0 | AE62: 0 | AF62: 0 | AG62: 0 | AI62: 0 | AN62: 0 | AP62: 0 | AU62: 0 | AZ62: 0 | BA62: 0 | BB62: 0 | BC62: 0 | BD62: 0 | BE62: 0 | BF62: 0 | BG62: 0 | BH62: 0 | BI62: 0 | BJ62: ja | BK62: 0 | BL62: 0 | BM62: 0 | BN62: 0 | BO62: 0 | BP62: 0 | BQ62: 0 | BR62: 0 | BS62: 0 | BT62: 0 | BU62: 0 | BV62: 0 | BX62: 0 | BY62: 0 | BZ62: 0 | CA62: 0 | CB62: 0 | CD62: 261 | CI62: 0 | CL62: 0
O63: 0 | P63: 0 | Q63: 0 | X63: 0 | Y63: 0 | AA63: 0 | AB63: 0 | AC63: 0 | AD63: 0 | AE63: 0 | AF63: 0 | AG63: 0 | AI63: 0 | AN63: 0 | AP63: 0 | AU63: 0 | AZ63: 0 | BA63: 0 | BB63: 0 | BC63: 0 | BD63: 0 | BE63: 0 | BF63: 0 | BG63: 0 | BH63: 0 | BI63: 0 | BJ63: ja | BK63: 0 | BL63: 0 | BM63: 0 | BN63: 0 | BO63: 0 | BP63: 0 | BQ63: 0 | BR63: 0 | BS63: 0 | BT63: 0 | BU63: 0 | BV63: 0 | BX63: 0 | BY63: 0 | BZ63: 0 | CA63: 0 | CB63: 0 | CD63: 261 | CI63: 0 | CL63: 0
O64: 0 | P64: 0 | Q64: 0 | X64: 0 | Y64: 0 | AA64: 0 | AB64: 0 | AC64: 0 | AD64: 0 | AE64: 0 | AF64: 0 | AG64: 0 | AI64: 0 | AN64: 0 | AP64: 0 | AU64: 0 | AZ64: 0 | BA64: 0 | BB64: 0 | BC64: 0 | BD64: 0 | BE64: 0 | BF64: 0 | BG64: 0 | BH64: 0 | BI64: 0 | BJ64: ja | BK64: 0 | BL64: 0 | BM64: 0 | BN64: 0 | BO64: 0 | BP64: 0 | BQ64: 0 | BR64: 0 | BS64: 0 | BT64: 0 | BU64: 0 | BV64: 0 | BX64: 0 | BY64: 0 | BZ64: 0 | CA64: 0 | CB64: 0 | CD64: 261 | CI64: 0 | CL64: 0
O65: 0 | P65: 0 | Q65: 0 | X65: 0 | Y65: 0 | AA65: 0 | AB65: 0 | AC65: 0 | AD65: 0 | AE65: 0 | AF65: 0 | AG65: 0 | AI65: 0 | AN65: 0 | AP65: 0 | AU65: 0 | AZ65: 0 | BA65: 0 | BB65: 0 | BC65: 0 | BD65: 0 | BE65: 0 | BF65: 0 | BG65: 0 | BH65: 0 | BI65: 0 | BJ65: ja | BK65: 0 | BL65: 0 | BM65: 0 | BN65: 0 | BO65: 0 | BP65: 0 | BQ65: 0 | BR65: 0 | BS65: 0 | BT65: 0 | BU65: 0 | BV65: 0 | BX65: 0 | BY65: 0 | BZ65: 0 | CA65: 0 | CB65: 0 | CD65: 261 | CI65: 0 | CL65: 0
O66: 0 | P66: =A66 -> 0 | Q66: 0 | X66: 0 | Y66: 0 | AA66: 0 | AB66: 0 | AC66: 0 | AD66: 0 | AE66: 0 | AF66: 0 | AG66: 0 | AI66: 0 | AN66: 0 | AP66: 0 | AU66: 0 | AZ66: 0 | BA66: 0 | BB66: 0 | BC66: 0 | BD66: 0 | BE66: 0 | BF66: 0 | BG66: 0 | BH66: 0 | BI66: 0 | BJ66: ja | BK66: 0 | BL66: 0 | BM66: 0 | BN66: 0 | BO66: 0 | BP66: 0 | BQ66: 0 | BR66: 0 | BS66: 0 | BT66: 0 | BU66: 0 | BV66: 0 | BX66: 0 | BY66: 0 | BZ66: 0 | CA66: 0 | CB66: 0 | CD66: 261 | CI66: 0 | CL66: 0
O67: 0 | P67: 0 | Q67: 0 | X67: 0 | Y67: 0 | AA67: 0 | AB67: 0 | AC67: 0 | AD67: 0 | AE67: 0 | AF67: 0 | AG67: 0 | AI67: 0 | AN67: 0 | AP67: 0 | AU67: 0 | AZ67: 0 | BA67: 0 | BB67: 0 | BC67: 0 | BD67: 0 | BE67: 0 | BF67: 0 | BG67: 0 | BH67: 0 | BI67: 0 | BJ67: ja | BK67: 0 | BL67: 0 | BM67: 0 | BN67: 0 | BO67: 0 | BP67: 0 | BQ67: 0 | BR67: 0 | BS67: 0 | BT67: 0 | BU67: 0 | BV67: 0 | BX67: 0 | BY67: 0 | BZ67: 0 | CA67: 0 | CB67: 0 | CD67: 261 | CI67: 0 | CL67: 0
O68: 0 | P68: 0 | Q68: 0 | X68: 0 | Y68: 0 | AA68: 0 | AB68: 0 | AC68: 0 | AD68: 0 | AE68: 0 | AF68: 0 | AG68: 0 | AI68: 0 | AN68: 0 | AP68: 0 | AU68: 0 | AZ68: 0 | BA68: 0 | BB68: 0 | BC68: 0 | BD68: 0 | BE68: 0 | BF68: 0 | BG68: 0 | BH68: 0 | BI68: 0 | BJ68: ja | BK68: 0 | BL68: 0 | BM68: 0 | BN68: 0 | BO68: 0 | BP68: 0 | BQ68: 0 | BR68: 0 | BS68: 0 | BT68: 0 | BU68: 0 | BV68: 0 | BX68: 0 | BY68: 0 | BZ68: 0 | CA68: 0 | CB68: 0 | CD68: 261 | CI68: 0 | CL68: 0
O69: 0 | P69: 0 | Q69: 0 | X69: 0 | Y69: 0 | AA69: 0 | AB69: 0 | AC69: 0 | AD69: 0 | AE69: 0 | AF69: 0 | AG69: 0 | AI69: 0 | AN69: 0 | AP69: 0 | AU69: 0 | AZ69: 0 | BA69: 0 | BB69: 0 | BC69: 0 | BD69: 0 | BE69: 0 | BF69: 0 | BG69: 0 | BH69: 0 | BI69: 0 | BJ69: ja | BK69: 0 | BL69: 0 | BM69: 0 | BN69: 0 | BO69: 0 | BP69: 0 | BQ69: 0 | BR69: 0 | BS69: 0 | BT69: 0 | BU69: 0 | BV69: 0 | BX69: 0 | BY69: 0 | BZ69: 0 | CA69: 0 | CB69: 0 | CD69: 261 | CI69: 0 | CL69: 0
O70: 0 | P70: 0 | Q70: 0 | X70: 0 | Y70: 0 | AA70: 0 | AB70: 0 | AC70: 0 | AD70: 0 | AE70: 0 | AF70: 0 | AG70: 0 | AI70: 0 | AN70: 0 | AP70: 0 | AU70: 0 | AZ70: 0 | BA70: 0 | BB70: 0 | BC70: 0 | BD70: 0 | BE70: 0 | BF70: 0 | BG70: 0 | BH70: 0 | BI70: 0 | BJ70: ja | BK70: 0 | BL70: 0 | BM70: 0 | BN70: 0 | BO70: 0 | BP70: 0 | BQ70: 0 | BR70: 0 | BS70: 0 | BT70: 0 | BU70: 0 | BV70: 0 | BX70: 0 | BY70: 0 | BZ70: 0 | CA70: 0 | CB70: 0 | CD70: 261 | CI70: 0 | CL70: 0
O71: 0 | P71: 0 | Q71: 0 | X71: 0 | Y71: 0 | AA71: 0 | AB71: 0 | AC71: 0 | AD71: 0 | AE71: 0 | AF71: 0 | AG71: 0 | AI71: 0 | AN71: 0 | AP71: 0 | AU71: 0 | AZ71: 0 | BA71: 0 | BB71: 0 | BC71: 0 | BD71: 0 | BE71: 0 | BF71: 0 | BG71: 0 | BH71: 0 | BI71: 0 | BJ71: ja | BK71: 0 | BL71: 0 | BM71: 0 | BN71: 0 | BO71: 0 | BP71: 0 | BQ71: 0 | BR71: 0 | BS71: 0 | BT71: 0 | BU71: 0 | BV71: 0 | BX71: 0 | BY71: 0 | BZ71: 0 | CA71: 0 | CB71: 0 | CD71: 261 | CI71: 0 | CL71: 0
O72: 0 | P72: 0 | Q72: 0 | X72: 0 | Y72: 0 | AA72: 0 | AB72: 0 | AC72: 0 | AD72: 0 | AE72: 0 | AF72: 0 | AG72: 0 | AI72: 0 | AN72: 0 | AP72: 0 | AU72: 0 | AZ72: 0 | BA72: 0 | BB72: 0 | BC72: 0 | BD72: 0 | BE72: 0 | BF72: 0 | BG72: 0 | BH72: 0 | BI72: 0 | BJ72: ja | BK72: 0 | BL72: 0 | BM72: 0 | BN72: 0 | BO72: 0 | BP72: 0 | BQ72: 0 | BR72: 0 | BS72: 0 | BT72: 0 | BU72: 0 | BV72: 0 | BX72: 0 | BY72: 0 | BZ72: 0 | CA72: 0 | CB72: 0 | CD72: 261 | CI72: 0 | CL72: 0
O73: 0 | P73: =A73 -> 0 | Q73: 0 | X73: 0 | Y73: 0 | AA73: 0 | AB73: 0 | AC73: 0 | AD73: 0 | AE73: 0 | AF73: 0 | AG73: 0 | AI73: 0 | AN73: 0 | AP73: 0 | AU73: 0 | AZ73: 0 | BA73: 0 | BB73: 0 | BC73: 0 | BD73: 0 | BE73: 0 | BF73: 0 | BG73: 0 | BH73: 0 | BI73: 0 | BJ73: ja | BK73: 0 | BL73: 0 | BM73: 0 | BN73: 0 | BO73: 0 | BP73: 0 | BQ73: 0 | BR73: 0 | BS73: 0 | BT73: 0 | BU73: 0 | BV73: 0 | BX73: 0 | BY73: 0 | BZ73: 0 | CA73: 0 | CB73: 0 | CD73: 261 | CI73: 0 | CL73: 0
O74: 0 | P74: =A74 -> 0 | Q74: 0 | X74: 0 | Y74: 0 | AA74: 0 | AB74: 0 | AC74: 0 | AD74: 0 | AE74: 0 | AF74: 0 | AG74: 0 | AI74: 0 | AN74: 0 | AP74: 0 | AU74: 0 | AZ74: 0 | BA74: 0 | BB74: 0 | BC74: 0 | BD74: 0 | BE74: 0 | BF74: 0 | BG74: 0 | BH74: 0 | BI74: 0 | BJ74: ja | BK74: 0 | BL74: 0 | BM74: 0 | BN74: 0 | BO74: 0 | BP74: 0 | BQ74: 0 | BR74: 0 | BS74: 0 | BT74: 0 | BU74: 0 | BV74: 0 | BX74: 0 | BY74: 0 | BZ74: 0 | CA74: 0 | CB74: 0 | CD74: 261 | CI74: 0 | CL74: 0
O75: 0 | P75: =A75 -> 0 | Q75: 0 | X75: 0 | Y75: 0 | AA75: 0 | AB75: 0 | AC75: 0 | AD75: 0 | AE75: 0 | AF75: 0 | AG75: 0 | AI75: 0 | AN75: 0 | AP75: 0 | AU75: 0 | AZ75: 0 | BA75: 0 | BB75: 0 | BC75: 0 | BD75: 0 | BE75: 0 | BF75: 0 | BG75: 0 | BH75: 0 | BI75: 0 | BJ75: ja | BK75: 0 | BL75: 0 | BM75: 0 | BN75: 0 | BO75: 0 | BP75: 0 | BQ75: 0 | BR75: 0 | BS75: 0 | BT75: 0 | BU75: 0 | BV75: 0 | BX75: 0 | BY75: 0 | BZ75: 0 | CA75: 0 | CB75: 0 | CD75: 261 | CI75: 0 | CL75: 0
O76: 0 | P76: 0 | Q76: 0 | X76: 0 | Y76: 0 | AA76: 0 | AB76: 0 | AC76: 0 | AD76: 0 | AE76: 0 | AF76: 0 | AG76: 0 | AI76: 0 | AN76: 0 | AP76: 0 | AU76: 0 | AZ76: 0 | BA76: 0 | BB76: 0 | BC76: 0 | BD76: 0 | BE76: 0 | BF76: 0 | BG76: 0 | BH76: 0 | BI76: 0 | BJ76: ja | BK76: 0 | BL76: 0 | BM76: 0 | BN76: 0 | BO76: 0 | BP76: 0 | BQ76: 0 | BR76: 0 | BS76: 0 | BT76: 0 | BU76: 0 | BV76: 0 | BX76: 0 | BY76: 0 | BZ76: 0 | CA76: 0 | CB76: 0 | CD76: 261 | CI76: 0 | CL76: 0
O77: 0 | P77: =A77 -> 0 | Q77: 0 | X77: 0 | Y77: 0 | AA77: 0 | AB77: 0 | AC77: 0 | AD77: 0 | AE77: 0 | AF77: 0 | AG77: 0 | AI77: 0 | AN77: 0 | AP77: 0 | AU77: 0 | AZ77: 0 | BA77: 0 | BB77: 0 | BC77: 0 | BD77: 0 | BE77: 0 | BF77: 0 | BG77: 0 | BH77: 0 | BI77: 0 | BJ77: ja | BK77: 0 | BL77: 0 | BM77: 0 | BN77: 0 | BO77: 0 | BP77: 0 | BQ77: 0 | BR77: 0 | BS77: 0 | BT77: 0 | BU77: 0 | BV77: 0 | BX77: 0 | BY77: 0 | BZ77: 0 | CA77: 0 | CB77: 0 | CD77: 261 | CI77: 0 | CL77: 0
O78: 0 | P78: 0 | Q78: 0 | X78: 0 | Y78: 0 | AA78: 0 | AB78: 0 | AC78: 0 | AD78: 0 | AE78: 0 | AF78: 0 | AG78: 0 | AI78: 0 | AN78: 0 | AP78: 0 | AU78: 0 | AZ78: 0 | BA78: 0 | BB78: 0 | BC78: 0 | BD78: 0 | BE78: 0 | BF78: 0 | BG78: 0 | BH78: 0 | BI78: 0 | BJ78: ja | BK78: 0 | BL78: 0 | BM78: 0 | BN78: 0 | BO78: 0 | BP78: 0 | BQ78: 0 | BR78: 0 | BS78: 0 | BT78: 0 | BU78: 0 | BV78: 0 | BX78: 0 | BY78: 0 | BZ78: 0 | CA78: 0 | CB78: 0 | CD78: 261 | CI78: 0 | CL78: 0
O79: 0 | P79: 0 | Q79: 0 | X79: 0 | Y79: 0 | AA79: 0 | AB79: 0 | AC79: 0 | AD79: 0 | AE79: 0 | AF79: 0 | AG79: 0 | AI79: 0 | AN79: 0 | AP79: 0 | AU79: 0 | AZ79: 0 | BA79: 0 | BB79: 0 | BC79: 0 | BD79: 0 | BE79: 0 | BF79: 0 | BG79: 0 | BH79: 0 | BI79: 0 | BJ79: ja | BK79: 0 | BL79: 0 | BM79: 0 | BN79: 0 | BO79: 0 | BP79: 0 | BQ79: 0 | BR79: 0 | BS79: 0 | BT79: 0 | BU79: 0 | BV79: 0 | BX79: 0 | BY79: 0 | BZ79: 0 | CA79: 0 | CB79: 0 | CD79: 261 | CI79: 0 | CL79: 0
O80: 0 | P80: 0 | Q80: 0 | X80: 0 | Y80: 0 | AA80: 0 | AB80: 0 | AC80: 0 | AD80: 0 | AE80: 0 | AF80: 0 | AG80: 0 | AI80: 0 | AN80: 0 | AP80: 0 | AU80: 0 | AZ80: 0 | BA80: 0 | BB80: 0 | BC80: 0 | BD80: 0 | BE80: 0 | BF80: 0 | BG80: 0 | BH80: 0 | BI80: 0 | BJ80: ja | BK80: 0 | BL80: 0 | BM80: 0 | BN80: 0 | BO80: 0 | BP80: 0 | BQ80: 0 | BR80: 0 | BS80: 0 | BT80: 0 | BU80: 0 | BV80: 0 | BX80: 0 | BY80: 0 | BZ80: 0 | CA80: 0 | CB80: 0 | CD80: 261 | CI80: 0 | CL80: 0
P81: =übertrag -> Übertrag | S81: =SUM(S48:S80) -> 0 | U81: =SUM(U48:U80) -> 0 | Y81: =SUM(Y48:Y80) -> 0 | AC81: =SUM(AC48:AC80) -> 0 | AG81: =SUM(AG48:AG80) -> 0 | AI81: =P81 -> Übertrag | AK81: =SUM(AK48:AK80) -> 0 | AM81: =SUM(AM48:AM80) -> 0 | AN81: =SUM(AN48:AN80) -> 0 | AP81: =AI81 -> Übertrag | AR81: =SUM(AR48:AR80) -> 0 | AT81: =SUM(AT48:AT80) -> 0 | AU81: =SUM(AU48:AU80) -> 0
E82: =StammMA & " 3" -> Stammdaten MitarbeiterInnen Seite 3 | W82: =Abrechnung & " " & KAE_SWE_TEXT & ", " & Seite & " 3, " & MonatVor(StammPeriode2,0, "MMMM YYYY") -> Abrechnung Kurzarbeitsentschädigung, Seite 3, Dezember 2018 | AI82: =E82 -> Stammdaten MitarbeiterInnen Seite 3 | AO82: =AO43 -> Erhebungsbogen Saisonalität - Dezember 2018 - / ABTEILUNG | AT82: =AT43 -> 2020-11-30 | AU82: =AU43 -> 44165.60065
A83: =A$11 -> Name Vorname | B83: AHV-Nummer | C83: Freies Feld, z.B. Personalnummer | D83: Geburtsdatum | E83: Grundlohn (Monatslohn oder Stundenlohn) | F83: Durch- schnittliche wöchentliche Arbeitszeit | G83: =G$11 -> Anzahl Monatslöhne (12, 13, 13.5 etc.) oder Prozentzuschlag gem. GAV | I83: =I$11 -> Gratifikation etc. mit vertraglichem Anspruch | J83: Ferienentschädigung in Tagen oder in Lohnprozenten | L83: =L$11 -> Feiertagsentschädigung in Tagen oder in Lohnprozenten | N83: =N$11 -> SWE-Zuschlag nach GAV in Prozent | O83: Anrechen- barer Stunden- verdienst | P83: =P$11 -> 1 | Q83: =Q$11 -> 2 | R83: =R$11 -> 3 | S83: =S$11 -> 4 | T83: 5 | U83: 6 | W83: =W$11 -> 7 (nur für Gleitzeit) | Y83: =Y$11 -> 8 | Z83: =Z$11 -> 9 | AA83: =AA$11 -> 10 | AB83: =AB$11 -> 11 | AC83: 12 | AD83: 13 | AE83: 14 | AF83: 15 | AG83: 16 | AI83: =AI$11 -> 1 | AJ83: =AJ$11 -> 2 | AK83: 3 | AL83: 4 | AM83: 5 | AN83: 6 | AP83: =AI$44 -> 1 | AQ83: =AJ$44 -> 2 | AR83: =AK$44 -> 3 | AS83: =AL$44 -> 4 | AT83: =AM$44 -> 5 | AU83: =AN$44 -> 6 | AZ83: =R84 -> Vertragliche wöchentl. Arbeitszeit | BA83: Sollstunden Abrechnungs- periode | BB83: Istzeit (tatsächl. Anwesenh.) | BC83: Bezahlte u. unbezahlte Absenzen | BD83: Saldo Ende Periode | BE83: 0 | BF83: Diffe- renz | BK83: =Y84 -> Ausfallstd. Kurzarbeit | BL83: Saldo Mehrstd. Vormonat | BM83: Anrechenbare | BN83: Abzuziehende | BO83: =AA84 -> Saisonale Ausfall- stunden | BP83: Anrech. Ausfall- stunden | BR83: =AC84 -> Verdienst- ausfall | BS83: KAE gemäss Art. 42 ALVG | BU83: =AF84 -> Abzug Karenzzeit | BV83: Beantragte Vergütung
A84: =A$11 -> Name Vorname | B84: =B$12 -> 0 | C84: =B_FF1 -> Freies Feld | D84: =D$11 -> Geburtsdatum | E84: =E$11 -> Grundlohn (Monatslohn oder Stundenlohn) | F84: =F$11 -> Durch- schnittliche wöchentliche Arbeitszeit | G84: =G$12 -> 0 | I84: =I$11 -> Gratifikation etc. mit vertraglichem Anspruch | J84: 0 | L84: =#REF! ->  | O84: 0 | P84: =P$12 -> Name Vorname | Q84: =Q$12 -> Anrechen- barer Stunden- verdienst | R84: =R$12 -> Vertragliche wöchentl. Arbeitszeit | S84: =S$12 -> Sollstunden Abrechnungs- periode | T84: Istzeit (tatsächl. Anwesenh.) | U84: Bezahlte u. unbezahlte Absenzen | V84: =V$12 -> Saldo Ende Periode | X84: =X$12 -> Diffe- renz | Y84: Ausfallstd. Kurzarbeit | Z84: Saldo Mehrstd. Vormonat | AA84: Saisonale Ausfall- stunden | AB84: Anrech. Ausfall- stunden | AC84: Verdienst- ausfall | AD84: =AD$12 -> KAE gemäss Art. 42 ALVG | AE84: Anteil ALV gm. Art. 42 ALVG | AF84: Abzug Karenzzeit | AG84: =AG$12 -> Beantragte Vergütung | AI84: =AI$12 -> Name Vorname | AJ84: =R$45 -> Vertragliche wöchentl. Arbeitszeit | AK84: Sollstunden | AL84: Istzeit | AM84: =AM$12 -> Bezahlte u. unbezahlte Absenzen | AN84: =AN$12 -> Ausfallstd. Kurzarbeit | AP84: =AP$12 -> Name Vorname | AQ84: =AJ$45 -> Vertragliche wöchentl. Arbeitszeit | AR84: =AR$12 -> Sollstunden | AS84: =AS$12 -> Istzeit | AT84: =AT$12 -> Bezahlte u. unbezahlte Absenzen | AU84: =AU$12 -> Ausfallstd. Kurzarbeit | AZ84: 0 | BA84: 0 | BB84: 0 | BC84: 0 | BD84: vorher- gehende | BE84: laufende | BF84: 0 | BK84: 0 | BL84: 0 | BM84: Mehrstd. | BN84: Mehrstunden f. | BO84: 0 | BP84: 0 | BR84: 0 | BS84: 0 | BU84: 0 | BV84: 0 | BX84: Zähler | BY84: Zähler Be- | BZ84: Brutto | CA84: Netto | CB84: Std pro Tag | CD84: Netto | CF84: StdLohn | CG84: Hilfs1 | CK84: Monatslohn | CL84: Monatslohn
A85: =A$13 -> 0 | B85: =B$11 -> AHV-Nummer | C85: =B_FF2 -> z.B. | D85: =D$13 -> 00:00:00 | E85: 0 | F85: 0 | G85: 0 | I85: 0 | J85: 0 | L85: 0 | O85: 0 | V85: =V$13 -> vorher- gehende | W85: =W$13 -> laufende | AK85: =AK$13 -> Dezember | AL85: =AL$13 -> Dezember | AR85: =AR$13 -> Dezember | AS85: =AS$13 -> Dezember | AZ85: 0 | BA85: 0 | BB85: 0 | BC85: 0 | BD85: 0 | BE85: 0 | BF85: 0 | BK85: 0 | BL85: 0 | BM85: Vormonat | BN85: Ausfallberech. | BO85: 0 | BP85: 0 | BR85: 100% | BS85: 80% | BU85: 0 Tage | BV85: KSE | BX85: Betroffene | BY85: zugsberechtigte | BZ85: Stunden | CA85: Stunden | CD85: Tage | CL85: ungekürzt
A86: =A$14 -> 0 | B86: =B$14 -> 0 | C86: =B_FF3 -> Personalnummer | D86: =D$14 -> 00:00:00 | E86: 0 | F86: 0 | G86: Monate | H86: =K$14 -> Prozent | I86: 0 | J86: Tage | K86: =K$14 -> Prozent | L86: Tage | M86: =M$14 -> Prozent | O86: 0 | AC86: =AC$14 -> 100% | AD86: =AD$14 -> 80% | AE86: 60% | AF86: 0 Tage | AG86: KSE | AK86: =AK$14 -> 2017 | AL86: =AL$14 -> 2017 | AR86: =AR$14 -> 2016 | AS86: =AS$14 -> 2016 | AZ86: KL3 | BA86: KL4 | BB86: KL5 | BC86: KL6 | BD86: KL7a | BE86: KL7b | BF86: KL7c | BG86: KL8temp | BH86: Überzeit | BK86: KL8 | BL86: KL9 | BM86: KL9a | BN86: KL9b | BO86: KL10 | BP86: KL11 | BQ86: KL11a | BR86: KL12 | BS86: KL13 | BU86: KL14 | BV86: KL15 | BX86: Mitarbeiter | BY86: Mitarbeiter | BZ86: BrStd | CA86: NetStd | CD86: NetTg | CF86: Resultat | CG86: nichtgekürzt | CK86: Resultat | CL86: LohnMonat
A87: =übertrag -> Übertrag | P87: =übertrag -> Übertrag | S87: =S81 -> 0 | U87: =U81 -> 0 | Y87: =Y81 -> 0 | AC87: =AC81 -> 0 | AG87: =AG81 -> 0 | AI87: =A87 -> Übertrag | AK87: =AK81 -> 0 | AM87: =AM81 -> 0 | AN87: =AN81 -> 0 | AP87: =AI87 -> Übertrag | AR87: =AR81 -> 0 | AT87: =AT81 -> 0 | AU87: =AU81 -> 0
O88: =Q88 -> 0 | P88: =A88 -> 0 | Q88: =ROUND(IF(AnzMonJahr > 11,IF(Lohn > 100,MonLohn,StdLohn),0),2) -> 0 | X88: =KL7c -> 0 | Y88: =_KL8 -> 0 | AA88: =_KL10 -> 0 | AB88: =KL11a -> 0 | AC88: =_KL12 -> 0 | AD88: =_KL13 -> 0 | AE88: =BT88 -> 0 | AF88: =_KL14 -> 0 | AG88: =_KL15 -> 0 | AI88: 0 | AN88: =AK88-AL88-AM88 -> 0 | AP88: =AI88 -> 0 | AU88: =AR88-AS88-AT88 -> 0 | AZ88: =R88 -> 0 | BA88: =S88 -> 0 | BB88: =T88 -> 0 | BC88: =U88 -> 0 | BD88: =V88 -> 0 | BE88: =W88 -> 0 | BF88: =KL7a-KL7b -> 0 | BG88: =ROUND(SUM(_KL4-_KL5-_KL6-KL7c),2) -> 0 | BH88: =IF(KL8temp<0,KL8temp,0) -> 0 | BI88: =_KL3 / 5 * StammMindestausfall -> 0 | BJ88: =IF(KL8temp < Mindestausfall,"nein","ja") -> ja | BK88: =ROUND(IF(KL8temp>0,KL8temp,0),2) -> 0 | BL88: =Z88 -> 0 | BM88: =IF(_KL9>_KL10,_KL9-_KL10,0) -> 0 | BN88: =IF(_KL8-_KL9>0,_KL8-_KL9,0) -> 0 | BO88: =_KL8-_KL11 -> 0 | BP88: =IF(Arbeitsausfall_in_Prozent>0,IF(_KL8>0,ROUND(_KL8/Arbeitsausfall_in_Prozent*RelativerMehrausfall,2),0),0) -> 0 | BQ88: =_KL11-KL9a+Überzeit -> 0 | BR88: =IF(KL8temp < Mindestausfall,IF(KL11a>0,0,0),IF(KL11a<=0,0,ROUND(_KL2*KL11a,2))) -> 0 | BS88: =IF(MindestausfallJaNein="ja",ROUND(K_12*StammAnspruch_in_Prozent/100,2),0) -> 0 | BT88: =IF(MindestausfallJaNein="ja",ROUND(K_12*Entsch_Liechtenstein_in_Prozent/100,2),0) -> 0 | BU88: =IF(MindestausfallJaNein="ja",ROUND(IF(KL11a>0,_KL3/5*_KL2*KZ_V*Entsch_Liechtenstein_in_Prozent/100,0),2),0) -> 0 | BV88: =IF(KL13a-_KL14>=0,ROUND(SUM(KL13a-_KL14)*20,0)/20,0) -> 0 | BX88: =IF(K_15<>0,1,0) -> 0 | BY88: =IF(SollStd<>0,1,0) -> 0 | BZ88: =StdTg*StammJahrestage -> 0 | CA88: =(StdTg*StammJahrestage)-(StdTg*(Fer+Fei)) -> 0 | CB88: =StdWo/5 -> 0 | CD88: =StammJahrestage-Fer-Fei -> 261 | CF88: =IF(Hilfs1 * NetStd/12 > StammVV,StammVV / (NetStd /12 ), Hilfs1) ->  | CG88: =(Lohn + SWEZuschlagBetrag) + ((Lohn + SWEZuschlagBetrag) * ((StammJahrestage /12 * AnzMonJahr) - NetTg) * 100 / NetTg)/100 + Grati/NetStd ->  | CI88: =Lohn * SWEZuschlag -> 0 | CK88: =IF(LohnMon > StammVV,StammVV/(NetStd/12),LohnMon/(NetStd/12)) ->  | CL88: =((Lohn + SWEZuschlagBetrag)*AnzMonJahr/12)+Grati/12 -> 0
O89: =Q89 -> 0 | P89: 0 | Q89: 0 | X89: 0 | Y89: 0 | AA89: 0 | AB89: 0 | AC89: 0 | AD89: 0 | AE89: =BT89 -> 0 | AF89: 0 | AG89: 0 | AI89: 0 | AN89: =AK89-AL89-AM89 -> 0 | AP89: =AI89 -> 0 | AU89: =AR89-AS89-AT89 -> 0 | AZ89: =R89 -> 0 | BA89: =S89 -> 0 | BB89: =T89 -> 0 | BC89: =U89 -> 0 | BD89: =V89 -> 0 | BE89: =W89 -> 0 | BF89: 0 | BG89: 0 | BH89: 0 | BI89: 0 | BJ89: ja | BK89: 0 | BL89: =Z89 -> 0 | BM89: 0 | BN89: 0 | BO89: 0 | BP89: 0 | BQ89: 0 | BR89: 0 | BS89: 0 | BT89: 0 | BU89: 0 | BV89: 0 | BX89: 0 | BY89: 0 | BZ89: 0 | CA89: 0 | CB89: 0 | CD89: 261 | CI89: 0 | CL89: 0
O90: 0 | P90: 0 | Q90: 0 | X90: 0 | Y90: 0 | AA90: 0 | AB90: 0 | AC90: 0 | AD90: 0 | AE90: 0 | AF90: 0 | AG90: 0 | AI90: 0 | AN90: 0 | AP90: 0 | AU90: 0 | AZ90: 0 | BA90: 0 | BB90: 0 | BC90: 0 | BD90: 0 | BE90: 0 | BF90: 0 | BG90: 0 | BH90: 0 | BI90: 0 | BJ90: ja | BK90: 0 | BL90: 0 | BM90: 0 | BN90: 0 | BO90: 0 | BP90: 0 | BQ90: 0 | BR90: 0 | BS90: 0 | BT90: 0 | BU90: 0 | BV90: 0 | BX90: 0 | BY90: 0 | BZ90: 0 | CA90: 0 | CB90: 0 | CD90: 261 | CI90: 0 | CL90: 0
O91: 0 | P91: 0 | Q91: 0 | X91: 0 | Y91: 0 | AA91: 0 | AB91: 0 | AC91: 0 | AD91: 0 | AE91: 0 | AF91: 0 | AG91: 0 | AI91: 0 | AN91: 0 | AP91: 0 | AU91: 0 | AZ91: 0 | BA91: 0 | BB91: 0 | BC91: 0 | BD91: 0 | BE91: 0 | BF91: 0 | BG91: 0 | BH91: 0 | BI91: 0 | BJ91: ja | BK91: 0 | BL91: 0 | BM91: 0 | BN91: 0 | BO91: 0 | BP91: 0 | BQ91: 0 | BR91: 0 | BS91: 0 | BT91: 0 | BU91: 0 | BV91: 0 | BX91: 0 | BY91: 0 | BZ91: 0 | CA91: 0 | CB91: 0 | CD91: 261 | CI91: 0 | CL91: 0
O92: 0 | P92: 0 | Q92: 0 | X92: 0 | Y92: 0 | AA92: 0 | AB92: 0 | AC92: 0 | AD92: 0 | AE92: 0 | AF92: 0 | AG92: 0 | AI92: 0 | AN92: 0 | AP92: 0 | AU92: 0 | AZ92: 0 | BA92: 0 | BB92: 0 | BC92: 0 | BD92: 0 | BE92: 0 | BF92: 0 | BG92: 0 | BH92: 0 | BI92: 0 | BJ92: ja | BK92: 0 | BL92: 0 | BM92: 0 | BN92: 0 | BO92: 0 | BP92: 0 | BQ92: 0 | BR92: 0 | BS92: 0 | BT92: 0 | BU92: 0 | BV92: 0 | BX92: 0 | BY92: 0 | BZ92: 0 | CA92: 0 | CB92: 0 | CD92: 261 | CI92: 0 | CL92: 0
O93: 0 | P93: 0 | Q93: 0 | X93: 0 | Y93: 0 | AA93: 0 | AB93: 0 | AC93: 0 | AD93: 0 | AE93: 0 | AF93: 0 | AG93: 0 | AI93: 0 | AN93: 0 | AP93: 0 | AU93: 0 | AZ93: 0 | BA93: 0 | BB93: 0 | BC93: 0 | BD93: 0 | BE93: 0 | BF93: 0 | BG93: 0 | BH93: 0 | BI93: 0 | BJ93: ja | BK93: 0 | BL93: 0 | BM93: 0 | BN93: 0 | BO93: 0 | BP93: 0 | BQ93: 0 | BR93: 0 | BS93: 0 | BT93: 0 | BU93: 0 | BV93: 0 | BX93: 0 | BY93: 0 | BZ93: 0 | CA93: 0 | CB93: 0 | CD93: 261 | CI93: 0 | CL93: 0
O94: 0 | P94: 0 | Q94: 0 | X94: 0 | Y94: 0 | AA94: 0 | AB94: 0 | AC94: 0 | AD94: 0 | AE94: 0 | AF94: 0 | AG94: 0 | AI94: 0 | AN94: 0 | AP94: 0 | AU94: 0 | AZ94: 0 | BA94: 0 | BB94: 0 | BC94: 0 | BD94: 0 | BE94: 0 | BF94: 0 | BG94: 0 | BH94: 0 | BI94: 0 | BJ94: ja | BK94: 0 | BL94: 0 | BM94: 0 | BN94: 0 | BO94: 0 | BP94: 0 | BQ94: 0 | BR94: 0 | BS94: 0 | BT94: 0 | BU94: 0 | BV94: 0 | BX94: 0 | BY94: 0 | BZ94: 0 | CA94: 0 | CB94: 0 | CD94: 261 | CI94: 0 | CL94: 0
O95: 0 | P95: 0 | Q95: 0 | X95: 0 | Y95: 0 | AA95: 0 | AB95: 0 | AC95: 0 | AD95: 0 | AE95: 0 | AF95: 0 | AG95: 0 | AI95: 0 | AN95: 0 | AP95: 0 | AU95: 0 | AZ95: 0 | BA95: 0 | BB95: 0 | BC95: 0 | BD95: 0 | BE95: 0 | BF95: 0 | BG95: 0 | BH95: 0 | BI95: 0 | BJ95: ja | BK95: 0 | BL95: 0 | BM95: 0 | BN95: 0 | BO95: 0 | BP95: 0 | BQ95: 0 | BR95: 0 | BS95: 0 | BT95: 0 | BU95: 0 | BV95: 0 | BX95: 0 | BY95: 0 | BZ95: 0 | CA95: 0 | CB95: 0 | CD95: 261 | CI95: 0 | CL95: 0
O96: 0 | P96: 0 | Q96: 0 | X96: 0 | Y96: 0 | AA96: 0 | AB96: 0 | AC96: 0 | AD96: 0 | AE96: 0 | AF96: 0 | AG96: 0 | AI96: 0 | AN96: 0 | AP96: 0 | AU96: 0 | AZ96: 0 | BA96: 0 | BB96: 0 | BC96: 0 | BD96: 0 | BE96: 0 | BF96: 0 | BG96: 0 | BH96: 0 | BI96: 0 | BJ96: ja | BK96: 0 | BL96: 0 | BM96: 0 | BN96: 0 | BO96: 0 | BP96: 0 | BQ96: 0 | BR96: 0 | BS96: 0 | BT96: 0 | BU96: 0 | BV96: 0 | BX96: 0 | BY96: 0 | BZ96: 0 | CA96: 0 | CB96: 0 | CD96: 261 | CI96: 0 | CL96: 0
O97: 0 | P97: 0 | Q97: 0 | X97: 0 | Y97: 0 | AA97: 0 | AB97: 0 | AC97: 0 | AD97: 0 | AE97: 0 | AF97: 0 | AG97: 0 | AI97: 0 | AN97: 0 | AP97: 0 | AU97: 0 | AZ97: 0 | BA97: 0 | BB97: 0 | BC97: 0 | BD97: 0 | BE97: 0 | BF97: 0 | BG97: 0 | BH97: 0 | BI97: 0 | BJ97: ja | BK97: 0 | BL97: 0 | BM97: 0 | BN97: 0 | BO97: 0 | BP97: 0 | BQ97: 0 | BR97: 0 | BS97: 0 | BT97: 0 | BU97: 0 | BV97: 0 | BX97: 0 | BY97: 0 | BZ97: 0 | CA97: 0 | CB97: 0 | CD97: 261 | CI97: 0 | CL97: 0
O98: 0 | P98: 0 | Q98: 0 | X98: 0 | Y98: 0 | AA98: 0 | AB98: 0 | AC98: 0 | AD98: 0 | AE98: 0 | AF98: 0 | AG98: 0 | AI98: 0 | AN98: 0 | AP98: 0 | AU98: 0 | AZ98: 0 | BA98: 0 | BB98: 0 | BC98: 0 | BD98: 0 | BE98: 0 | BF98: 0 | BG98: 0 | BH98: 0 | BI98: 0 | BJ98: ja | BK98: 0 | BL98: 0 | BM98: 0 | BN98: 0 | BO98: 0 | BP98: 0 | BQ98: 0 | BR98: 0 | BS98: 0 | BT98: 0 | BU98: 0 | BV98: 0 | BX98: 0 | BY98: 0 | BZ98: 0 | CA98: 0 | CB98: 0 | CD98: 261 | CI98: 0 | CL98: 0
O99: 0 | P99: 0 | Q99: 0 | X99: 0 | Y99: 0 | AA99: 0 | AB99: 0 | AC99: 0 | AD99: 0 | AE99: 0 | AF99: 0 | AG99: 0 | AI99: 0 | AN99: 0 | AP99: 0 | AU99: 0 | AZ99: 0 | BA99: 0 | BB99: 0 | BC99: 0 | BD99: 0 | BE99: 0 | BF99: 0 | BG99: 0 | BH99: 0 | BI99: 0 | BJ99: ja | BK99: 0 | BL99: 0 | BM99: 0 | BN99: 0 | BO99: 0 | BP99: 0 | BQ99: 0 | BR99: 0 | BS99: 0 | BT99: 0 | BU99: 0 | BV99: 0 | BX99: 0 | BY99: 0 | BZ99: 0 | CA99: 0 | CB99: 0 | CD99: 261 | CI99: 0 | CL99: 0
O100: 0 | P100: 0 | Q100: 0 | X100: 0 | Y100: 0 | AA100: 0 | AB100: 0 | AC100: 0 | AD100: 0 | AE100: 0 | AF100: 0 | AG100: 0 | AI100: 0 | AN100: 0 | AP100: 0 | AU100: 0 | AZ100: 0 | BA100: 0 | BB100: 0 | BC100: 0 | BD100: 0 | BE100: 0 | BF100: 0 | BG100: 0 | BH100: 0 | BI100: 0 | BJ100: ja | BK100: 0 | BL100: 0 | BM100: 0 | BN100: 0 | BO100: 0 | BP100: 0 | BQ100: 0 | BR100: 0 | BS100: 0 | BT100: 0 | BU100: 0 | BV100: 0 | BX100: 0 | BY100: 0 | BZ100: 0 | CA100: 0 | CB100: 0 | CD100: 261 | CI100: 0 | CL100: 0
O101: 0 | P101: 0 | Q101: 0 | X101: 0 | Y101: 0 | AA101: 0 | AB101: 0 | AC101: 0 | AD101: 0 | AE101: 0 | AF101: 0 | AG101: 0 | AI101: 0 | AN101: 0 | AP101: 0 | AU101: 0 | AZ101: 0 | BA101: 0 | BB101: 0 | BC101: 0 | BD101: 0 | BE101: 0 | BF101: 0 | BG101: 0 | BH101: 0 | BI101: 0 | BJ101: ja | BK101: 0 | BL101: 0 | BM101: 0 | BN101: 0 | BO101: 0 | BP101: 0 | BQ101: 0 | BR101: 0 | BS101: 0 | BT101: 0 | BU101: 0 | BV101: 0 | BX101: 0 | BY101: 0 | BZ101: 0 | CA101: 0 | CB101: 0 | CD101: 261 | CI101: 0 | CL101: 0
O102: 0 | P102: 0 | Q102: 0 | X102: 0 | Y102: 0 | AA102: 0 | AB102: 0 | AC102: 0 | AD102: 0 | AE102: 0 | AF102: 0 | AG102: 0 | AI102: 0 | AN102: 0 | AP102: 0 | AU102: 0 | AZ102: 0 | BA102: 0 | BB102: 0 | BC102: 0 | BD102: 0 | BE102: 0 | BF102: 0 | BG102: 0 | BH102: 0 | BI102: 0 | BJ102: ja | BK102: 0 | BL102: 0 | BM102: 0 | BN102: 0 | BO102: 0 | BP102: 0 | BQ102: 0 | BR102: 0 | BS102: 0 | BT102: 0 | BU102: 0 | BV102: 0 | BX102: 0 | BY102: 0 | BZ102: 0 | CA102: 0 | CB102: 0 | CD102: 261 | CI102: 0 | CL102: 0
O103: 0 | P103: 0 | Q103: 0 | X103: 0 | Y103: 0 | AA103: 0 | AB103: 0 | AC103: 0 | AD103: 0 | AE103: 0 | AF103: 0 | AG103: 0 | AI103: 0 | AN103: 0 | AP103: 0 | AU103: 0 | AZ103: 0 | BA103: 0 | BB103: 0 | BC103: 0 | BD103: 0 | BE103: 0 | BF103: 0 | BG103: 0 | BH103: 0 | BI103: 0 | BJ103: ja | BK103: 0 | BL103: 0 | BM103: 0 | BN103: 0 | BO103: 0 | BP103: 0 | BQ103: 0 | BR103: 0 | BS103: 0 | BT103: 0 | BU103: 0 | BV103: 0 | BX103: 0 | BY103: 0 | BZ103: 0 | CA103: 0 | CB103: 0 | CD103: 261 | CI103: 0 | CL103: 0
O104: 0 | P104: 0 | Q104: 0 | X104: 0 | Y104: 0 | AA104: 0 | AB104: 0 | AC104: 0 | AD104: 0 | AE104: 0 | AF104: 0 | AG104: 0 | AI104: 0 | AN104: 0 | AP104: 0 | AU104: 0 | AZ104: 0 | BA104: 0 | BB104: 0 | BC104: 0 | BD104: 0 | BE104: 0 | BF104: 0 | BG104: 0 | BH104: 0 | BI104: 0 | BJ104: ja | BK104: 0 | BL104: 0 | BM104: 0 | BN104: 0 | BO104: 0 | BP104: 0 | BQ104: 0 | BR104: 0 | BS104: 0 | BT104: 0 | BU104: 0 | BV104: 0 | BX104: 0 | BY104: 0 | BZ104: 0 | CA104: 0 | CB104: 0 | CD104: 261 | CI104: 0 | CL104: 0
O105: 0 | P105: 0 | Q105: 0 | X105: 0 | Y105: 0 | AA105: 0 | AB105: 0 | AC105: 0 | AD105: 0 | AE105: 0 | AF105: 0 | AG105: 0 | AI105: 0 | AN105: 0 | AP105: 0 | AU105: 0 | AZ105: 0 | BA105: 0 | BB105: 0 | BC105: 0 | BD105: 0 | BE105: 0 | BF105: 0 | BG105: 0 | BH105: 0 | BI105: 0 | BJ105: ja | BK105: 0 | BL105: 0 | BM105: 0 | BN105: 0 | BO105: 0 | BP105: 0 | BQ105: 0 | BR105: 0 | BS105: 0 | BT105: 0 | BU105: 0 | BV105: 0 | BX105: 0 | BY105: 0 | BZ105: 0 | CA105: 0 | CB105: 0 | CD105: 261 | CI105: 0 | CL105: 0
O106: 0 | P106: 0 | Q106: 0 | X106: 0 | Y106: 0 | AA106: 0 | AB106: 0 | AC106: 0 | AD106: 0 | AE106: 0 | AF106: 0 | AG106: 0 | AI106: 0 | AN106: 0 | AP106: 0 | AU106: 0 | AZ106: 0 | BA106: 0 | BB106: 0 | BC106: 0 | BD106: 0 | BE106: 0 | BF106: 0 | BG106: 0 | BH106: 0 | BI106: 0 | BJ106: ja | BK106: 0 | BL106: 0 | BM106: 0 | BN106: 0 | BO106: 0 | BP106: 0 | BQ106: 0 | BR106: 0 | BS106: 0 | BT106: 0 | BU106: 0 | BV106: 0 | BX106: 0 | BY106: 0 | BZ106: 0 | CA106: 0 | CB106: 0 | CD106: 261 | CI106: 0 | CL106: 0
O107: 0 | P107: 0 | Q107: 0 | X107: 0 | Y107: 0 | AA107: 0 | AB107: 0 | AC107: 0 | AD107: 0 | AE107: 0 | AF107: 0 | AG107: 0 | AI107: 0 | AN107: 0 | AP107: 0 | AU107: 0 | AZ107: 0 | BA107: 0 | BB107: 0 | BC107: 0 | BD107: 0 | BE107: 0 | BF107: 0 | BG107: 0 | BH107: 0 | BI107: 0 | BJ107: ja | BK107: 0 | BL107: 0 | BM107: 0 | BN107: 0 | BO107: 0 | BP107: 0 | BQ107: 0 | BR107: 0 | BS107: 0 | BT107: 0 | BU107: 0 | BV107: 0 | BX107: 0 | BY107: 0 | BZ107: 0 | CA107: 0 | CB107: 0 | CD107: 261 | CI107: 0 | CL107: 0
O108: 0 | P108: 0 | Q108: 0 | X108: 0 | Y108: 0 | AA108: 0 | AB108: 0 | AC108: 0 | AD108: 0 | AE108: 0 | AF108: 0 | AG108: 0 | AI108: 0 | AN108: 0 | AP108: 0 | AU108: 0 | AZ108: 0 | BA108: 0 | BB108: 0 | BC108: 0 | BD108: 0 | BE108: 0 | BF108: 0 | BG108: 0 | BH108: 0 | BI108: 0 | BJ108: ja | BK108: 0 | BL108: 0 | BM108: 0 | BN108: 0 | BO108: 0 | BP108: 0 | BQ108: 0 | BR108: 0 | BS108: 0 | BT108: 0 | BU108: 0 | BV108: 0 | BX108: 0 | BY108: 0 | BZ108: 0 | CA108: 0 | CB108: 0 | CD108: 261 | CI108: 0 | CL108: 0
O109: 0 | P109: 0 | Q109: 0 | X109: 0 | Y109: 0 | AA109: 0 | AB109: 0 | AC109: 0 | AD109: 0 | AE109: 0 | AF109: 0 | AG109: 0 | AI109: 0 | AN109: 0 | AP109: 0 | AU109: 0 | AZ109: 0 | BA109: 0 | BB109: 0 | BC109: 0 | BD109: 0 | BE109: 0 | BF109: 0 | BG109: 0 | BH109: 0 | BI109: 0 | BJ109: ja | BK109: 0 | BL109: 0 | BM109: 0 | BN109: 0 | BO109: 0 | BP109: 0 | BQ109: 0 | BR109: 0 | BS109: 0 | BT109: 0 | BU109: 0 | BV109: 0 | BX109: 0 | BY109: 0 | BZ109: 0 | CA109: 0 | CB109: 0 | CD109: 261 | CI109: 0 | CL109: 0
O110: 0 | P110: 0 | Q110: 0 | X110: 0 | Y110: 0 | AA110: 0 | AB110: 0 | AC110: 0 | AD110: 0 | AE110: 0 | AF110: 0 | AG110: 0 | AI110: 0 | AN110: 0 | AP110: 0 | AU110: 0 | AZ110: 0 | BA110: 0 | BB110: 0 | BC110: 0 | BD110: 0 | BE110: 0 | BF110: 0 | BG110: 0 | BH110: 0 | BI110: 0 | BJ110: ja | BK110: 0 | BL110: 0 | BM110: 0 | BN110: 0 | BO110: 0 | BP110: 0 | BQ110: 0 | BR110: 0 | BS110: 0 | BT110: 0 | BU110: 0 | BV110: 0 | BX110: 0 | BY110: 0 | BZ110: 0 | CA110: 0 | CB110: 0 | CD110: 261 | CI110: 0 | CL110: 0
O111: 0 | P111: 0 | Q111: 0 | X111: 0 | Y111: 0 | AA111: 0 | AB111: 0 | AC111: 0 | AD111: 0 | AE111: 0 | AF111: 0 | AG111: 0 | AI111: 0 | AN111: 0 | AP111: 0 | AU111: 0 | AZ111: 0 | BA111: 0 | BB111: 0 | BC111: 0 | BD111: 0 | BE111: 0 | BF111: 0 | BG111: 0 | BH111: 0 | BI111: 0 | BJ111: ja | BK111: 0 | BL111: 0 | BM111: 0 | BN111: 0 | BO111: 0 | BP111: 0 | BQ111: 0 | BR111: 0 | BS111: 0 | BT111: 0 | BU111: 0 | BV111: 0 | BX111: 0 | BY111: 0 | BZ111: 0 | CA111: 0 | CB111: 0 | CD111: 261 | CI111: 0 | CL111: 0
O112: 0 | P112: 0 | Q112: 0 | X112: 0 | Y112: 0 | AA112: 0 | AB112: 0 | AC112: 0 | AD112: 0 | AE112: 0 | AF112: 0 | AG112: 0 | AI112: 0 | AN112: 0 | AP112: 0 | AU112: 0 | AZ112: 0 | BA112: 0 | BB112: 0 | BC112: 0 | BD112: 0 | BE112: 0 | BF112: 0 | BG112: 0 | BH112: 0 | BI112: 0 | BJ112: ja | BK112: 0 | BL112: 0 | BM112: 0 | BN112: 0 | BO112: 0 | BP112: 0 | BQ112: 0 | BR112: 0 | BS112: 0 | BT112: 0 | BU112: 0 | BV112: 0 | BX112: 0 | BY112: 0 | BZ112: 0 | CA112: 0 | CB112: 0 | CD112: 261 | CI112: 0 | CL112: 0
O113: 0 | P113: 0 | Q113: 0 | X113: 0 | Y113: 0 | AA113: 0 | AB113: 0 | AC113: 0 | AD113: 0 | AE113: 0 | AF113: 0 | AG113: 0 | AI113: 0 | AN113: 0 | AP113: 0 | AU113: 0 | AZ113: 0 | BA113: 0 | BB113: 0 | BC113: 0 | BD113: 0 | BE113: 0 | BF113: 0 | BG113: 0 | BH113: 0 | BI113: 0 | BJ113: ja | BK113: 0 | BL113: 0 | BM113: 0 | BN113: 0 | BO113: 0 | BP113: 0 | BQ113: 0 | BR113: 0 | BS113: 0 | BT113: 0 | BU113: 0 | BV113: 0 | BX113: 0 | BY113: 0 | BZ113: 0 | CA113: 0 | CB113: 0 | CD113: 261 | CI113: 0 | CL113: 0
O114: 0 | P114: 0 | Q114: 0 | X114: 0 | Y114: 0 | AA114: 0 | AB114: 0 | AC114: 0 | AD114: 0 | AE114: 0 | AF114: 0 | AG114: 0 | AI114: 0 | AN114: 0 | AP114: 0 | AU114: 0 | AZ114: 0 | BA114: 0 | BB114: 0 | BC114: 0 | BD114: 0 | BE114: 0 | BF114: 0 | BG114: 0 | BH114: 0 | BI114: 0 | BJ114: ja | BK114: 0 | BL114: 0 | BM114: 0 | BN114: 0 | BO114: 0 | BP114: 0 | BQ114: 0 | BR114: 0 | BS114: 0 | BT114: 0 | BU114: 0 | BV114: 0 | BX114: 0 | BY114: 0 | BZ114: 0 | CA114: 0 | CB114: 0 | CD114: 261 | CI114: 0 | CL114: 0
O115: 0 | P115: 0 | Q115: 0 | X115: 0 | Y115: 0 | AA115: 0 | AB115: 0 | AC115: 0 | AD115: 0 | AE115: 0 | AF115: 0 | AG115: 0 | AI115: 0 | AN115: 0 | AP115: 0 | AU115: 0 | AZ115: 0 | BA115: 0 | BB115: 0 | BC115: 0 | BD115: 0 | BE115: 0 | BF115: 0 | BG115: 0 | BH115: 0 | BI115: 0 | BJ115: ja | BK115: 0 | BL115: 0 | BM115: 0 | BN115: 0 | BO115: 0 | BP115: 0 | BQ115: 0 | BR115: 0 | BS115: 0 | BT115: 0 | BU115: 0 | BV115: 0 | BX115: 0 | BY115: 0 | BZ115: 0 | CA115: 0 | CB115: 0 | CD115: 261 | CI115: 0 | CL115: 0
O116: 0 | P116: 0 | Q116: 0 | X116: 0 | Y116: 0 | AA116: 0 | AB116: 0 | AC116: 0 | AD116: 0 | AE116: 0 | AF116: 0 | AG116: 0 | AI116: 0 | AN116: 0 | AP116: 0 | AU116: 0 | AZ116: 0 | BA116: 0 | BB116: 0 | BC116: 0 | BD116: 0 | BE116: 0 | BF116: 0 | BG116: 0 | BH116: 0 | BI116: 0 | BJ116: ja | BK116: 0 | BL116: 0 | BM116: 0 | BN116: 0 | BO116: 0 | BP116: 0 | BQ116: 0 | BR116: 0 | BS116: 0 | BT116: 0 | BU116: 0 | BV116: 0 | BX116: 0 | BY116: 0 | BZ116: 0 | CA116: 0 | CB116: 0 | CD116: 261 | CI116: 0 | CL116: 0
O117: 0 | P117: 0 | Q117: 0 | X117: 0 | Y117: 0 | AA117: 0 | AB117: 0 | AC117: 0 | AD117: 0 | AE117: 0 | AF117: 0 | AG117: 0 | AI117: 0 | AN117: 0 | AP117: 0 | AU117: 0 | AZ117: 0 | BA117: 0 | BB117: 0 | BC117: 0 | BD117: 0 | BE117: 0 | BF117: 0 | BG117: 0 | BH117: 0 | BI117: 0 | BJ117: ja | BK117: 0 | BL117: 0 | BM117: 0 | BN117: 0 | BO117: 0 | BP117: 0 | BQ117: 0 | BR117: 0 | BS117: 0 | BT117: 0 | BU117: 0 | BV117: 0 | BX117: 0 | BY117: 0 | BZ117: 0 | CA117: 0 | CB117: 0 | CD117: 261 | CI117: 0 | CL117: 0
O118: 0 | P118: 0 | Q118: 0 | X118: 0 | Y118: 0 | AA118: 0 | AB118: 0 | AC118: 0 | AD118: 0 | AE118: 0 | AF118: 0 | AG118: 0 | AI118: 0 | AN118: 0 | AP118: 0 | AU118: 0 | AZ118: 0 | BA118: 0 | BB118: 0 | BC118: 0 | BD118: 0 | BE118: 0 | BF118: 0 | BG118: 0 | BH118: 0 | BI118: 0 | BJ118: ja | BK118: 0 | BL118: 0 | BM118: 0 | BN118: 0 | BO118: 0 | BP118: 0 | BQ118: 0 | BR118: 0 | BS118: 0 | BT118: 0 | BU118: 0 | BV118: 0 | BX118: 0 | BY118: 0 | BZ118: 0 | CA118: 0 | CB118: 0 | CD118: 261 | CI118: 0 | CL118: 0
O119: 0 | P119: 0 | Q119: 0 | X119: 0 | Y119: 0 | AA119: 0 | AB119: 0 | AC119: 0 | AD119: 0 | AE119: 0 | AF119: 0 | AG119: 0 | AI119: 0 | AN119: 0 | AP119: 0 | AU119: 0 | AZ119: 0 | BA119: 0 | BB119: 0 | BC119: 0 | BD119: 0 | BE119: 0 | BF119: 0 | BG119: 0 | BH119: 0 | BI119: 0 | BJ119: ja | BK119: 0 | BL119: 0 | BM119: 0 | BN119: 0 | BO119: 0 | BP119: 0 | BQ119: 0 | BR119: 0 | BS119: 0 | BT119: 0 | BU119: 0 | BV119: 0 | BX119: 0 | BY119: 0 | BZ119: 0 | CA119: 0 | CB119: 0 | CD119: 261 | CI119: 0 | CL119: 0
P120: =übertrag -> Übertrag | S120: =SUM(S87:S119) -> 0 | U120: =SUM(U87:U119) -> 0 | Y120: =SUM(Y87:Y119) -> 0 | AC120: =SUM(AC87:AC119) -> 0 | AG120: =SUM(AG87:AG119) -> 0 | AI120: =P120 -> Übertrag | AK120: =SUM(AK87:AK119) -> 0 | AM120: =SUM(AM87:AM119) -> 0 | AN120: =SUM(AN87:AN119) -> 0 | AP120: =AI120 -> Übertrag | AR120: =SUM(AR87:AR119) -> 0 | AT120: =SUM(AT87:AT119) -> 0 | AU120: =SUM(AU87:AU119) -> 0
E121: =StammMA & " 4" -> Stammdaten MitarbeiterInnen Seite 4 | W121: =Abrechnung & " " & KAE_SWE_TEXT & ", " & Seite & " 4, " & MonatVor(StammPeriode2,0, "MMMM YYYY") -> Abrechnung Kurzarbeitsentschädigung, Seite 4, Dezember 2018 | AI121: =E121 -> Stammdaten MitarbeiterInnen Seite 4 | AO121: =AO82 -> Erhebungsbogen Saisonalität - Dezember 2018 - / ABTEILUNG | AT121: =AT82 -> 2020-11-30 | AU121: =AU82 -> 44165.60065
A122: =A$11 -> Name Vorname | B122: AHV-Nummer | C122: Freies Feld, z.B. Personalnummer | D122: Geburtsdatum | E122: Grundlohn (Monatslohn oder Stundenlohn) | F122: Durch- schnittliche wöchentliche Arbeitszeit | G122: =G$11 -> Anzahl Monatslöhne (12, 13, 13.5 etc.) oder Prozentzuschlag gem. GAV | I122: =I$11 -> Gratifikation etc. mit vertraglichem Anspruch | J122: Ferienentschädigung in Tagen oder in Lohnprozenten | L122: =L$11 -> Feiertagsentschädigung in Tagen oder in Lohnprozenten | N122: =N$11 -> SWE-Zuschlag nach GAV in Prozent | O122: Anrechen- barer Stunden- verdienst | P122: =P$11 -> 1 | Q122: =Q$11 -> 2 | R122: =R$11 -> 3 | S122: =S$11 -> 4 | T122: 5 | U122: 6 | W122: =W$11 -> 7 (nur für Gleitzeit) | Y122: =Y$11 -> 8 | Z122: =Z$11 -> 9 | AA122: =AA$11 -> 10 | AB122: =AB$11 -> 11 | AC122: 12 | AD122: 13 | AE122: 14 | AF122: 15 | AG122: 16 | AI122: =AI$11 -> 1 | AJ122: =AJ$11 -> 2 | AK122: 3 | AL122: 4 | AM122: 5 | AN122: 6 | AP122: =AI$44 -> 1 | AQ122: =AJ$44 -> 2 | AR122: =AK$44 -> 3 | AS122: =AL$44 -> 4 | AT122: =AM$44 -> 5 | AU122: =AN$44 -> 6 | AZ122: =R123 -> Vertragliche wöchentl. Arbeitszeit | BA122: Sollstunden Abrechnungs- periode | BB122: Istzeit (tatsächl. Anwesenh.) | BC122: Bezahlte u. unbezahlte Absenzen | BD122: Saldo Ende Periode | BE122: 0 | BF122: Diffe- renz | BK122: =Y123 -> Ausfallstd. Kurzarbeit | BL122: Saldo Mehrstd. Vormonat | BM122: Anrechenbare | BN122: Abzuziehende | BO122: =AA123 -> Saisonale Ausfall- stunden | BP122: Anrech. Ausfall- stunden | BR122: =AC123 -> Verdienst- ausfall | BS122: KAE gemäss Art. 42 ALVG | BU122: =AF123 -> Abzug Karenzzeit | BV122: Beantragte Vergütung
A123: =A$11 -> Name Vorname | B123: =B$12 -> 0 | C123: =B_FF1 -> Freies Feld | D123: =D$11 -> Geburtsdatum | E123: =E$11 -> Grundlohn (Monatslohn oder Stundenlohn) | F123: =F$11 -> Durch- schnittliche wöchentliche Arbeitszeit | G123: =G$12 -> 0 | I123: =I$11 -> Gratifikation etc. mit vertraglichem Anspruch | J123: 0 | L123: =#REF! ->  | O123: 0 | P123: =P$12 -> Name Vorname | Q123: =Q$12 -> Anrechen- barer Stunden- verdienst | R123: =R$12 -> Vertragliche wöchentl. Arbeitszeit | S123: =S$12 -> Sollstunden Abrechnungs- periode | T123: Istzeit (tatsächl. Anwesenh.) | U123: Bezahlte u. unbezahlte Absenzen | V123: =V$12 -> Saldo Ende Periode | X123: =X$12 -> Diffe- renz | Y123: Ausfallstd. Kurzarbeit | Z123: Saldo Mehrstd. Vormonat | AA123: Saisonale Ausfall- stunden | AB123: Anrech. Ausfall- stunden | AC123: Verdienst- ausfall | AD123: =AD$12 -> KAE gemäss Art. 42 ALVG | AE123: Anteil ALV gm. Art. 42 ALVG | AF123: Abzug Karenzzeit | AG123: =AG$12 -> Beantragte Vergütung | AI123: =AI$12 -> Name Vorname | AJ123: =R$45 -> Vertragliche wöchentl. Arbeitszeit | AK123: Sollstunden | AL123: Istzeit | AM123: =AM$12 -> Bezahlte u. unbezahlte Absenzen | AN123: =AN$12 -> Ausfallstd. Kurzarbeit | AP123: =AP$12 -> Name Vorname | AQ123: =AJ$45 -> Vertragliche wöchentl. Arbeitszeit | AR123: =AR$12 -> Sollstunden | AS123: =AS$12 -> Istzeit | AT123: =AT$12 -> Bezahlte u. unbezahlte Absenzen | AU123: =AU$12 -> Ausfallstd. Kurzarbeit | AZ123: 0 | BA123: 0 | BB123: 0 | BC123: 0 | BD123: vorher- gehende | BE123: laufende | BF123: 0 | BK123: 0 | BL123: 0 | BM123: Mehrstd. | BN123: Mehrstunden f. | BO123: 0 | BP123: 0 | BR123: 0 | BS123: 0 | BU123: 0 | BV123: 0 | BX123: Zähler | BY123: Zähler Be- | BZ123: Brutto | CA123: Netto | CB123: Std pro Tag | CD123: Netto | CF123: StdLohn | CG123: Hilfs1 | CK123: Monatslohn | CL123: Monatslohn
A124: =A$13 -> 0 | B124: =B$11 -> AHV-Nummer | C124: =B_FF2 -> z.B. | D124: =D$13 -> 00:00:00 | E124: 0 | F124: 0 | G124: 0 | I124: 0 | J124: 0 | L124: 0 | O124: 0 | V124: =V$13 -> vorher- gehende | W124: =W$13 -> laufende | AK124: =AK$13 -> Dezember | AL124: =AL$13 -> Dezember | AR124: =AR$13 -> Dezember | AS124: =AS$13 -> Dezember | AZ124: 0 | BA124: 0 | BB124: 0 | BC124: 0 | BD124: 0 | BE124: 0 | BF124: 0 | BK124: 0 | BL124: 0 | BM124: Vormonat | BN124: Ausfallberech. | BO124: 0 | BP124: 0 | BR124: 100% | BS124: 80% | BU124: 0 Tage | BV124: KSE | BX124: Betroffene | BY124: zugsberechtigte | BZ124: Stunden | CA124: Stunden | CD124: Tage | CL124: ungekürzt
A125: =A$14 -> 0 | B125: =B$14 -> 0 | C125: =B_FF3 -> Personalnummer | D125: =D$14 -> 00:00:00 | E125: 0 | F125: 0 | G125: Monate | H125: =K$14 -> Prozent | I125: 0 | J125: Tage | K125: =K$14 -> Prozent | L125: Tage | M125: =M$14 -> Prozent | O125: 0 | AC125: =AC$14 -> 100% | AD125: =AD$14 -> 80% | AE125: 60% | AF125: 0 Tage | AG125: KSE | AK125: =AK$14 -> 2017 | AL125: =AL$14 -> 2017 | AR125: =AR$14 -> 2016 | AS125: =AS$14 -> 2016 | AZ125: KL3 | BA125: KL4 | BB125: KL5 | BC125: KL6 | BD125: KL7a | BE125: KL7b | BF125: KL7c | BG125: KL8temp | BH125: Überzeit | BK125: KL8 | BL125: KL9 | BM125: KL9a | BN125: KL9b | BO125: KL10 | BP125: KL11 | BQ125: KL11a | BR125: KL12 | BS125: KL13 | BU125: KL14 | BV125: KL15 | BX125: Mitarbeiter | BY125: Mitarbeiter | BZ125: BrStd | CA125: NetStd | CD125: NetTg | CF125: Resultat | CG125: nichtgekürzt | CK125: Resultat | CL125: LohnMonat
A126: =übertrag -> Übertrag | P126: =übertrag -> Übertrag | S126: =S120 -> 0 | U126: =U120 -> 0 | Y126: =Y120 -> 0 | AC126: =AC120 -> 0 | AG126: =AG120 -> 0 | AI126: =A126 -> Übertrag | AK126: =AK120 -> 0 | AM126: =AM120 -> 0 | AN126: =AN120 -> 0 | AP126: =AI126 -> Übertrag | AR126: =AR120 -> 0 | AT126: =AT120 -> 0 | AU126: =AU120 -> 0
O127: =Q127 -> 0 | P127: =A127 -> 0 | Q127: =ROUND(IF(AnzMonJahr > 11,IF(Lohn > 100,MonLohn,StdLohn),0),2) -> 0 | X127: =KL7c -> 0 | Y127: =_KL8 -> 0 | AA127: =_KL10 -> 0 | AB127: =KL11a -> 0 | AC127: =_KL12 -> 0 | AD127: =_KL13 -> 0 | AE127: =BT126 -> 0 | AF127: =_KL14 -> 0 | AG127: =_KL15 -> 0 | AI127: 0 | AN127: =AK127-AL127-AM127 -> 0 | AP127: =AI127 -> 0 | AU127: =AR127-AS127-AT127 -> 0 | AZ127: =R127 -> 0 | BA127: =S127 -> 0 | BB127: =T127 -> 0 | BC127: =U127 -> 0 | BD127: =V127 -> 0 | BE127: =W127 -> 0 | BF127: =KL7a-KL7b -> 0 | BG127: =ROUND(SUM(_KL4-_KL5-_KL6-KL7c),2) -> 0 | BH127: =IF(KL8temp<0,KL8temp,0) -> 0 | BI127: =_KL3 / 5 * StammMindestausfall -> 0 | BJ127: =IF(KL8temp < Mindestausfall,"nein","ja") -> ja | BK127: =ROUND(IF(KL8temp>0,KL8temp,0),2) -> 0 | BL127: =Z127 -> 0 | BM127: =IF(_KL9>_KL10,_KL9-_KL10,0) -> 0 | BN127: =IF(_KL8-_KL9>0,_KL8-_KL9,0) -> 0 | BO127: =_KL8-_KL11 -> 0 | BP127: =IF(Arbeitsausfall_in_Prozent>0,IF(_KL8>0,ROUND(_KL8/Arbeitsausfall_in_Prozent*RelativerMehrausfall,2),0),0) -> 0 | BQ127: =_KL11-KL9a+Überzeit -> 0 | BR127: =IF(KL8temp < Mindestausfall,IF(KL11a>0,0,0),IF(KL11a<=0,0,ROUND(_KL2*KL11a,2))) -> 0 | BS127: =IF(MindestausfallJaNein="ja",ROUND(K_12*StammAnspruch_in_Prozent/100,2),0) -> 0 | BT127: =IF(MindestausfallJaNein="ja",ROUND(K_12*Entsch_Liechtenstein_in_Prozent/100,2),0) -> 0 | BU127: =IF(MindestausfallJaNein="ja",ROUND(IF(KL11a>0,_KL3/5*_KL2*KZ_V*Entsch_Liechtenstein_in_Prozent/100,0),2),0) -> 0 | BV127: =IF(KL13a-_KL14>=0,ROUND(SUM(KL13a-_KL14)*20,0)/20,0) -> 0 | BX127: =IF(K_15<>0,1,0) -> 0 | BY127: =IF(SollStd<>0,1,0) -> 0 | BZ127: =StdTg*StammJahrestage -> 0 | CA127: =(StdTg*StammJahrestage)-(StdTg*(Fer+Fei)) -> 0 | CB127: =StdWo/5 -> 0 | CD127: =StammJahrestage-Fer-Fei -> 261 | CF127: =IF(Hilfs1 * NetStd/12 > StammVV,StammVV / (NetStd /12 ), Hilfs1) ->  | CG127: =(Lohn + SWEZuschlagBetrag) + ((Lohn + SWEZuschlagBetrag) * ((StammJahrestage /12 * AnzMonJahr) - NetTg) * 100 / NetTg)/100 + Grati/NetStd ->  | CI127: =Lohn * SWEZuschlag -> 0 | CK127: =IF(LohnMon > StammVV,StammVV/(NetStd/12),LohnMon/(NetStd/12)) ->  | CL127: =((Lohn + SWEZuschlagBetrag)*AnzMonJahr/12)+Grati/12 -> 0
O128: =Q128 -> 0 | P128: 0 | Q128: 0 | X128: 0 | Y128: 0 | AA128: 0 | AB128: 0 | AC128: 0 | AD128: 0 | AE128: =BT127 -> 0 | AF128: 0 | AG128: 0 | AI128: 0 | AN128: =AK128-AL128-AM128 -> 0 | AP128: =AI128 -> 0 | AU128: =AR128-AS128-AT128 -> 0 | AZ128: 0 | BA128: 0 | BB128: 0 | BC128: 0 | BD128: 0 | BE128: 0 | BF128: 0 | BG128: 0 | BH128: 0 | BI128: 0 | BJ128: ja | BK128: 0 | BL128: 0 | BM128: 0 | BN128: 0 | BO128: 0 | BP128: 0 | BQ128: 0 | BR128: 0 | BS128: 0 | BT128: 0 | BU128: 0 | BV128: 0 | BX128: 0 | BY128: 0 | BZ128: 0 | CA128: 0 | CB128: 0 | CD128: 261 | CI128: 0 | CL128: 0
O129: 0 | P129: 0 | Q129: 0 | X129: 0 | Y129: 0 | AA129: 0 | AB129: 0 | AC129: 0 | AD129: 0 | AE129: 0 | AF129: 0 | AG129: 0 | AI129: 0 | AN129: 0 | AP129: 0 | AU129: 0 | AZ129: 0 | BA129: 0 | BB129: 0 | BC129: 0 | BD129: 0 | BE129: 0 | BF129: 0 | BG129: 0 | BH129: 0 | BI129: 0 | BJ129: ja | BK129: 0 | BL129: 0 | BM129: 0 | BN129: 0 | BO129: 0 | BP129: 0 | BQ129: 0 | BR129: 0 | BS129: 0 | BT129: 0 | BU129: 0 | BV129: 0 | BX129: 0 | BY129: 0 | BZ129: 0 | CA129: 0 | CB129: 0 | CD129: 261 | CI129: 0 | CL129: 0
O130: 0 | P130: 0 | Q130: 0 | X130: 0 | Y130: 0 | AA130: 0 | AB130: 0 | AC130: 0 | AD130: 0 | AE130: 0 | AF130: 0 | AG130: 0 | AI130: 0 | AN130: 0 | AP130: 0 | AU130: 0 | AZ130: 0 | BA130: 0 | BB130: 0 | BC130: 0 | BD130: 0 | BE130: 0 | BF130: 0 | BG130: 0 | BH130: 0 | BI130: 0 | BJ130: ja | BK130: 0 | BL130: 0 | BM130: 0 | BN130: 0 | BO130: 0 | BP130: 0 | BQ130: 0 | BR130: 0 | BS130: 0 | BT130: 0 | BU130: 0 | BV130: 0 | BX130: 0 | BY130: 0 | BZ130: 0 | CA130: 0 | CB130: 0 | CD130: 261 | CI130: 0 | CL130: 0
O131: 0 | P131: 0 | Q131: 0 | X131: 0 | Y131: 0 | AA131: 0 | AB131: 0 | AC131: 0 | AD131: 0 | AE131: 0 | AF131: 0 | AG131: 0 | AI131: 0 | AN131: 0 | AP131: 0 | AU131: 0 | AZ131: 0 | BA131: 0 | BB131: 0 | BC131: 0 | BD131: 0 | BE131: 0 | BF131: 0 | BG131: 0 | BH131: 0 | BI131: 0 | BJ131: ja | BK131: 0 | BL131: 0 | BM131: 0 | BN131: 0 | BO131: 0 | BP131: 0 | BQ131: 0 | BR131: 0 | BS131: 0 | BT131: 0 | BU131: 0 | BV131: 0 | BX131: 0 | BY131: 0 | BZ131: 0 | CA131: 0 | CB131: 0 | CD131: 261 | CI131: 0 | CL131: 0
O132: 0 | P132: 0 | Q132: 0 | X132: 0 | Y132: 0 | AA132: 0 | AB132: 0 | AC132: 0 | AD132: 0 | AE132: 0 | AF132: 0 | AG132: 0 | AI132: 0 | AN132: 0 | AP132: 0 | AU132: 0 | AZ132: 0 | BA132: 0 | BB132: 0 | BC132: 0 | BD132: 0 | BE132: 0 | BF132: 0 | BG132: 0 | BH132: 0 | BI132: 0 | BJ132: ja | BK132: 0 | BL132: 0 | BM132: 0 | BN132: 0 | BO132: 0 | BP132: 0 | BQ132: 0 | BR132: 0 | BS132: 0 | BT132: 0 | BU132: 0 | BV132: 0 | BX132: 0 | BY132: 0 | BZ132: 0 | CA132: 0 | CB132: 0 | CD132: 261 | CI132: 0 | CL132: 0
O133: 0 | P133: 0 | Q133: 0 | X133: 0 | Y133: 0 | AA133: 0 | AB133: 0 | AC133: 0 | AD133: 0 | AE133: 0 | AF133: 0 | AG133: 0 | AI133: 0 | AN133: 0 | AP133: 0 | AU133: 0 | AZ133: 0 | BA133: 0 | BB133: 0 | BC133: 0 | BD133: 0 | BE133: 0 | BF133: 0 | BG133: 0 | BH133: 0 | BI133: 0 | BJ133: ja | BK133: 0 | BL133: 0 | BM133: 0 | BN133: 0 | BO133: 0 | BP133: 0 | BQ133: 0 | BR133: 0 | BS133: 0 | BT133: 0 | BU133: 0 | BV133: 0 | BX133: 0 | BY133: 0 | BZ133: 0 | CA133: 0 | CB133: 0 | CD133: 261 | CI133: 0 | CL133: 0
O134: 0 | P134: 0 | Q134: 0 | X134: 0 | Y134: 0 | AA134: 0 | AB134: 0 | AC134: 0 | AD134: 0 | AE134: 0 | AF134: 0 | AG134: 0 | AI134: 0 | AN134: 0 | AP134: 0 | AU134: 0 | AZ134: 0 | BA134: 0 | BB134: 0 | BC134: 0 | BD134: 0 | BE134: 0 | BF134: 0 | BG134: 0 | BH134: 0 | BI134: 0 | BJ134: ja | BK134: 0 | BL134: 0 | BM134: 0 | BN134: 0 | BO134: 0 | BP134: 0 | BQ134: 0 | BR134: 0 | BS134: 0 | BT134: 0 | BU134: 0 | BV134: 0 | BX134: 0 | BY134: 0 | BZ134: 0 | CA134: 0 | CB134: 0 | CD134: 261 | CI134: 0 | CL134: 0
O135: 0 | P135: 0 | Q135: 0 | X135: 0 | Y135: 0 | AA135: 0 | AB135: 0 | AC135: 0 | AD135: 0 | AE135: 0 | AF135: 0 | AG135: 0 | AI135: 0 | AN135: 0 | AP135: 0 | AU135: 0 | AZ135: 0 | BA135: 0 | BB135: 0 | BC135: 0 | BD135: 0 | BE135: 0 | BF135: 0 | BG135: 0 | BH135: 0 | BI135: 0 | BJ135: ja | BK135: 0 | BL135: 0 | BM135: 0 | BN135: 0 | BO135: 0 | BP135: 0 | BQ135: 0 | BR135: 0 | BS135: 0 | BT135: 0 | BU135: 0 | BV135: 0 | BX135: 0 | BY135: 0 | BZ135: 0 | CA135: 0 | CB135: 0 | CD135: 261 | CI135: 0 | CL135: 0
O136: 0 | P136: 0 | Q136: 0 | X136: 0 | Y136: 0 | AA136: 0 | AB136: 0 | AC136: 0 | AD136: 0 | AE136: 0 | AF136: 0 | AG136: 0 | AI136: 0 | AN136: 0 | AP136: 0 | AU136: 0 | AZ136: 0 | BA136: 0 | BB136: 0 | BC136: 0 | BD136: 0 | BE136: 0 | BF136: 0 | BG136: 0 | BH136: 0 | BI136: 0 | BJ136: ja | BK136: 0 | BL136: 0 | BM136: 0 | BN136: 0 | BO136: 0 | BP136: 0 | BQ136: 0 | BR136: 0 | BS136: 0 | BT136: 0 | BU136: 0 | BV136: 0 | BX136: 0 | BY136: 0 | BZ136: 0 | CA136: 0 | CB136: 0 | CD136: 261 | CI136: 0 | CL136: 0
O137: 0 | P137: 0 | Q137: 0 | X137: 0 | Y137: 0 | AA137: 0 | AB137: 0 | AC137: 0 | AD137: 0 | AE137: 0 | AF137: 0 | AG137: 0 | AI137: 0 | AN137: 0 | AP137: 0 | AU137: 0 | AZ137: 0 | BA137: 0 | BB137: 0 | BC137: 0 | BD137: 0 | BE137: 0 | BF137: 0 | BG137: 0 | BH137: 0 | BI137: 0 | BJ137: ja | BK137: 0 | BL137: 0 | BM137: 0 | BN137: 0 | BO137: 0 | BP137: 0 | BQ137: 0 | BR137: 0 | BS137: 0 | BT137: 0 | BU137: 0 | BV137: 0 | BX137: 0 | BY137: 0 | BZ137: 0 | CA137: 0 | CB137: 0 | CD137: 261 | CI137: 0 | CL137: 0
O138: 0 | P138: 0 | Q138: 0 | X138: 0 | Y138: 0 | AA138: 0 | AB138: 0 | AC138: 0 | AD138: 0 | AE138: 0 | AF138: 0 | AG138: 0 | AI138: 0 | AN138: 0 | AP138: 0 | AU138: 0 | AZ138: 0 | BA138: 0 | BB138: 0 | BC138: 0 | BD138: 0 | BE138: 0 | BF138: 0 | BG138: 0 | BH138: 0 | BI138: 0 | BJ138: ja | BK138: 0 | BL138: 0 | BM138: 0 | BN138: 0 | BO138: 0 | BP138: 0 | BQ138: 0 | BR138: 0 | BS138: 0 | BT138: 0 | BU138: 0 | BV138: 0 | BX138: 0 | BY138: 0 | BZ138: 0 | CA138: 0 | CB138: 0 | CD138: 261 | CI138: 0 | CL138: 0
O139: 0 | P139: 0 | Q139: 0 | X139: 0 | Y139: 0 | AA139: 0 | AB139: 0 | AC139: 0 | AD139: 0 | AE139: 0 | AF139: 0 | AG139: 0 | AI139: 0 | AN139: 0 | AP139: 0 | AU139: 0 | AZ139: 0 | BA139: 0 | BB139: 0 | BC139: 0 | BD139: 0 | BE139: 0 | BF139: 0 | BG139: 0 | BH139: 0 | BI139: 0 | BJ139: ja | BK139: 0 | BL139: 0 | BM139: 0 | BN139: 0 | BO139: 0 | BP139: 0 | BQ139: 0 | BR139: 0 | BS139: 0 | BT139: 0 | BU139: 0 | BV139: 0 | BX139: 0 | BY139: 0 | BZ139: 0 | CA139: 0 | CB139: 0 | CD139: 261 | CI139: 0 | CL139: 0
O140: 0 | P140: 0 | Q140: 0 | X140: 0 | Y140: 0 | AA140: 0 | AB140: 0 | AC140: 0 | AD140: 0 | AE140: 0 | AF140: 0 | AG140: 0 | AI140: 0 | AN140: 0 | AP140: 0 | AU140: 0 | AZ140: 0 | BA140: 0 | BB140: 0 | BC140: 0 | BD140: 0 | BE140: 0 | BF140: 0 | BG140: 0 | BH140: 0 | BI140: 0 | BJ140: ja | BK140: 0 | BL140: 0 | BM140: 0 | BN140: 0 | BO140: 0 | BP140: 0 | BQ140: 0 | BR140: 0 | BS140: 0 | BT140: 0 | BU140: 0 | BV140: 0 | BX140: 0 | BY140: 0 | BZ140: 0 | CA140: 0 | CB140: 0 | CD140: 261 | CI140: 0 | CL140: 0
O141: 0 | P141: 0 | Q141: 0 | X141: 0 | Y141: 0 | AA141: 0 | AB141: 0 | AC141: 0 | AD141: 0 | AE141: 0 | AF141: 0 | AG141: 0 | AI141: 0 | AN141: 0 | AP141: 0 | AU141: 0 | AZ141: 0 | BA141: 0 | BB141: 0 | BC141: 0 | BD141: 0 | BE141: 0 | BF141: 0 | BG141: 0 | BH141: 0 | BI141: 0 | BJ141: ja | BK141: 0 | BL141: 0 | BM141: 0 | BN141: 0 | BO141: 0 | BP141: 0 | BQ141: 0 | BR141: 0 | BS141: 0 | BT141: 0 | BU141: 0 | BV141: 0 | BX141: 0 | BY141: 0 | BZ141: 0 | CA141: 0 | CB141: 0 | CD141: 261 | CI141: 0 | CL141: 0
O142: 0 | P142: 0 | Q142: 0 | X142: 0 | Y142: 0 | AA142: 0 | AB142: 0 | AC142: 0 | AD142: 0 | AE142: 0 | AF142: 0 | AG142: 0 | AI142: 0 | AN142: 0 | AP142: 0 | AU142: 0 | AZ142: 0 | BA142: 0 | BB142: 0 | BC142: 0 | BD142: 0 | BE142: 0 | BF142: 0 | BG142: 0 | BH142: 0 | BI142: 0 | BJ142: ja | BK142: 0 | BL142: 0 | BM142: 0 | BN142: 0 | BO142: 0 | BP142: 0 | BQ142: 0 | BR142: 0 | BS142: 0 | BT142: 0 | BU142: 0 | BV142: 0 | BX142: 0 | BY142: 0 | BZ142: 0 | CA142: 0 | CB142: 0 | CD142: 261 | CI142: 0 | CL142: 0
O143: 0 | P143: 0 | Q143: 0 | X143: 0 | Y143: 0 | AA143: 0 | AB143: 0 | AC143: 0 | AD143: 0 | AE143: 0 | AF143: 0 | AG143: 0 | AI143: 0 | AN143: 0 | AP143: 0 | AU143: 0 | AZ143: 0 | BA143: 0 | BB143: 0 | BC143: 0 | BD143: 0 | BE143: 0 | BF143: 0 | BG143: 0 | BH143: 0 | BI143: 0 | BJ143: ja | BK143: 0 | BL143: 0 | BM143: 0 | BN143: 0 | BO143: 0 | BP143: 0 | BQ143: 0 | BR143: 0 | BS143: 0 | BT143: 0 | BU143: 0 | BV143: 0 | BX143: 0 | BY143: 0 | BZ143: 0 | CA143: 0 | CB143: 0 | CD143: 261 | CI143: 0 | CL143: 0
O144: 0 | P144: 0 | Q144: 0 | X144: 0 | Y144: 0 | AA144: 0 | AB144: 0 | AC144: 0 | AD144: 0 | AE144: 0 | AF144: 0 | AG144: 0 | AI144: 0 | AN144: 0 | AP144: 0 | AU144: 0 | AZ144: 0 | BA144: 0 | BB144: 0 | BC144: 0 | BD144: 0 | BE144: 0 | BF144: 0 | BG144: 0 | BH144: 0 | BI144: 0 | BJ144: ja | BK144: 0 | BL144: 0 | BM144: 0 | BN144: 0 | BO144: 0 | BP144: 0 | BQ144: 0 | BR144: 0 | BS144: 0 | BT144: 0 | BU144: 0 | BV144: 0 | BX144: 0 | BY144: 0 | BZ144: 0 | CA144: 0 | CB144: 0 | CD144: 261 | CI144: 0 | CL144: 0
O145: 0 | P145: 0 | Q145: 0 | X145: 0 | Y145: 0 | AA145: 0 | AB145: 0 | AC145: 0 | AD145: 0 | AE145: 0 | AF145: 0 | AG145: 0 | AI145: 0 | AN145: 0 | AP145: 0 | AU145: 0 | AZ145: 0 | BA145: 0 | BB145: 0 | BC145: 0 | BD145: 0 | BE145: 0 | BF145: 0 | BG145: 0 | BH145: 0 | BI145: 0 | BJ145: ja | BK145: 0 | BL145: 0 | BM145: 0 | BN145: 0 | BO145: 0 | BP145: 0 | BQ145: 0 | BR145: 0 | BS145: 0 | BT145: 0 | BU145: 0 | BV145: 0 | BX145: 0 | BY145: 0 | BZ145: 0 | CA145: 0 | CB145: 0 | CD145: 261 | CI145: 0 | CL145: 0
O146: 0 | P146: 0 | Q146: 0 | X146: 0 | Y146: 0 | AA146: 0 | AB146: 0 | AC146: 0 | AD146: 0 | AE146: 0 | AF146: 0 | AG146: 0 | AI146: 0 | AN146: 0 | AP146: 0 | AU146: 0 | AZ146: 0 | BA146: 0 | BB146: 0 | BC146: 0 | BD146: 0 | BE146: 0 | BF146: 0 | BG146: 0 | BH146: 0 | BI146: 0 | BJ146: ja | BK146: 0 | BL146: 0 | BM146: 0 | BN146: 0 | BO146: 0 | BP146: 0 | BQ146: 0 | BR146: 0 | BS146: 0 | BT146: 0 | BU146: 0 | BV146: 0 | BX146: 0 | BY146: 0 | BZ146: 0 | CA146: 0 | CB146: 0 | CD146: 261 | CI146: 0 | CL146: 0
O147: 0 | P147: 0 | Q147: 0 | X147: 0 | Y147: 0 | AA147: 0 | AB147: 0 | AC147: 0 | AD147: 0 | AE147: 0 | AF147: 0 | AG147: 0 | AI147: 0 | AN147: 0 | AP147: 0 | AU147: 0 | AZ147: 0 | BA147: 0 | BB147: 0 | BC147: 0 | BD147: 0 | BE147: 0 | BF147: 0 | BG147: 0 | BH147: 0 | BI147: 0 | BJ147: ja | BK147: 0 | BL147: 0 | BM147: 0 | BN147: 0 | BO147: 0 | BP147: 0 | BQ147: 0 | BR147: 0 | BS147: 0 | BT147: 0 | BU147: 0 | BV147: 0 | BX147: 0 | BY147: 0 | BZ147: 0 | CA147: 0 | CB147: 0 | CD147: 261 | CI147: 0 | CL147: 0
O148: 0 | P148: 0 | Q148: 0 | X148: 0 | Y148: 0 | AA148: 0 | AB148: 0 | AC148: 0 | AD148: 0 | AE148: 0 | AF148: 0 | AG148: 0 | AI148: 0 | AN148: 0 | AP148: 0 | AU148: 0 | AZ148: 0 | BA148: 0 | BB148: 0 | BC148: 0 | BD148: 0 | BE148: 0 | BF148: 0 | BG148: 0 | BH148: 0 | BI148: 0 | BJ148: ja | BK148: 0 | BL148: 0 | BM148: 0 | BN148: 0 | BO148: 0 | BP148: 0 | BQ148: 0 | BR148: 0 | BS148: 0 | BT148: 0 | BU148: 0 | BV148: 0 | BX148: 0 | BY148: 0 | BZ148: 0 | CA148: 0 | CB148: 0 | CD148: 261 | CI148: 0 | CL148: 0
O149: 0 | P149: 0 | Q149: 0 | X149: 0 | Y149: 0 | AA149: 0 | AB149: 0 | AC149: 0 | AD149: 0 | AE149: 0 | AF149: 0 | AG149: 0 | AI149: 0 | AN149: 0 | AP149: 0 | AU149: 0 | AZ149: 0 | BA149: 0 | BB149: 0 | BC149: 0 | BD149: 0 | BE149: 0 | BF149: 0 | BG149: 0 | BH149: 0 | BI149: 0 | BJ149: ja | BK149: 0 | BL149: 0 | BM149: 0 | BN149: 0 | BO149: 0 | BP149: 0 | BQ149: 0 | BR149: 0 | BS149: 0 | BT149: 0 | BU149: 0 | BV149: 0 | BX149: 0 | BY149: 0 | BZ149: 0 | CA149: 0 | CB149: 0 | CD149: 261 | CI149: 0 | CL149: 0
O150: 0 | P150: 0 | Q150: 0 | X150: 0 | Y150: 0 | AA150: 0 | AB150: 0 | AC150: 0 | AD150: 0 | AE150: 0 | AF150: 0 | AG150: 0 | AI150: 0 | AN150: 0 | AP150: 0 | AU150: 0 | AZ150: 0 | BA150: 0 | BB150: 0 | BC150: 0 | BD150: 0 | BE150: 0 | BF150: 0 | BG150: 0 | BH150: 0 | BI150: 0 | BJ150: ja | BK150: 0 | BL150: 0 | BM150: 0 | BN150: 0 | BO150: 0 | BP150: 0 | BQ150: 0 | BR150: 0 | BS150: 0 | BT150: 0 | BU150: 0 | BV150: 0 | BX150: 0 | BY150: 0 | BZ150: 0 | CA150: 0 | CB150: 0 | CD150: 261 | CI150: 0 | CL150: 0
O151: 0 | P151: 0 | Q151: 0 | X151: 0 | Y151: 0 | AA151: 0 | AB151: 0 | AC151: 0 | AD151: 0 | AE151: 0 | AF151: 0 | AG151: 0 | AI151: 0 | AN151: 0 | AP151: 0 | AU151: 0 | AZ151: 0 | BA151: 0 | BB151: 0 | BC151: 0 | BD151: 0 | BE151: 0 | BF151: 0 | BG151: 0 | BH151: 0 | BI151: 0 | BJ151: ja | BK151: 0 | BL151: 0 | BM151: 0 | BN151: 0 | BO151: 0 | BP151: 0 | BQ151: 0 | BR151: 0 | BS151: 0 | BT151: 0 | BU151: 0 | BV151: 0 | BX151: 0 | BY151: 0 | BZ151: 0 | CA151: 0 | CB151: 0 | CD151: 261 | CI151: 0 | CL151: 0
O152: 0 | P152: 0 | Q152: 0 | X152: 0 | Y152: 0 | AA152: 0 | AB152: 0 | AC152: 0 | AD152: 0 | AE152: 0 | AF152: 0 | AG152: 0 | AI152: 0 | AN152: 0 | AP152: 0 | AU152: 0 | AZ152: 0 | BA152: 0 | BB152: 0 | BC152: 0 | BD152: 0 | BE152: 0 | BF152: 0 | BG152: 0 | BH152: 0 | BI152: 0 | BJ152: ja | BK152: 0 | BL152: 0 | BM152: 0 | BN152: 0 | BO152: 0 | BP152: 0 | BQ152: 0 | BR152: 0 | BS152: 0 | BT152: 0 | BU152: 0 | BV152: 0 | BX152: 0 | BY152: 0 | BZ152: 0 | CA152: 0 | CB152: 0 | CD152: 261 | CI152: 0 | CL152: 0
O153: 0 | P153: 0 | Q153: 0 | X153: 0 | Y153: 0 | AA153: 0 | AB153: 0 | AC153: 0 | AD153: 0 | AE153: 0 | AF153: 0 | AG153: 0 | AI153: 0 | AN153: 0 | AP153: 0 | AU153: 0 | AZ153: 0 | BA153: 0 | BB153: 0 | BC153: 0 | BD153: 0 | BE153: 0 | BF153: 0 | BG153: 0 | BH153: 0 | BI153: 0 | BJ153: ja | BK153: 0 | BL153: 0 | BM153: 0 | BN153: 0 | BO153: 0 | BP153: 0 | BQ153: 0 | BR153: 0 | BS153: 0 | BT153: 0 | BU153: 0 | BV153: 0 | BX153: 0 | BY153: 0 | BZ153: 0 | CA153: 0 | CB153: 0 | CD153: 261 | CI153: 0 | CL153: 0
O154: 0 | P154: 0 | Q154: 0 | X154: 0 | Y154: 0 | AA154: 0 | AB154: 0 | AC154: 0 | AD154: 0 | AE154: 0 | AF154: 0 | AG154: 0 | AI154: 0 | AN154: 0 | AP154: 0 | AU154: 0 | AZ154: 0 | BA154: 0 | BB154: 0 | BC154: 0 | BD154: 0 | BE154: 0 | BF154: 0 | BG154: 0 | BH154: 0 | BI154: 0 | BJ154: ja | BK154: 0 | BL154: 0 | BM154: 0 | BN154: 0 | BO154: 0 | BP154: 0 | BQ154: 0 | BR154: 0 | BS154: 0 | BT154: 0 | BU154: 0 | BV154: 0 | BX154: 0 | BY154: 0 | BZ154: 0 | CA154: 0 | CB154: 0 | CD154: 261 | CI154: 0 | CL154: 0
O155: 0 | P155: 0 | Q155: 0 | X155: 0 | Y155: 0 | AA155: 0 | AB155: 0 | AC155: 0 | AD155: 0 | AE155: 0 | AF155: 0 | AG155: 0 | AI155: 0 | AN155: 0 | AP155: 0 | AU155: 0 | AZ155: 0 | BA155: 0 | BB155: 0 | BC155: 0 | BD155: 0 | BE155: 0 | BF155: 0 | BG155: 0 | BH155: 0 | BI155: 0 | BJ155: ja | BK155: 0 | BL155: 0 | BM155: 0 | BN155: 0 | BO155: 0 | BP155: 0 | BQ155: 0 | BR155: 0 | BS155: 0 | BT155: 0 | BU155: 0 | BV155: 0 | BX155: 0 | BY155: 0 | BZ155: 0 | CA155: 0 | CB155: 0 | CD155: 261 | CI155: 0 | CL155: 0
O156: 0 | P156: 0 | Q156: 0 | X156: 0 | Y156: 0 | AA156: 0 | AB156: 0 | AC156: 0 | AD156: 0 | AE156: 0 | AF156: 0 | AG156: 0 | AI156: 0 | AN156: 0 | AP156: 0 | AU156: 0 | AZ156: 0 | BA156: 0 | BB156: 0 | BC156: 0 | BD156: 0 | BE156: 0 | BF156: 0 | BG156: 0 | BH156: 0 | BI156: 0 | BJ156: ja | BK156: 0 | BL156: 0 | BM156: 0 | BN156: 0 | BO156: 0 | BP156: 0 | BQ156: 0 | BR156: 0 | BS156: 0 | BT156: 0 | BU156: 0 | BV156: 0 | BX156: 0 | BY156: 0 | BZ156: 0 | CA156: 0 | CB156: 0 | CD156: 261 | CI156: 0 | CL156: 0
O157: 0 | P157: 0 | Q157: 0 | X157: 0 | Y157: 0 | AA157: 0 | AB157: 0 | AC157: 0 | AD157: 0 | AE157: 0 | AF157: 0 | AG157: 0 | AI157: 0 | AN157: 0 | AP157: 0 | AU157: 0 | AZ157: 0 | BA157: 0 | BB157: 0 | BC157: 0 | BD157: 0 | BE157: 0 | BF157: 0 | BG157: 0 | BH157: 0 | BI157: 0 | BJ157: ja | BK157: 0 | BL157: 0 | BM157: 0 | BN157: 0 | BO157: 0 | BP157: 0 | BQ157: 0 | BR157: 0 | BS157: 0 | BT157: 0 | BU157: 0 | BV157: 0 | BX157: 0 | BY157: 0 | BZ157: 0 | CA157: 0 | CB157: 0 | CD157: 261 | CI157: 0 | CL157: 0
O158: 0 | P158: 0 | Q158: 0 | X158: 0 | Y158: 0 | AA158: 0 | AB158: 0 | AC158: 0 | AD158: 0 | AE158: 0 | AF158: 0 | AG158: 0 | AI158: 0 | AN158: 0 | AP158: 0 | AU158: 0 | AZ158: 0 | BA158: 0 | BB158: 0 | BC158: 0 | BD158: 0 | BE158: 0 | BF158: 0 | BG158: 0 | BH158: 0 | BI158: 0 | BJ158: ja | BK158: 0 | BL158: 0 | BM158: 0 | BN158: 0 | BO158: 0 | BP158: 0 | BQ158: 0 | BR158: 0 | BS158: 0 | BT158: 0 | BU158: 0 | BV158: 0 | BX158: 0 | BY158: 0 | BZ158: 0 | CA158: 0 | CB158: 0 | CD158: 261 | CI158: 0 | CL158: 0
P159: =übertrag -> Übertrag | S159: =SUM(S126:S158) -> 0 | U159: =SUM(U126:U158) -> 0 | Y159: =SUM(Y126:Y158) -> 0 | AC159: =SUM(AC126:AC158) -> 0 | AG159: =SUM(AG126:AG158) -> 0 | AI159: =P159 -> Übertrag | AK159: =SUM(AK126:AK158) -> 0 | AM159: =SUM(AM126:AM158) -> 0 | AN159: =SUM(AN126:AN158) -> 0 | AP159: =AI159 -> Übertrag | AR159: =SUM(AR126:AR158) -> 0 | AT159: =SUM(AT126:AT158) -> 0 | AU159: =SUM(AU126:AU158) -> 0
E160: =StammMA & " 5" -> Stammdaten MitarbeiterInnen Seite 5 | W160: =Abrechnung & " " & KAE_SWE_TEXT & ", " & Seite & " 5, " & MonatVor(StammPeriode2,0, "MMMM YYYY") -> Abrechnung Kurzarbeitsentschädigung, Seite 5, Dezember 2018 | AI160: =E160 -> Stammdaten MitarbeiterInnen Seite 5 | AO160: =AO121 -> Erhebungsbogen Saisonalität - Dezember 2018 - / ABTEILUNG | AT160: =AT121 -> 2020-11-30 | AU160: =AU121 -> 44165.60065
A161: =A$11 -> Name Vorname | B161: AHV-Nummer | C161: Freies Feld, z.B. Personalnummer | D161: Geburtsdatum | E161: Grundlohn (Monatslohn oder Stundenlohn) | F161: Durch- schnittliche wöchentliche Arbeitszeit | G161: =G$11 -> Anzahl Monatslöhne (12, 13, 13.5 etc.) oder Prozentzuschlag gem. GAV | I161: =I$11 -> Gratifikation etc. mit vertraglichem Anspruch | J161: Ferienentschädigung in Tagen oder in Lohnprozenten | L161: =L$11 -> Feiertagsentschädigung in Tagen oder in Lohnprozenten | N161: =N$11 -> SWE-Zuschlag nach GAV in Prozent | O161: Anrechen- barer Stunden- verdienst | P161: =P$11 -> 1 | Q161: =Q$11 -> 2 | R161: =R$11 -> 3 | S161: =S$11 -> 4 | T161: 5 | U161: 6 | W161: =W$11 -> 7 (nur für Gleitzeit) | Y161: =Y$11 -> 8 | Z161: =Z$11 -> 9 | AA161: =AA$11 -> 10 | AB161: =AB$11 -> 11 | AC161: 12 | AD161: 13 | AE161: 14 | AF161: 15 | AG161: 16 | AI161: =AI$11 -> 1 | AJ161: =AJ$11 -> 2 | AK161: 3 | AL161: 4 | AM161: 5 | AN161: 6 | AP161: =AI$44 -> 1 | AQ161: =AJ$44 -> 2 | AR161: =AK$44 -> 3 | AS161: =AL$44 -> 4 | AT161: =AM$44 -> 5 | AU161: =AN$44 -> 6 | AZ161: =R162 -> Vertragliche wöchentl. Arbeitszeit | BA161: Sollstunden Abrechnungs- periode | BB161: Istzeit (tatsächl. Anwesenh.) | BC161: Bezahlte u. unbezahlte Absenzen | BD161: Saldo Ende Periode | BE161: 0 | BF161: Diffe- renz | BK161: =Y162 -> Ausfallstd. Kurzarbeit | BL161: Saldo Mehrstd. Vormonat | BM161: Anrechenbare | BN161: Abzuziehende | BO161: =AA162 -> Saisonale Ausfall- stunden | BP161: Anrech. Ausfall- stunden | BR161: =AC162 -> Verdienst- ausfall | BS161: KAE gemäss Art. 42 ALVG | BU161: =AF162 -> Abzug Karenzzeit | BV161: Beantragte Vergütung
A162: =A$11 -> Name Vorname | B162: =B$12 -> 0 | C162: =B_FF1 -> Freies Feld | D162: =D$11 -> Geburtsdatum | E162: =E$11 -> Grundlohn (Monatslohn oder Stundenlohn) | F162: =F$11 -> Durch- schnittliche wöchentliche Arbeitszeit | G162: =G$12 -> 0 | I162: =I$11 -> Gratifikation etc. mit vertraglichem Anspruch | J162: 0 | L162: =#REF! ->  | O162: 0 | P162: =P$12 -> Name Vorname | Q162: =Q$12 -> Anrechen- barer Stunden- verdienst | R162: =R$12 -> Vertragliche wöchentl. Arbeitszeit | S162: =S$12 -> Sollstunden Abrechnungs- periode | T162: Istzeit (tatsächl. Anwesenh.) | U162: Bezahlte u. unbezahlte Absenzen | V162: =V$12 -> Saldo Ende Periode | X162: =X$12 -> Diffe- renz | Y162: Ausfallstd. Kurzarbeit | Z162: Saldo Mehrstd. Vormonat | AA162: Saisonale Ausfall- stunden | AB162: Anrech. Ausfall- stunden | AC162: Verdienst- ausfall | AD162: =AD$12 -> KAE gemäss Art. 42 ALVG | AE162: Anteil ALV gm. Art. 42 ALVG | AF162: Abzug Karenzzeit | AG162: =AG$12 -> Beantragte Vergütung | AI162: =AI$12 -> Name Vorname | AJ162: =R$45 -> Vertragliche wöchentl. Arbeitszeit | AK162: Sollstunden | AL162: Istzeit | AM162: =AM$12 -> Bezahlte u. unbezahlte Absenzen | AN162: =AN$12 -> Ausfallstd. Kurzarbeit | AP162: =AP$12 -> Name Vorname | AQ162: =AJ$45 -> Vertragliche wöchentl. Arbeitszeit | AR162: =AR$12 -> Sollstunden | AS162: =AS$12 -> Istzeit | AT162: =AT$12 -> Bezahlte u. unbezahlte Absenzen | AU162: =AU$12 -> Ausfallstd. Kurzarbeit | AZ162: 0 | BA162: 0 | BB162: 0 | BC162: 0 | BD162: vorher- gehende | BE162: laufende | BF162: 0 | BK162: 0 | BL162: 0 | BM162: Mehrstd. | BN162: Mehrstunden f. | BO162: 0 | BP162: 0 | BR162: 0 | BS162: 0 | BU162: 0 | BV162: 0 | BX162: Zähler | BY162: Zähler Be- | BZ162: Brutto | CA162: Netto | CB162: Std pro Tag | CD162: Netto | CF162: StdLohn | CG162: Hilfs1 | CK162: Monatslohn | CL162: Monatslohn
A163: =A$13 -> 0 | B163: =B$11 -> AHV-Nummer | C163: =B_FF2 -> z.B. | D163: =D$13 -> 00:00:00 | E163: 0 | F163: 0 | G163: 0 | I163: 0 | J163: 0 | L163: 0 | O163: 0 | V163: =V$13 -> vorher- gehende | W163: =W$13 -> laufende | AK163: =AK$13 -> Dezember | AL163: =AL$13 -> Dezember | AR163: =AR$13 -> Dezember | AS163: =AS$13 -> Dezember | AZ163: 0 | BA163: 0 | BB163: 0 | BC163: 0 | BD163: 0 | BE163: 0 | BF163: 0 | BK163: 0 | BL163: 0 | BM163: Vormonat | BN163: Ausfallberech. | BO163: 0 | BP163: 0 | BR163: 100% | BS163: 80% | BU163: 0 Tage | BV163: KSE | BX163: Betroffene | BY163: zugsberechtigte | BZ163: Stunden | CA163: Stunden | CD163: Tage | CL163: ungekürzt
A164: =A$14 -> 0 | B164: =B$14 -> 0 | C164: =B_FF3 -> Personalnummer | D164: =D$14 -> 00:00:00 | E164: 0 | F164: 0 | G164: Monate | H164: =K$14 -> Prozent | I164: 0 | J164: Tage | K164: =K$14 -> Prozent | L164: Tage | M164: =M$14 -> Prozent | O164: 0 | AC164: =AC$14 -> 100% | AD164: =AD$14 -> 80% | AE164: 60% | AF164: 0 Tage | AG164: KSE | AK164: =AK$14 -> 2017 | AL164: =AL$14 -> 2017 | AR164: =AR$14 -> 2016 | AS164: =AS$14 -> 2016 | AZ164: KL3 | BA164: KL4 | BB164: KL5 | BC164: KL6 | BD164: KL7a | BE164: KL7b | BF164: KL7c | BG164: KL8temp | BH164: Überzeit | BK164: KL8 | BL164: KL9 | BM164: KL9a | BN164: KL9b | BO164: KL10 | BP164: KL11 | BQ164: KL11a | BR164: KL12 | BS164: KL13 | BU164: KL14 | BV164: KL15 | BX164: Mitarbeiter | BY164: Mitarbeiter | BZ164: BrStd | CA164: NetStd | CD164: NetTg | CF164: Resultat | CG164: nichtgekürzt | CK164: Resultat | CL164: LohnMonat
A165: =übertrag -> Übertrag | P165: =A165 -> Übertrag | S165: =S159 -> 0 | U165: =U159 -> 0 | Y165: =Y159 -> 0 | AC165: =AC159 -> 0 | AG165: =AG159 -> 0 | AI165: =A165 -> Übertrag | AK165: =AK159 -> 0 | AM165: =AM159 -> 0 | AN165: =AN159 -> 0 | AP165: =AI165 -> Übertrag | AR165: =AR159 -> 0 | AT165: =AT159 -> 0 | AU165: =AU159 -> 0
O166: =Q166 -> 0 | P166: 0 | Q166: =ROUND(IF(AnzMonJahr > 11,IF(Lohn > 100,MonLohn,StdLohn),0),2) -> 0 | X166: =KL7c -> 0 | Y166: =_KL8 -> 0 | AA166: =_KL10 -> 0 | AB166: =KL11a -> 0 | AC166: =_KL12 -> 0 | AD166: =_KL13 -> 0 | AE166: =BT165 -> 0 | AF166: =_KL14 -> 0 | AG166: =_KL15 -> 0 | AI166: 0 | AN166: =AK166-AL166-AM166 -> 0 | AP166: =AI166 -> 0 | AU166: =AR166-AS166-AT166 -> 0 | AZ166: =R166 -> 0 | BA166: =S166 -> 0 | BB166: =T166 -> 0 | BC166: =U166 -> 0 | BD166: =V166 -> 0 | BE166: =W166 -> 0 | BF166: =KL7a-KL7b -> 0 | BG166: =ROUND(SUM(_KL4-_KL5-_KL6-KL7c),2) -> 0 | BH166: =IF(KL8temp<0,KL8temp,0) -> 0 | BI166: =_KL3 / 5 * StammMindestausfall -> 0 | BJ166: =IF(KL8temp < Mindestausfall,"nein","ja") -> ja | BK166: =ROUND(IF(KL8temp>0,KL8temp,0),2) -> 0 | BL166: =Z166 -> 0 | BM166: =IF(_KL9>_KL10,_KL9-_KL10,0) -> 0 | BN166: =IF(_KL8-_KL9>0,_KL8-_KL9,0) -> 0 | BO166: =_KL8-_KL11 -> 0 | BP166: =IF(Arbeitsausfall_in_Prozent>0,IF(_KL8>0,ROUND(_KL8/Arbeitsausfall_in_Prozent*RelativerMehrausfall,2),0),0) -> 0 | BQ166: =_KL11-KL9a+Überzeit -> 0 | BR166: =IF(KL8temp < Mindestausfall,IF(KL11a>0,0,0),IF(KL11a<=0,0,ROUND(_KL2*KL11a,2))) -> 0 | BS166: =IF(MindestausfallJaNein="ja",ROUND(K_12*StammAnspruch_in_Prozent/100,2),0) -> 0 | BT166: =IF(MindestausfallJaNein="ja",ROUND(K_12*Entsch_Liechtenstein_in_Prozent/100,2),0) -> 0 | BU166: =IF(MindestausfallJaNein="ja",ROUND(IF(KL11a>0,_KL3/5*_KL2*KZ_V*Entsch_Liechtenstein_in_Prozent/100,0),2),0) -> 0 | BV166: =IF(KL13a-_KL14>=0,ROUND(SUM(KL13a-_KL14)*20,0)/20,0) -> 0 | BX166: =IF(K_15<>0,1,0) -> 0 | BY166: =IF(SollStd<>0,1,0) -> 0 | BZ166: =StdTg*StammJahrestage -> 0 | CA166: =(StdTg*StammJahrestage)-(StdTg*(Fer+Fei)) -> 0 | CB166: =StdWo/5 -> 0 | CD166: =StammJahrestage-Fer-Fei -> 261 | CF166: =IF(Hilfs1 * NetStd/12 > StammVV,StammVV / (NetStd /12 ), Hilfs1) ->  | CG166: =(Lohn + SWEZuschlagBetrag) + ((Lohn + SWEZuschlagBetrag) * ((StammJahrestage /12 * AnzMonJahr) - NetTg) * 100 / NetTg)/100 + Grati/NetStd ->  | CI166: =Lohn * SWEZuschlag -> 0 | CK166: =IF(LohnMon > StammVV,StammVV/(NetStd/12),LohnMon/(NetStd/12)) ->  | CL166: =((Lohn + SWEZuschlagBetrag)*AnzMonJahr/12)+Grati/12 -> 0
O167: =Q167 -> 0 | P167: 0 | Q167: 0 | X167: 0 | Y167: 0 | AA167: 0 | AB167: 0 | AC167: 0 | AD167: 0 | AE167: =BT166 -> 0 | AF167: 0 | AG167: 0 | AI167: 0 | AN167: =AK167-AL167-AM167 -> 0 | AP167: =AI167 -> 0 | AU167: =AR167-AS167-AT167 -> 0 | AZ167: 0 | BA167: 0 | BB167: 0 | BC167: 0 | BD167: 0 | BE167: 0 | BF167: 0 | BG167: 0 | BH167: 0 | BI167: 0 | BJ167: ja | BK167: 0 | BL167: 0 | BM167: 0 | BN167: 0 | BO167: 0 | BP167: 0 | BQ167: 0 | BR167: 0 | BS167: 0 | BT167: 0 | BU167: 0 | BV167: 0 | BX167: 0 | BY167: 0 | BZ167: 0 | CA167: 0 | CB167: 0 | CD167: 261 | CI167: 0 | CL167: 0
O168: 0 | P168: 0 | Q168: 0 | X168: 0 | Y168: 0 | AA168: 0 | AB168: 0 | AC168: 0 | AD168: 0 | AE168: 0 | AF168: 0 | AG168: 0 | AI168: 0 | AN168: 0 | AP168: 0 | AU168: 0 | AZ168: 0 | BA168: 0 | BB168: 0 | BC168: 0 | BD168: 0 | BE168: 0 | BF168: 0 | BG168: 0 | BH168: 0 | BI168: 0 | BJ168: ja | BK168: 0 | BL168: 0 | BM168: 0 | BN168: 0 | BO168: 0 | BP168: 0 | BQ168: 0 | BR168: 0 | BS168: 0 | BT168: 0 | BU168: 0 | BV168: 0 | BX168: 0 | BY168: 0 | BZ168: 0 | CA168: 0 | CB168: 0 | CD168: 261 | CI168: 0 | CL168: 0
O169: 0 | P169: 0 | Q169: 0 | X169: 0 | Y169: 0 | AA169: 0 | AB169: 0 | AC169: 0 | AD169: 0 | AE169: 0 | AF169: 0 | AG169: 0 | AI169: 0 | AN169: 0 | AP169: 0 | AU169: 0 | AZ169: 0 | BA169: 0 | BB169: 0 | BC169: 0 | BD169: 0 | BE169: 0 | BF169: 0 | BG169: 0 | BH169: 0 | BI169: 0 | BJ169: ja | BK169: 0 | BL169: 0 | BM169: 0 | BN169: 0 | BO169: 0 | BP169: 0 | BQ169: 0 | BR169: 0 | BS169: 0 | BT169: 0 | BU169: 0 | BV169: 0 | BX169: 0 | BY169: 0 | BZ169: 0 | CA169: 0 | CB169: 0 | CD169: 261 | CI169: 0 | CL169: 0
O170: 0 | P170: 0 | Q170: 0 | X170: 0 | Y170: 0 | AA170: 0 | AB170: 0 | AC170: 0 | AD170: 0 | AE170: 0 | AF170: 0 | AG170: 0 | AI170: 0 | AN170: 0 | AP170: 0 | AU170: 0 | AZ170: 0 | BA170: 0 | BB170: 0 | BC170: 0 | BD170: 0 | BE170: 0 | BF170: 0 | BG170: 0 | BH170: 0 | BI170: 0 | BJ170: ja | BK170: 0 | BL170: 0 | BM170: 0 | BN170: 0 | BO170: 0 | BP170: 0 | BQ170: 0 | BR170: 0 | BS170: 0 | BT170: 0 | BU170: 0 | BV170: 0 | BX170: 0 | BY170: 0 | BZ170: 0 | CA170: 0 | CB170: 0 | CD170: 261 | CI170: 0 | CL170: 0
O171: 0 | P171: 0 | Q171: 0 | X171: 0 | Y171: 0 | AA171: 0 | AB171: 0 | AC171: 0 | AD171: 0 | AE171: 0 | AF171: 0 | AG171: 0 | AI171: 0 | AN171: 0 | AP171: 0 | AU171: 0 | AZ171: 0 | BA171: 0 | BB171: 0 | BC171: 0 | BD171: 0 | BE171: 0 | BF171: 0 | BG171: 0 | BH171: 0 | BI171: 0 | BJ171: ja | BK171: 0 | BL171: 0 | BM171: 0 | BN171: 0 | BO171: 0 | BP171: 0 | BQ171: 0 | BR171: 0 | BS171: 0 | BT171: 0 | BU171: 0 | BV171: 0 | BX171: 0 | BY171: 0 | BZ171: 0 | CA171: 0 | CB171: 0 | CD171: 261 | CI171: 0 | CL171: 0
O172: 0 | P172: 0 | Q172: 0 | X172: 0 | Y172: 0 | AA172: 0 | AB172: 0 | AC172: 0 | AD172: 0 | AE172: 0 | AF172: 0 | AG172: 0 | AI172: 0 | AN172: 0 | AP172: 0 | AU172: 0 | AZ172: 0 | BA172: 0 | BB172: 0 | BC172: 0 | BD172: 0 | BE172: 0 | BF172: 0 | BG172: 0 | BH172: 0 | BI172: 0 | BJ172: ja | BK172: 0 | BL172: 0 | BM172: 0 | BN172: 0 | BO172: 0 | BP172: 0 | BQ172: 0 | BR172: 0 | BS172: 0 | BT172: 0 | BU172: 0 | BV172: 0 | BX172: 0 | BY172: 0 | BZ172: 0 | CA172: 0 | CB172: 0 | CD172: 261 | CI172: 0 | CL172: 0
O173: 0 | P173: 0 | Q173: 0 | X173: 0 | Y173: 0 | AA173: 0 | AB173: 0 | AC173: 0 | AD173: 0 | AE173: 0 | AF173: 0 | AG173: 0 | AI173: 0 | AN173: 0 | AP173: 0 | AU173: 0 | AZ173: 0 | BA173: 0 | BB173: 0 | BC173: 0 | BD173: 0 | BE173: 0 | BF173: 0 | BG173: 0 | BH173: 0 | BI173: 0 | BJ173: ja | BK173: 0 | BL173: 0 | BM173: 0 | BN173: 0 | BO173: 0 | BP173: 0 | BQ173: 0 | BR173: 0 | BS173: 0 | BT173: 0 | BU173: 0 | BV173: 0 | BX173: 0 | BY173: 0 | BZ173: 0 | CA173: 0 | CB173: 0 | CD173: 261 | CI173: 0 | CL173: 0
O174: 0 | P174: 0 | Q174: 0 | X174: 0 | Y174: 0 | AA174: 0 | AB174: 0 | AC174: 0 | AD174: 0 | AE174: 0 | AF174: 0 | AG174: 0 | AI174: 0 | AN174: 0 | AP174: 0 | AU174: 0 | AZ174: 0 | BA174: 0 | BB174: 0 | BC174: 0 | BD174: 0 | BE174: 0 | BF174: 0 | BG174: 0 | BH174: 0 | BI174: 0 | BJ174: ja | BK174: 0 | BL174: 0 | BM174: 0 | BN174: 0 | BO174: 0 | BP174: 0 | BQ174: 0 | BR174: 0 | BS174: 0 | BT174: 0 | BU174: 0 | BV174: 0 | BX174: 0 | BY174: 0 | BZ174: 0 | CA174: 0 | CB174: 0 | CD174: 261 | CI174: 0 | CL174: 0
O175: 0 | P175: 0 | Q175: 0 | X175: 0 | Y175: 0 | AA175: 0 | AB175: 0 | AC175: 0 | AD175: 0 | AE175: 0 | AF175: 0 | AG175: 0 | AI175: 0 | AN175: 0 | AP175: 0 | AU175: 0 | AZ175: 0 | BA175: 0 | BB175: 0 | BC175: 0 | BD175: 0 | BE175: 0 | BF175: 0 | BG175: 0 | BH175: 0 | BI175: 0 | BJ175: ja | BK175: 0 | BL175: 0 | BM175: 0 | BN175: 0 | BO175: 0 | BP175: 0 | BQ175: 0 | BR175: 0 | BS175: 0 | BT175: 0 | BU175: 0 | BV175: 0 | BX175: 0 | BY175: 0 | BZ175: 0 | CA175: 0 | CB175: 0 | CD175: 261 | CI175: 0 | CL175: 0
O176: 0 | P176: 0 | Q176: 0 | X176: 0 | Y176: 0 | AA176: 0 | AB176: 0 | AC176: 0 | AD176: 0 | AE176: 0 | AF176: 0 | AG176: 0 | AI176: 0 | AN176: 0 | AP176: 0 | AU176: 0 | AZ176: 0 | BA176: 0 | BB176: 0 | BC176: 0 | BD176: 0 | BE176: 0 | BF176: 0 | BG176: 0 | BH176: 0 | BI176: 0 | BJ176: ja | BK176: 0 | BL176: 0 | BM176: 0 | BN176: 0 | BO176: 0 | BP176: 0 | BQ176: 0 | BR176: 0 | BS176: 0 | BT176: 0 | BU176: 0 | BV176: 0 | BX176: 0 | BY176: 0 | BZ176: 0 | CA176: 0 | CB176: 0 | CD176: 261 | CI176: 0 | CL176: 0
O177: 0 | P177: 0 | Q177: 0 | X177: 0 | Y177: 0 | AA177: 0 | AB177: 0 | AC177: 0 | AD177: 0 | AE177: 0 | AF177: 0 | AG177: 0 | AI177: 0 | AN177: 0 | AP177: 0 | AU177: 0 | AZ177: 0 | BA177: 0 | BB177: 0 | BC177: 0 | BD177: 0 | BE177: 0 | BF177: 0 | BG177: 0 | BH177: 0 | BI177: 0 | BJ177: ja | BK177: 0 | BL177: 0 | BM177: 0 | BN177: 0 | BO177: 0 | BP177: 0 | BQ177: 0 | BR177: 0 | BS177: 0 | BT177: 0 | BU177: 0 | BV177: 0 | BX177: 0 | BY177: 0 | BZ177: 0 | CA177: 0 | CB177: 0 | CD177: 261 | CI177: 0 | CL177: 0
O178: 0 | P178: 0 | Q178: 0 | X178: 0 | Y178: 0 | AA178: 0 | AB178: 0 | AC178: 0 | AD178: 0 | AE178: 0 | AF178: 0 | AG178: 0 | AI178: 0 | AN178: 0 | AP178: 0 | AU178: 0 | AZ178: 0 | BA178: 0 | BB178: 0 | BC178: 0 | BD178: 0 | BE178: 0 | BF178: 0 | BG178: 0 | BH178: 0 | BI178: 0 | BJ178: ja | BK178: 0 | BL178: 0 | BM178: 0 | BN178: 0 | BO178: 0 | BP178: 0 | BQ178: 0 | BR178: 0 | BS178: 0 | BT178: 0 | BU178: 0 | BV178: 0 | BX178: 0 | BY178: 0 | BZ178: 0 | CA178: 0 | CB178: 0 | CD178: 261 | CI178: 0 | CL178: 0
O179: 0 | P179: 0 | Q179: 0 | X179: 0 | Y179: 0 | AA179: 0 | AB179: 0 | AC179: 0 | AD179: 0 | AE179: 0 | AF179: 0 | AG179: 0 | AI179: 0 | AN179: 0 | AP179: 0 | AU179: 0 | AZ179: 0 | BA179: 0 | BB179: 0 | BC179: 0 | BD179: 0 | BE179: 0 | BF179: 0 | BG179: 0 | BH179: 0 | BI179: 0 | BJ179: ja | BK179: 0 | BL179: 0 | BM179: 0 | BN179: 0 | BO179: 0 | BP179: 0 | BQ179: 0 | BR179: 0 | BS179: 0 | BT179: 0 | BU179: 0 | BV179: 0 | BX179: 0 | BY179: 0 | BZ179: 0 | CA179: 0 | CB179: 0 | CD179: 261 | CI179: 0 | CL179: 0
O180: 0 | P180: 0 | Q180: 0 | X180: 0 | Y180: 0 | AA180: 0 | AB180: 0 | AC180: 0 | AD180: 0 | AE180: 0 | AF180: 0 | AG180: 0 | AI180: 0 | AN180: 0 | AP180: 0 | AU180: 0 | AZ180: 0 | BA180: 0 | BB180: 0 | BC180: 0 | BD180: 0 | BE180: 0 | BF180: 0 | BG180: 0 | BH180: 0 | BI180: 0 | BJ180: ja | BK180: 0 | BL180: 0 | BM180: 0 | BN180: 0 | BO180: 0 | BP180: 0 | BQ180: 0 | BR180: 0 | BS180: 0 | BT180: 0 | BU180: 0 | BV180: 0 | BX180: 0 | BY180: 0 | BZ180: 0 | CA180: 0 | CB180: 0 | CD180: 261 | CI180: 0 | CL180: 0
O181: 0 | P181: 0 | Q181: 0 | X181: 0 | Y181: 0 | AA181: 0 | AB181: 0 | AC181: 0 | AD181: 0 | AE181: 0 | AF181: 0 | AG181: 0 | AI181: 0 | AN181: 0 | AP181: 0 | AU181: 0 | AZ181: 0 | BA181: 0 | BB181: 0 | BC181: 0 | BD181: 0 | BE181: 0 | BF181: 0 | BG181: 0 | BH181: 0 | BI181: 0 | BJ181: ja | BK181: 0 | BL181: 0 | BM181: 0 | BN181: 0 | BO181: 0 | BP181: 0 | BQ181: 0 | BR181: 0 | BS181: 0 | BT181: 0 | BU181: 0 | BV181: 0 | BX181: 0 | BY181: 0 | BZ181: 0 | CA181: 0 | CB181: 0 | CD181: 261 | CI181: 0 | CL181: 0
O182: 0 | P182: 0 | Q182: 0 | X182: 0 | Y182: 0 | AA182: 0 | AB182: 0 | AC182: 0 | AD182: 0 | AE182: 0 | AF182: 0 | AG182: 0 | AI182: 0 | AN182: 0 | AP182: 0 | AU182: 0 | AZ182: 0 | BA182: 0 | BB182: 0 | BC182: 0 | BD182: 0 | BE182: 0 | BF182: 0 | BG182: 0 | BH182: 0 | BI182: 0 | BJ182: ja | BK182: 0 | BL182: 0 | BM182: 0 | BN182: 0 | BO182: 0 | BP182: 0 | BQ182: 0 | BR182: 0 | BS182: 0 | BT182: 0 | BU182: 0 | BV182: 0 | BX182: 0 | BY182: 0 | BZ182: 0 | CA182: 0 | CB182: 0 | CD182: 261 | CI182: 0 | CL182: 0
O183: 0 | P183: 0 | Q183: 0 | X183: 0 | Y183: 0 | AA183: 0 | AB183: 0 | AC183: 0 | AD183: 0 | AE183: 0 | AF183: 0 | AG183: 0 | AI183: 0 | AN183: 0 | AP183: 0 | AU183: 0 | AZ183: 0 | BA183: 0 | BB183: 0 | BC183: 0 | BD183: 0 | BE183: 0 | BF183: 0 | BG183: 0 | BH183: 0 | BI183: 0 | BJ183: ja | BK183: 0 | BL183: 0 | BM183: 0 | BN183: 0 | BO183: 0 | BP183: 0 | BQ183: 0 | BR183: 0 | BS183: 0 | BT183: 0 | BU183: 0 | BV183: 0 | BX183: 0 | BY183: 0 | BZ183: 0 | CA183: 0 | CB183: 0 | CD183: 261 | CI183: 0 | CL183: 0
O184: 0 | P184: 0 | Q184: 0 | X184: 0 | Y184: 0 | AA184: 0 | AB184: 0 | AC184: 0 | AD184: 0 | AE184: 0 | AF184: 0 | AG184: 0 | AI184: 0 | AN184: 0 | AP184: 0 | AU184: 0 | AZ184: 0 | BA184: 0 | BB184: 0 | BC184: 0 | BD184: 0 | BE184: 0 | BF184: 0 | BG184: 0 | BH184: 0 | BI184: 0 | BJ184: ja | BK184: 0 | BL184: 0 | BM184: 0 | BN184: 0 | BO184: 0 | BP184: 0 | BQ184: 0 | BR184: 0 | BS184: 0 | BT184: 0 | BU184: 0 | BV184: 0 | BX184: 0 | BY184: 0 | BZ184: 0 | CA184: 0 | CB184: 0 | CD184: 261 | CI184: 0 | CL184: 0
O185: 0 | P185: 0 | Q185: 0 | X185: 0 | Y185: 0 | AA185: 0 | AB185: 0 | AC185: 0 | AD185: 0 | AE185: 0 | AF185: 0 | AG185: 0 | AI185: 0 | AN185: 0 | AP185: 0 | AU185: 0 | AZ185: 0 | BA185: 0 | BB185: 0 | BC185: 0 | BD185: 0 | BE185: 0 | BF185: 0 | BG185: 0 | BH185: 0 | BI185: 0 | BJ185: ja | BK185: 0 | BL185: 0 | BM185: 0 | BN185: 0 | BO185: 0 | BP185: 0 | BQ185: 0 | BR185: 0 | BS185: 0 | BT185: 0 | BU185: 0 | BV185: 0 | BX185: 0 | BY185: 0 | BZ185: 0 | CA185: 0 | CB185: 0 | CD185: 261 | CI185: 0 | CL185: 0
O186: 0 | P186: 0 | Q186: 0 | X186: 0 | Y186: 0 | AA186: 0 | AB186: 0 | AC186: 0 | AD186: 0 | AE186: 0 | AF186: 0 | AG186: 0 | AI186: 0 | AN186: 0 | AP186: 0 | AU186: 0 | AZ186: 0 | BA186: 0 | BB186: 0 | BC186: 0 | BD186: 0 | BE186: 0 | BF186: 0 | BG186: 0 | BH186: 0 | BI186: 0 | BJ186: ja | BK186: 0 | BL186: 0 | BM186: 0 | BN186: 0 | BO186: 0 | BP186: 0 | BQ186: 0 | BR186: 0 | BS186: 0 | BT186: 0 | BU186: 0 | BV186: 0 | BX186: 0 | BY186: 0 | BZ186: 0 | CA186: 0 | CB186: 0 | CD186: 261 | CI186: 0 | CL186: 0
O187: 0 | P187: 0 | Q187: 0 | X187: 0 | Y187: 0 | AA187: 0 | AB187: 0 | AC187: 0 | AD187: 0 | AE187: 0 | AF187: 0 | AG187: 0 | AI187: 0 | AN187: 0 | AP187: 0 | AU187: 0 | AZ187: 0 | BA187: 0 | BB187: 0 | BC187: 0 | BD187: 0 | BE187: 0 | BF187: 0 | BG187: 0 | BH187: 0 | BI187: 0 | BJ187: ja | BK187: 0 | BL187: 0 | BM187: 0 | BN187: 0 | BO187: 0 | BP187: 0 | BQ187: 0 | BR187: 0 | BS187: 0 | BT187: 0 | BU187: 0 | BV187: 0 | BX187: 0 | BY187: 0 | BZ187: 0 | CA187: 0 | CB187: 0 | CD187: 261 | CI187: 0 | CL187: 0
O188: 0 | P188: 0 | Q188: 0 | X188: 0 | Y188: 0 | AA188: 0 | AB188: 0 | AC188: 0 | AD188: 0 | AE188: 0 | AF188: 0 | AG188: 0 | AI188: 0 | AN188: 0 | AP188: 0 | AU188: 0 | AZ188: 0 | BA188: 0 | BB188: 0 | BC188: 0 | BD188: 0 | BE188: 0 | BF188: 0 | BG188: 0 | BH188: 0 | BI188: 0 | BJ188: ja | BK188: 0 | BL188: 0 | BM188: 0 | BN188: 0 | BO188: 0 | BP188: 0 | BQ188: 0 | BR188: 0 | BS188: 0 | BT188: 0 | BU188: 0 | BV188: 0 | BX188: 0 | BY188: 0 | BZ188: 0 | CA188: 0 | CB188: 0 | CD188: 261 | CI188: 0 | CL188: 0
O189: 0 | P189: 0 | Q189: 0 | X189: 0 | Y189: 0 | AA189: 0 | AB189: 0 | AC189: 0 | AD189: 0 | AE189: 0 | AF189: 0 | AG189: 0 | AI189: 0 | AN189: 0 | AP189: 0 | AU189: 0 | AZ189: 0 | BA189: 0 | BB189: 0 | BC189: 0 | BD189: 0 | BE189: 0 | BF189: 0 | BG189: 0 | BH189: 0 | BI189: 0 | BJ189: ja | BK189: 0 | BL189: 0 | BM189: 0 | BN189: 0 | BO189: 0 | BP189: 0 | BQ189: 0 | BR189: 0 | BS189: 0 | BT189: 0 | BU189: 0 | BV189: 0 | BX189: 0 | BY189: 0 | BZ189: 0 | CA189: 0 | CB189: 0 | CD189: 261 | CI189: 0 | CL189: 0
O190: 0 | P190: 0 | Q190: 0 | X190: 0 | Y190: 0 | AA190: 0 | AB190: 0 | AC190: 0 | AD190: 0 | AE190: 0 | AF190: 0 | AG190: 0 | AI190: 0 | AN190: 0 | AP190: 0 | AU190: 0 | AZ190: 0 | BA190: 0 | BB190: 0 | BC190: 0 | BD190: 0 | BE190: 0 | BF190: 0 | BG190: 0 | BH190: 0 | BI190: 0 | BJ190: ja | BK190: 0 | BL190: 0 | BM190: 0 | BN190: 0 | BO190: 0 | BP190: 0 | BQ190: 0 | BR190: 0 | BS190: 0 | BT190: 0 | BU190: 0 | BV190: 0 | BX190: 0 | BY190: 0 | BZ190: 0 | CA190: 0 | CB190: 0 | CD190: 261 | CI190: 0 | CL190: 0
O191: 0 | P191: 0 | Q191: 0 | X191: 0 | Y191: 0 | AA191: 0 | AB191: 0 | AC191: 0 | AD191: 0 | AE191: 0 | AF191: 0 | AG191: 0 | AI191: 0 | AN191: 0 | AP191: 0 | AU191: 0 | AZ191: 0 | BA191: 0 | BB191: 0 | BC191: 0 | BD191: 0 | BE191: 0 | BF191: 0 | BG191: 0 | BH191: 0 | BI191: 0 | BJ191: ja | BK191: 0 | BL191: 0 | BM191: 0 | BN191: 0 | BO191: 0 | BP191: 0 | BQ191: 0 | BR191: 0 | BS191: 0 | BT191: 0 | BU191: 0 | BV191: 0 | BX191: 0 | BY191: 0 | BZ191: 0 | CA191: 0 | CB191: 0 | CD191: 261 | CI191: 0 | CL191: 0
O192: 0 | P192: 0 | Q192: 0 | X192: 0 | Y192: 0 | AA192: 0 | AB192: 0 | AC192: 0 | AD192: 0 | AE192: 0 | AF192: 0 | AG192: 0 | AI192: 0 | AN192: 0 | AP192: 0 | AU192: 0 | AZ192: 0 | BA192: 0 | BB192: 0 | BC192: 0 | BD192: 0 | BE192: 0 | BF192: 0 | BG192: 0 | BH192: 0 | BI192: 0 | BJ192: ja | BK192: 0 | BL192: 0 | BM192: 0 | BN192: 0 | BO192: 0 | BP192: 0 | BQ192: 0 | BR192: 0 | BS192: 0 | BT192: 0 | BU192: 0 | BV192: 0 | BX192: 0 | BY192: 0 | BZ192: 0 | CA192: 0 | CB192: 0 | CD192: 261 | CI192: 0 | CL192: 0
O193: 0 | P193: 0 | Q193: 0 | X193: 0 | Y193: 0 | AA193: 0 | AB193: 0 | AC193: 0 | AD193: 0 | AE193: 0 | AF193: 0 | AG193: 0 | AI193: 0 | AN193: 0 | AP193: 0 | AU193: 0 | AZ193: 0 | BA193: 0 | BB193: 0 | BC193: 0 | BD193: 0 | BE193: 0 | BF193: 0 | BG193: 0 | BH193: 0 | BI193: 0 | BJ193: ja | BK193: 0 | BL193: 0 | BM193: 0 | BN193: 0 | BO193: 0 | BP193: 0 | BQ193: 0 | BR193: 0 | BS193: 0 | BT193: 0 | BU193: 0 | BV193: 0 | BX193: 0 | BY193: 0 | BZ193: 0 | CA193: 0 | CB193: 0 | CD193: 261 | CI193: 0 | CL193: 0
O194: 0 | P194: 0 | Q194: 0 | X194: 0 | Y194: 0 | AA194: 0 | AB194: 0 | AC194: 0 | AD194: 0 | AE194: 0 | AF194: 0 | AG194: 0 | AI194: 0 | AN194: 0 | AP194: 0 | AU194: 0 | AZ194: 0 | BA194: 0 | BB194: 0 | BC194: 0 | BD194: 0 | BE194: 0 | BF194: 0 | BG194: 0 | BH194: 0 | BI194: 0 | BJ194: ja | BK194: 0 | BL194: 0 | BM194: 0 | BN194: 0 | BO194: 0 | BP194: 0 | BQ194: 0 | BR194: 0 | BS194: 0 | BT194: 0 | BU194: 0 | BV194: 0 | BX194: 0 | BY194: 0 | BZ194: 0 | CA194: 0 | CB194: 0 | CD194: 261 | CI194: 0 | CL194: 0
O195: 0 | P195: 0 | Q195: 0 | X195: 0 | Y195: 0 | AA195: 0 | AB195: 0 | AC195: 0 | AD195: 0 | AE195: 0 | AF195: 0 | AG195: 0 | AI195: 0 | AN195: 0 | AP195: 0 | AU195: 0 | AZ195: 0 | BA195: 0 | BB195: 0 | BC195: 0 | BD195: 0 | BE195: 0 | BF195: 0 | BG195: 0 | BH195: 0 | BI195: 0 | BJ195: ja | BK195: 0 | BL195: 0 | BM195: 0 | BN195: 0 | BO195: 0 | BP195: 0 | BQ195: 0 | BR195: 0 | BS195: 0 | BT195: 0 | BU195: 0 | BV195: 0 | BX195: 0 | BY195: 0 | BZ195: 0 | CA195: 0 | CB195: 0 | CD195: 261 | CI195: 0 | CL195: 0
O196: 0 | P196: 0 | Q196: 0 | X196: 0 | Y196: 0 | AA196: 0 | AB196: 0 | AC196: 0 | AD196: 0 | AE196: 0 | AF196: 0 | AG196: 0 | AI196: 0 | AN196: 0 | AP196: 0 | AU196: 0 | AZ196: 0 | BA196: 0 | BB196: 0 | BC196: 0 | BD196: 0 | BE196: 0 | BF196: 0 | BG196: 0 | BH196: 0 | BI196: 0 | BJ196: ja | BK196: 0 | BL196: 0 | BM196: 0 | BN196: 0 | BO196: 0 | BP196: 0 | BQ196: 0 | BR196: 0 | BS196: 0 | BT196: 0 | BU196: 0 | BV196: 0 | BX196: 0 | BY196: 0 | BZ196: 0 | CA196: 0 | CB196: 0 | CD196: 261 | CI196: 0 | CL196: 0
O197: 0 | P197: 0 | Q197: 0 | X197: 0 | Y197: 0 | AA197: 0 | AB197: 0 | AC197: 0 | AD197: 0 | AE197: 0 | AF197: 0 | AG197: 0 | AI197: 0 | AN197: 0 | AP197: 0 | AU197: 0 | AZ197: 0 | BA197: 0 | BB197: 0 | BC197: 0 | BD197: 0 | BE197: 0 | BF197: 0 | BG197: 0 | BH197: 0 | BI197: 0 | BJ197: ja | BK197: 0 | BL197: 0 | BM197: 0 | BN197: 0 | BO197: 0 | BP197: 0 | BQ197: 0 | BR197: 0 | BS197: 0 | BT197: 0 | BU197: 0 | BV197: 0 | BX197: 0 | BY197: 0 | BZ197: 0 | CA197: 0 | CB197: 0 | CD197: 261 | CI197: 0 | CL197: 0
P198: =übertrag -> Übertrag | S198: =SUM(S165:S197) -> 0 | U198: =SUM(U165:U197) -> 0 | Y198: =SUM(Y165:Y197) -> 0 | AC198: =SUM(AC165:AC197) -> 0 | AG198: =SUM(AG165:AG197) -> 0 | AI198: =P198 -> Übertrag | AK198: =SUM(AK165:AK197) -> 0 | AM198: =SUM(AM165:AM197) -> 0 | AN198: =SUM(AN165:AN197) -> 0 | AP198: =AI198 -> Übertrag | AR198: =SUM(AR165:AR197) -> 0 | AT198: =SUM(AT165:AT197) -> 0 | AU198: =SUM(AU165:AU197) -> 0
E199: =StammMA & " 6" -> Stammdaten MitarbeiterInnen Seite 6 | W199: =Abrechnung & " " & KAE_SWE_TEXT & ", " & Seite & " 6, " & MonatVor(StammPeriode2,0, "MMMM YYYY") -> Abrechnung Kurzarbeitsentschädigung, Seite 6, Dezember 2018 | AI199: =E199 -> Stammdaten MitarbeiterInnen Seite 6 | AO199: =AO160 -> Erhebungsbogen Saisonalität - Dezember 2018 - / ABTEILUNG | AT199: =AT160 -> 2020-11-30 | AU199: =AU160 -> 44165.60065
A200: =A$11 -> Name Vorname | B200: AHV-Nummer | C200: Freies Feld, z.B. Personalnummer | D200: Geburtsdatum | E200: Grundlohn (Monatslohn oder Stundenlohn) | F200: Durch- schnittliche wöchentliche Arbeitszeit | G200: =G$11 -> Anzahl Monatslöhne (12, 13, 13.5 etc.) oder Prozentzuschlag gem. GAV | I200: =I$11 -> Gratifikation etc. mit vertraglichem Anspruch | J200: Ferienentschädigung in Tagen oder in Lohnprozenten | L200: =L$11 -> Feiertagsentschädigung in Tagen oder in Lohnprozenten | N200: =N$11 -> SWE-Zuschlag nach GAV in Prozent | O200: Anrechen- barer Stunden- verdienst | P200: =P$11 -> 1 | Q200: =Q$11 -> 2 | R200: =R$11 -> 3 | S200: =S$11 -> 4 | T200: 5 | U200: 6 | W200: =W$11 -> 7 (nur für Gleitzeit) | Y200: =Y$11 -> 8 | Z200: =Z$11 -> 9 | AA200: =AA$11 -> 10 | AB200: =AB$11 -> 11 | AC200: 12 | AD200: 13 | AE200: 14 | AF200: 15 | AG200: 16 | AI200: =AI$11 -> 1 | AJ200: =AJ$11 -> 2 | AK200: 3 | AL200: 4 | AM200: 5 | AN200: 6 | AP200: =AI$44 -> 1 | AQ200: =AJ$44 -> 2 | AR200: =AK$44 -> 3 | AS200: =AL$44 -> 4 | AT200: =AM$44 -> 5 | AU200: =AN$44 -> 6 | AZ200: =R201 -> Vertragliche wöchentl. Arbeitszeit | BA200: Sollstunden Abrechnungs- periode | BB200: Istzeit (tatsächl. Anwesenh.) | BC200: Bezahlte u. unbezahlte Absenzen | BD200: Saldo Ende Periode | BE200: 0 | BF200: Diffe- renz | BK200: =Y201 -> Ausfallstd. Kurzarbeit | BL200: Saldo Mehrstd. Vormonat | BM200: Anrechenbare | BN200: Abzuziehende | BO200: =AA201 -> Saisonale Ausfall- stunden | BP200: Anrech. Ausfall- stunden | BR200: =AC201 -> Verdienst- ausfall | BS200: KAE gemäss Art. 42 ALVG | BU200: =AF201 -> Abzug Karenzzeit | BV200: Beantragte Vergütung
... 40 more rows

Sheet Hilfe (hidden)
B1: Verwendet
A2: h_Sachbearbeiter | B2: Hier sollten Sie die Kontaktperson für Rückfragen der Arbeitslosenkasse eintragen. In der Regel sind das Sie selbst, es sollte aber in jedem Fall die Person sein, die eine allfällige Rückfrage betreffend der Abrechnung beantworten kann. Wussten Sie, dass es viele KassenmitarbeiterInnen sehr schätzen, wenn Sie Ihren Namen vollständig - mit ausgeschriebenem Vornamen - angeben?
A3: h_ahv | B3: Auf die anrechenbaren Ausfallstunden (inkl. Karenzzeit) werden die Arbeitgeberbeiträge für AHV/IV/EO/ALV vergütet. Ab 1. Januar 2004 beträgt der Satz 6.05%. Sollte sich der Beitragssatz seit Erstellen dieses Excel-Sheets geändert haben, können Sie davon ausgehen, dass die jetzt von Ihnen verwendete Tabelle veraltet ist. Im Zweifelsfalle sollten Sie sich auf http://www.lexaktuell.ch die aktuellste Version dieser Tabelle besorgen.
A4: h_Periode | B4: Klicken Sie auf den Pfeil rechts vom Eingabefeld und wählen Sie die gewünschte Abrechnungsperiode. Wenn die gewünscht Abrechnungsperiode nicht im Listenfeld aufgeführt sein sollte, können Sie diese auch einfach hineinschreiben. Allerdings muss Excel Ihre Eingabe einem Monat zuordnen können. Zudem müssen Sie beachten, dass Sie die Entschädigung innerhalb von drei Monaten nach Ablauf jeder Abrechnungsperiode bei der Arbeitslosenkasse geltend machen (Art. 46 Abs. 1 und Art. 54 ALVG). Wenn Sie diese Frist bereits verpasst haben, sollten Sie sich den Aufwand für die Abrechnung ersparen, da Ihr Anspruch von der Arbeitslosenkasse in jedem Fall abgelehnt werden muss.
A5: h_VV | B5: Der maximal versicherte Verdienst (VV) beträgt zur Zeit Fr. 10'500.00. Der korrekte maximale VV wird von der Tabelle automatisch eingetragen. Sie können diesen Wert nich verändern. Sollte sich die Höchstgrenze des VV zwischenzeitlich geändert haben, können Sie davon ausgehen, dass die jetzt von Ihnen verwendete Tabelle veraltet ist. Fragen Sie im Zweifelsfalle Ihre Arbeitslosenkasse und verlangen Sie eine aktuelle Tabelle. Eine aktuelle Tabelle können Sie übrigens auch vom Internet herunterladen. Die Adresse für den Download finden Sie ganz unten auf das Abrechnungsformular aufgedruckt.
A6: h_Jahrestage | B6: Um den anrechenbaren Stundenverdienst korrekt zu berechnen, wird die genaue Anzahl Bruttoarbeitstage (alle Werktage inkl. Ferien und Feiertage) benötigt. Dies entspricht der Formel 365 Arbeitstage / 7 Wochentage * 5 Werktage oder - in der Regel - den tatsächlich im Kalender nachzählbaren Werktagen. Die Tabelle berechnet die Anzahl Bruttoarbeitstage für Sie. Sie können diesen Wert nicht ändern.
A7: h_KarenzKAE | B7: Bei Kurzarbeitsentschädigung besteht zur Zeit keine Karenzfrist.
A8: h_KarenzSWE | B8: Die Karenzfrist bei Schlechtwetterentschädigung beträgt zur Zeit zwei Tage (Art. 49 Abs. 3 ALVG). Sie können diesen Wert nicht ändern.
A9: h_AnspruchProzent | B9: Die Kurzarbeits- und Schlechtwetterentschädigung beträgt 80 % Prozent des anrechenbaren Verdienstausfalls (Art. 42 Abs. 1 ALVG und Art. 51 ALVG). Das bedeutet, dass Sie die Ausfallstunden zu 80 % entschädigen müssen. Sie können diesen Wert nicht ändern. Beachten Sie, dass die Arbeitslosenversicherung nur 60 % des anrechenbaren Verdienstausfalles übernimmt. Die restlichen 20 % gehen zu Ihren Lasten ( Art. 42 Abs. 1 und Art. 51 ALVG).
A10: h_Firma | B10: Geben Sie hier Name/Bezeichnung der Firma ein.
A11: h_Adresse | B11: Geben Sie hier die Firmenadresse ein. Wenn mehrere Adresszeilen erforderlich sind, geben Sie diese durch Kommas getrennt in dieses Textfeld ein.
A12: h_PLZORT | B12: Geben Sie hier die Postleitzahl und den Ort des Firmensitzes ein.
A13: h_Fon | B13: Hier sollten Sie die Telefonnummer der Kontaktperson für Rückfragen der Arbeitslosenkasse eintragen. In der Regel sind das Sie selbst, es sollte aber in jedem Fall die Person sein, die eine allfällige Rückfrage betreffend der Abrechnung auch beantworten kann.
A14: h_Fax | B14: Geben Sie hier Ihre Faxnummer ein.
A15: h_Mail | B15: Geben Sie hier die E-Mail-Adresse der Kontaktperson für die Arbeitslosenkasse ein. Diese Eingabe sollten Sie nur vornehmen, wenn die Kontaktperson über eine persönliche E-Mail-Adresse verfügt und auch gewährleistet ist, dass Mails am richtigen Ort ankommen und gelesen werden.
A16: h_Zahlungsverbindung | B16: Die Arbeitslosenkasse ist für die Überweisung Ihrer Guthaben auf eine korrekte Zahlungsverbindung angewiesen. Geben Sie hier also die genaue und vollständige Kontonummer Ihres Bank- oder Postcheckkontos ein. Bei Bankkontos sollten Sie auch die Bank-Clearing-Nummer (zu finden auf Ihren Einzahlungsscheinen) angeben. Im übrigen sollten Sie der ersten - und nur der ersten - Abrechnung einen Einzahlungsschein beilegen. Die Zahlungsverbindung wird auf dem Kassensystem erfasst und alle später zugestellten Einzahlungsscheine werden weggeworfen! Wenn Sie eine Änderung der Zahlungsverbindung wünschen, müssen Sie dies der Arbeitslosenkasse explizit und deutlich mitteilen, weil sich die SachbearbeiterInnen nach der erstmaligen Erfassung mit diesem Thema nicht mehr beschäftigen.
A17: h_BURNr | B17: Hier erfassen Sie die LUR-Nummer. Sie finden die LUR-Nummer im Entscheid des Amtes für Volkwirtschaft.
A18: h_RegNr | B18: Wenn Sie die Abrechnungstabelle für Ihre Kurzarbeits- oder Schlechtwetterabrechnungen verwenden wollen, benötigen Sie eine Lizenznummer. Ein Lizenznummer können Sie ganz einfach per E-Mail anfordern. Weitere Informationen zum Vorgehen sowie zu den Lizenzkosten finden Sie im Tabellenblatt 'Lizenzierung'. Schliessen Sie jetzt diesen Dialog mit dem Schalter 'Abrechnung ... bearbeiten' und wählen Sie aus dem Register unterhalb der Abrechungstabelle das Tabellenblatt 'Lizenzierung' aus.
A19: h_Betriebsabteilung | B19: Hier geben Sie die Betriebsabteilung ein. Die Aufteilung des Betriebes in Betriebsabteilungen kann nur vom Amt für Volkwirtschaft vorgenommen werden. Die hier angegegenbene Betriebsabteilung muss mit der Betriebsabteilung im Entscheid des Amtes für Volkwirtschaft übereinstimmen.
A20: h_BeginnEnde | B20: Geben Sie hier das genaue Datum des Beginns oder des Endes von Kurzarbeit ein, wenn Sie Probleme mit dem Mindestausfall von 10% haben. Sie müssen bei Beginn oder Ende von Kurzarbeit während einer Abrechnungsperiode nur die Sollstunden ab Beginn der Kurzarbeit bis Monatsende oder ab Monatsanfang bis Ende der Kurzarbeit in die Kolonne Sollstunden eintragen. Durch diese Verminderung der Sollstunden erhöht sich der prozentuale Arbeitsausfall. In vielen Fällen kann so das Problem des Mindestausfalles von 10% umgangen werden. Bedingung für dieses Vorgehen ist, dass Sie bei Beginn der Kurzarbeit im Vormonat und bei Ende der Kurzarbeit im Nachfolgemonat tatsächlich keine Kurzarbeit abgerechnet haben oder abrechnen. Diese Proratarechnung sollte nur angewendet werden, wenn der 10%-Ausfall sonst nicht erreicht wird, weil Abrechnung und Kontrollierbarkeit komplexer wird.
A21: h_hilfe | B21: Als erstes müssen Sie jetzt die Stammdaten korrekt erfassen oder bereits erfasste Daten gut kontrollieren. In diesem Textfeld erhalten Sie Informationen zu den einzelnen Eingabefelder und Einstellungen. Wenn Ihnen trotzdem etwas nicht klar ist, rufen Sie bei Ihrer Arbeitslosenkasse an. Wählen Sie jetzt ganz oben die Entschädigungsart mit der Maus. Gehen Sie zu den einzelnen Eingabefelder durch drücken der Tabulatortaste. Die Bestimmungen über Kurzarbeits- und Schlechtwetterentschädigung sind laufend Änderungen unterworfen. Überprüfen Sie deshalb regelmässig, ob eine neue Version dieser Berechnunstabelle zur Verfügung steht. Eine Internet-Adresse für den Dowload finden Sie ganz unten auf dem Abrechnungsformular aufgedruckt.
A22: h_EA | B22: Hier wählen Sie die Entschädigungsart Kurzarbeitsentschädigung oder Schlechtwetterentschädigung aus. Am einfachsten verwenden Sie hierzu die Maus. Sie können auch mit Tabulator und Umschalt-Tabulator den Fokus zwischen den beiden Optionsfeldern verschieben und die gewünschte Entschädigungsart mit der Leertaste aktivieren. Sie können übrigens die Entschädigungsart auch später während des Ausfüllens der Tabelle jederzeit ändern. Allerdings sollten Sie jetzt wissen, welche Entschädigungsart abzurechnen ist. Bedenken Sie einfach, wenn Sie eine Entschädigung geltend machen wollen, benötigen Sie hierzu einen positiven Entscheid des Amtes für Volkwirtschaft.
A23: h_cmdAbrechnung_mit_Focus | B23: Sind Sie bereit für die Abrechnung? Drücken Sie die Eingabetaste um zur Abrechnung zu gelangen!
A24: h_cmdAbrechnung_ohne_Focus | B24: Sind Sie bereit für die Abrechnung? Dann können Sie jetzt hier klicken!
A25: h_Eingabefrist | B25: =B26 -> Hier wird der spätestmögliche Eingabetermin für die Geltendmachung des Anspruchs für die im Eingabefeld 'Abrechnungsperiode' gewählte Periode angezeigt. Der Arbeitgeber macht den Entschädigungsanspruch seiner Arbeitnehmer innert dreier Monate nach Ablauf jeder Abrechnungsperiode gesamthaft für den Betrieb beim Amt für Volkswirtschaft geltend (Art. 46 Abs. 1 und Art. 54 ALVG). Entschädigungen, die der Arbeitgeber nicht fristgemäss (Art. 46 Abs. 1) geltend macht, werden ihm nicht vergütet (Art. 47 Abs. 2 und Art. 55 Abs. 2 ALVG). Die Frist für die Geltendmachung des Entschädigungsanspruchs beginnt mit dem ersten Tag nach der Abrechnungsperiode (Art. 59 und Art. 65 ALVV). Die Arbeitslosenkasse muss nicht fristgerecht eingereichte Anträge ablehnen. Sie sollten sich den Aufwand für die Abrechnung und der Arbeitslosenkasse den Aufwand für die Ablehnungsverfügung ersparen, wenn Sie diese Frist bereits verpasst haben.
A26: h_Eingabefrist_swe | B26: Hier wird der spätestmögliche Eingabetermin für die Geltendmachung des Anspruchs für die im Eingabefeld 'Abrechnungsperiode' gewählte Periode angezeigt. Der Arbeitgeber macht den Entschädigungsanspruch seiner Arbeitnehmer innert dreier Monate nach Ablauf jeder Abrechnungsperiode gesamthaft für den Betrieb beim Amt für Volkswirtschaft geltend (Art. 46 Abs. 1 und Art. 54 ALVG). Entschädigungen, die der Arbeitgeber nicht fristgemäss (Art. 46 Abs. 1) geltend macht, werden ihm nicht vergütet (Art. 47 Abs. 2 und Art. 55 Abs. 2 ALVG). Die Frist für die Geltendmachung des Entschädigungsanspruchs beginnt mit dem ersten Tag nach der Abrechnungsperiode (Art. 59 und Art. 65 ALVV). Die Arbeitslosenkasse muss nicht fristgerecht eingereichte Anträge ablehnen. Sie sollten sich den Aufwand für die Abrechnung und der Arbeitslosenkasse den Aufwand für die Ablehnungsverfügung ersparen, wenn Sie diese Frist bereits verpasst haben.
A27: h_Abbrechen | B27: Klicken Sie hier, wenn Sie die aktuelle Tabelle schliessen möchten. Sie werden von Excel angefragt, ob Sie die bisherigen Änderungen speichern möchten.
A28: h_Saisonal | B28: Wenn das Amt für Volkwirtschaft in ihrem Entscheid einen Vorbehalt bezüglich saisonaler Beschäftigungsschwankungen angebracht hat, ist nur der Mehrausfall gegenüber des durchschnittlichen Arbeitsausfalls derselben Perioden der letzten zwei Jahren entschädigungsberechtigt. Überprüfen Sie also jetzt den Entscheid des Amtes für Volkwirtschaft. Sie können den Erhebungsbogen direkt in diesem Excelsheet ausfüllen. In der Abrechnung erfasste MitarbeiterInnen werden in den Erhebungsbogen übernommen, können aber gelöscht oder überschieben werden. Die Aufteilung in saisonale und anrechenbare Ausfallstunden wird von diesem Excelsheet automatisch berechnet und in der Abrechnung berücksichtigt.
A29: h_Tabelle_Vergrössern | B29: Mit diesem Excel-Sheet können Sie zur Zeit Abrechnungen für Betriebe oder Betriebsabteilungen mit bis zu 187 MitarbeiterInnen erstellen. Wenn Sie die Vorlage erstmals öffnen, steht Ihnen eine Tabelle für bis zu 27 MitarbeiterInnen zur Verfügung. Wenn Sie jetzt also eine Abrechnung für mehr als 27 MitarbeiterInnen erstellen müssen, klicken Sie auf diesen Schalter und wählen Sie im nächsten Dialog die gewünschte Tabellengrösse. Wählen Sie bei Unsicherheiten über die Anzahl abzurechnender MitarbeiterInnen eher eine zu kleine Grösse. Die Tabelle lässt sich auch vergrössern, wenn Sie schon Daten erfasst haben. Demgegenüber lässt sich die einmal vergrösserte Tabelle nicht wieder verkleinern.
A30: h_Tabelle_Vergrössern_KAE | B30: Wählen Sie hier die gewünschte Tabellengrösse. Sie können die Tabelle bis maximal 187 MitarbeiterInnnen vergrössern. Sie müssen für jede (anerkannte) Betriebsabteilung eine separate Tabelle verwenden. Die benötigte Tabellengrösse ist deshalb abhängig von der abzurechnenden Betriebsabteilung oder - wenn der Betrieb von der zuständigenen Amtsstelle nicht in Betriebsabteilungen aufgeteilt wurde - von der Anzahl aller theoretisch bezugsberechtigten Personen des Gesamtbetriebes. Achtung: Wenn das Amt für Volkwirtschaft in ihrem Entscheid einen Vorbehalt bezüglich saisonaler Beschäftigungsschwankungen angebracht hat, müssen Sie sämtliche MitarbeiterInnen des Betriebes oder der Betriebsabteilung auf der Abrechnung aufführen. Auch diejenigen, die nicht von Kurzarbeit betroffen sind! Ausgenommen sind lediglich MitarbeiterInnen, die keinen Anspruch auf Kurzarbeitsentschädigung haben!
A31: h_Tabelle_Vergrössern_SWE | B31: Wählen Sie hier die gewünschte Tabellengrösse. Sie können die Tabelle bis maximal 187 MitarbeiterInnnen vergrössern. Bei Schlechtwetterentschädigung müssen Sie nur die betroffenen MitarbeiterInnen auf der Abrechnung aufführen. Alle Arbeitsorte werden gesamthaft mit einer einzigen Abrechnung abgerechnet. Die benötigte Tabellengrösse ist deshalb abhängig von der Anzahl von Schlechtwetter betroffenen MitarbeiterInnen des gesamten Betriebes.
A32: h_Sprachwahl | B32: Wählen Sie hier die Sprache - Choisissez ici la langue!

Sheet Sprachen (hidden)
A1: Sprache: | B1: 0 | C1: Kurzarbeitsentschädigung | D1: Schlechtwettentschädigung
A2: Name | B2: Verwendet | C2: Deutsch | D2: Deutsch
A3: frmStammCaption | B3: =IF(KAE_SWE=1,C3,D3) -> Stammdaten Betrieb oder Betriebsabteilung | C3: Stammdaten Betrieb oder Betriebsabteilung | D3: =C3 -> Stammdaten Betrieb oder Betriebsabteilung
A4: Firma | B4: Firma | C4: Firma | D4: Firma
A5: Adresse | B5: Adresse | C5: Adresse | D5: Adresse
A6: PLZundOrt | B6: PLZ und Ort | C6: PLZ und Ort | D6: PLZ und Ort
A7: SachbearbeiterIn | B7: Sachbearbeiter(in) | C7: Sachbearbeiter(in) | D7: Sachbearbeiter(in)
A8: FonFaxMail | B8: Telefon / E-Mail | C8: Telefon / E-Mail | D8: Telefon / E-Mail
A9: Zahlungsverbindung | B9: Zahlungsverbindung | C9: Zahlungsverbindung | D9: Zahlungsverbindung
A10: BURNr | B10: LUR-Nr. | C10: LUR-Nr. | D10: LUR-Nr.
A11: BetriebAbteilung | B11: Betrieb/Betriebsabteilung | C11: Betrieb/Betriebsabteilung | D11: Betrieb/Betriebsabteilung
A12: Karenz | B12: Karenzzeit | C12: Karenzzeit | D12: Karenzzeit
A13: Abrechnungsperiode | B13: Abrechnungsperiode | C13: Abrechnungsperiode | D13: Abrechnungsperiode
A14: DatumZeit | B14: Datum und Zeit | C14: Datum und Zeit | D14: Datum und Zeit
A15: BeginnEnde | B15: Beginn und/oder Ende der Kurzarbeit | C15: Beginn und/oder Ende der Kurzarbeit | D15: Beginn und/oder Ende der Kurzarbeit
A16: ArbeitstageJahr | B16: Anzahl Arbeitstage im Jahr | C16: Anzahl Arbeitstage im Jahr | D16: Anzahl Arbeitstage im Jahr
A17: AnzTag | B17: 261 Tage | C17: =StammJahrestage & " Tage" -> 261 Tage | D17: 261 Tage
A18: Kurzarbeitsentsch | B18: Kurzarbeitsentschädigung | C18: Kurzarbeitsentschädigung | D18: Kurzarbeitsentschädigung
A19: Schlechtwetterents | B19: Schlechwetterentschädigung | C19: Schlechwetterentschädigung | D19: Schlechwetterentschädigung
A20: KAEs | B20: KAE | C20: KAE | D20: KAE
A21: SWEs | B21: SWE | C21: SWE | D21: SWE
A22: b_AHV1 | B22: Sozialversicherungs- | C22: Sozialversicherungs- | D22: Sozialversicherungs-
A23: b_AHV2 | B23: oder | C23: oder | D23: oder
A24: b_AHV3 | B24: AHV-Nummer | C24: AHV-Nummer | D24: AHV-Nummer
A25: B_FF1 | B25: Freies Feld | C25: Freies Feld | D25: Freies Feld
A26: B_FF2 | B26: z.B. | C26: z.B. | D26: z.B.
A27: B_FF3 | B27: Personalnummer | C27: Personalnummer | D27: Personalnummer
A28: B_Geburi1 | C28: ="" -> 
A29: B_Geburi2 | B29: Geburtsdatum | C29: Geburtsdatum | D29: Geburtsdatum
A30: B_Geburi3 | B30: 0
A31: B_L1 | B31: Grundlohn | C31: Grundlohn | D31: =C31 -> Grundlohn
A32: B_L2 | B32: Monat oder | C32: Monat oder | D32: Monat oder
A33: B_L3 | B33: Stunde | C33: Stunde | D33: Stunde
A34: B_AZ1 | B34: Durchschnitt. | C34: Durchschnitt. | D34: Durchschnitt.
A35: B_AZ2 | B35: =IF(KAE_SWE=1,C35,D35) -> wöchentliche | C35: wöchentliche | D35: wöchentliche
A36: B_AZ3 | B36: Arbeitszeit | C36: Arbeitszeit | D36: Arbeitszeit
A37: B_ML1 | B37: Anzahl. bez. | C37: Anzahl. bez. | D37: Anzahl. bez.
A38: B_ML2 | B38: Monate pro | C38: Monate pro | D38: Monate pro
A39: B_ML3 | B39: Jahr (12/13) | C39: Jahr (12/13) | D39: Jahr (12/13)
A40: B_Grati1 | B40: 0
A41: B_Grati2 | B41: Gratifikation | C41: Gratifikation | D41: =C41 -> Gratifikation
A42: B_Grati3 | B42: 0
A43: B_Fe1 | B43: Anzahl | C43: Anzahl | D43: =C43 -> Anzahl
A44: B_Fe2 | B44: Ferien- | C44: Ferien- | D44: Ferien-
A45: B_Fe3 | B45: tage | C45: tage | D45: tage
A46: B_Fei1 | B46: Anzahl | C46: Anzahl | D46: Anzahl
A47: B_Fei2 | B47: Feier- | C47: Feier- | D47: Feier-
A48: B_Fei3 | B48: tage | C48: tage | D48: tage
B49: 0
B50: 0
A51: B_11 | B51: 0
A52: B_12 | B52: Name Vorname | C52: Name Vorname | D52: =C52 -> Name Vorname
A53: B_13 | B53: 0
A54: B_21 | B54: anrechen- | C54: anrechen- | D54: =C54 -> anrechen-
A55: B_22 | B55: barer Std.- | C55: barer Std.- | D55: barer Std.-
A56: B_23 | B56: verdienst | C56: verdienst | D56: verdienst
A57: B_31 | B57: vertragliche | C57: vertragliche | D57: vertragliche
A58: B_32 | B58: wöchentl. | C58: wöchentl. | D58: wöchentl.
A59: B_33 | B59: Arbeitszeit | C59: Arbeitszeit | D59: Arbeitszeit
A60: B_41 | B60: Sollstunden | C60: Sollstunden | D60: Sollstunden
A61: B_42 | B61: Abrechnungs- | C61: Abrechnungs- | D61: Abrechnungs-
A62: B_43 | B62: periode | C62: periode | D62: periode
A63: B_51 | B63: 0
A64: B_52 | B64: Istzeit | C64: Istzeit | D64: =C64 -> Istzeit
A65: B_53 | B65: 0
A66: B_61 | B66: Bezahlte/ | C66: Bezahlte/ | D66: =C66 -> Bezahlte/
A67: B_62 | B67: =IF(KAE_SWE=1,C67,D67) -> unbezahlte | C67: unbezahlte | D67: unbezahlte
A68: B_63 | B68: Absenzen | C68: Absenzen | D68: Absenzen
A69: B_7 | B69: 7 (nur für Gleitzeit) | C69: 7 (nur für Gleitzeit) | D69: 7 (nur für Gleitzeit)
A70: B_7a1 | B70: Saldo Ende Periode | C70: Saldo Ende Periode | D70: Saldo Ende Periode
A71: B_7a2 | B71: vorher- | C71: vorher- | D71: vorher-
A72: B_7a3 | B72: gehende | C72: gehende | D72: gehende
A73: B_7b2 | B73: laufende | C73: laufende | D73: laufende
A74: B_7b3 | B74: 0
A75: B_7c1 | B75: Differenz | C75: Differenz | D75: =C75 -> Differenz
A76: B_7c2 | B76: 0
A77: B_7c3 | B77: 0
A78: B_81 | B78: Ausfallstd. | C78: Ausfallstd. | D78: Wetterbed.
A79: B_82 | B79: Kurzarbeit | C79: Kurzarbeit | D79: Ausfallstd.
A80: B_83 | B80: 0
A81: B_91 | B81: Saldo | C81: Saldo | D81: =C81 -> Saldo
A82: B_92 | B82: Mehrstd. | C82: Mehrstd. | D82: =C82 -> Mehrstd.
A83: B_93 | B83: Vormonat | C83: Vormonat | D83: =C83 -> Vormonat
A84: B_101 | B84: Saisonale | C84: Saisonale | D84: --
A85: B_102 | B85: Ausfall- | C85: Ausfall- | D85: --
A86: B_103 | B86: stunden | C86: stunden | D86: --
A87: B_111 | B87: Anrech. | C87: Anrech. | D87: =C87 -> Anrech.
A88: B_112 | B88: Ausfall- | C88: Ausfall- | D88: Ausfall-
A89: B_113 | B89: stunden | C89: stunden | D89: stunden
A90: B_121 | B90: Verdienst- | C90: Verdienst- | D90: Verdienst-
A91: B_122 | B91: ausfall | C91: ausfall | D91: ausfall
A92: B_123 | B92: 100% | C92: 100% | D92: 100%
A93: B_131 | B93: KAE gemäss | C93: KAE gemäss | D93: SWE gemäss
A94: B_132 | B94: Art. 42 ALVG | C94: Art. 42 ALVG | D94: Art. 51 ALVG
A95: B_133 | B95: 80% | C95: 80% | D95: =C95 -> 80%
A96: B_141 | B96: Abzug | C96: Abzug | D96: Abzug
A97: B_142 | B97: Karenzzeit | C97: Karenzzeit | D97: Karenzzeit
A98: B_143 | B98: 0 Tage | C98: =IF(KZ_V<> 1, KZ_V & " Tage", KZ_V & " Tag") -> 0 Tage | D98: 0 Tage
A99: B_151 | B99: =IF(KAE_SWE=1,C99,D99) -> Beantragte | C99: Beantragte | D99: Beantragte
A100: B_152 | B100: Vergütung | C100: Vergütung | D100: Vergütung
A101: B_153 | B101: KSE | C101: KSE | D101: SWE
B102: 0 | D102: =C102 -> 0
B103: 0 | D103: =C103 -> 0
A104: Lohnberechnung | B104: Lohnberechnung mit 261 Tagen | C104: ="Lohnberechnung mit " & StammJahrestage & " Tagen" -> Lohnberechnung mit 261 Tagen | D104: =C104 -> Lohnberechnung mit 261 Tagen
A105: AnzMA | B105: Anzahl berechtigter Mitarbeiter: | C105: Anzahl berechtigter Mitarbeiter:
A106: AnzMAbetr | B106: Anzahl betroffener Mitarbeiter: | C106: Anzahl betroffener Mitarbeiter: | D106: =C106 -> Anzahl betroffener Mitarbeiter:
A107: Ausfall | B107: Arbeitsausfall in Prozent: | C107: Arbeitsausfall in Prozent: | D107: Arbeitsausfall in Prozent:
A108: Anspruch | B108: Anspruch: | C108: Anspruch: | D108: Anspruch:
A109: maxVV | B109: Max. VV.: | C109: Max. VV.: | D109: Max. VV.:
A110: AHVIVEOALV | B110: AHV/IV/EO/ALV: | C110: AHV/IV/EO/ALV: | D110: AHV/IV/EO/ALV:
A111: Karenzzeit | B111: Karenzzeit: | C111: Karenzzeit: | D111: Karenzzeit:
A112: DurchschnittVorjahre | B112: Durchschnitt Vorjahre: | C112: Durchschnitt Vorjahre:
A113: RelativerMehrausfallTXT | B113: Relativer Mehrausfall: | C113: Relativer Mehrausfall:
B114: 0 | D114: =C114 -> 0
B115: 0 | D115: 0
A116: t_OpDeutsch | B116: allemand | C116: allemand | D116: allemand
A117: t_OpFranz | B117: français | C117: français | D117: français
A118: t_l_Firma | B118: Firma: | C118: Firma: | D118: Firma:
A119: t_l_BeginnEnde | B119: Beginn/Ende der Kurzarbeit: | C119: Beginn/Ende der Kurzarbeit: | D119: Beginn/Ende der Kurzarbeit:
A120: t_l_PLZORT | B120: PLZ und Ort: | C120: PLZ und Ort: | D120: PLZ und Ort:
A121: t_l_Sachbearbeiter | B121: Sachbearbeiter/in: | C121: Sachbearbeiter/in: | D121: Sachbearbeiter/in:
A122: t_l_Fon | B122: Telefon: | C122: Telefon: | D122: Telefon:
A123: t_l_Fax | B123: Telefax: | C123: Telefax: | D123: Telefax:
A124: t_l_Email | B124: E-Mail-Adresse: | C124: E-Mail-Adresse: | D124: E-Mail-Adresse:
A125: t_l_Zahlungsverbindung | B125: Zahlungsverbindung: | C125: Zahlungsverbindung: | D125: Zahlungsverbindung:
A126: t_l_BURNr | B126: LUR-Nr.: | C126: LUR-Nr.: | D126: LUR-Nr.:
A127: t_l_Betriebsabteilung | B127: Betrieb/Betriebsabteilung: | C127: Betrieb/Betriebsabteilung: | D127: Betrieb/Betriebsabteilung:
A128: t_l_Periode | B128: Abrechnungsperiode: | C128: Abrechnungsperiode: | D128: Abrechnungsperiode:
A129: t_cmdAbrechnung | B129: Abrechnung Kurzarbeit Dezember 2018 bearbeiten | C129: ="Abrechnung Kurzarbeit " & MonatVor(StammPeriode2,0, "MMMM YYYY") & " bearbeiten" -> Abrechnung Kurzarbeit Dezember 2018 bearbeiten | D129: ="Schlechtwetterabrechnung " & MonatVor(StammPeriode2,0, "MMMM YYYY") & " bearbeiten" -> Schlechtwetterabrechnung Dezember 2018 bearbeiten
A130: t_cmdSaison | B130: Saisonaler Arbeitsausfall | C130: Saisonaler Arbeitsausfall | D130: =C130 -> Saisonaler Arbeitsausfall
A131: t_cmdAbbrechen | B131: =IF(KAE_SWE=1,C131,D131) -> Abbrechen | C131: Abbrechen | D131: Abbrechen
A132: t_cmdTabellevergrössern | B132: Tabelle vergrössern | C132: Tabelle vergrössern | D132: Tabelle vergrössern
A133: t_obKAE | B133: Abrechnung von Kurzarbeitsentschädigung | C133: Abrechnung von Kurzarbeitsentschädigung | D133: Abrechnung von Kurzarbeitsentschädigung
A134: t_obSWE | B134: Abrechnung von Schlechtwetterentschädigung | C134: Abrechnung von Schlechtwetterentschädigung | D134: Abrechnung von Schlechtwetterentschädigung
A135: t_EA | B135: Entschädigungsart | C135: Entschädigungsart | D135: Entschädigungsart
A136: t_l_AHV | B136: Vergütung AHV/IV/EO/ALV: | C136: Vergütung AHV/IV/EO/ALV: | D136: Vergütung AHV/IV/EO/ALV:
A137: t_l_VVmax | B137: Maximal versicherter Monatsverdienst: | C137: Maximal versicherter Monatsverdienst: | D137: Maximal versicherter Monatsverdienst:
A138: t_l_Arbeitstage | B138: Anzahl Arbeitstage im Jahr: | C138: Anzahl Arbeitstage im Jahr: | D138: Anzahl Arbeitstage im Jahr:
A139: t_l_KarenzSWE | B139: Karenztage Schlechtwetter (Art. 49 ALVG): | C139: Karenztage Schlechtwetter (Art. 49 ALVG): | D139: Karenztage Schlechtwetter (Art. 49 ALVG):
A140: t_l_KarenzKAE | B140: Karenztage Kurzarbeit: | C140: Karenztage Kurzarbeit: | D140: Karenztage Kurzarbeit:
A141: t_l_AnspruchProzent | B141: Entschädigung in Prozent (Art. 42 Abs. 1 ALVG): | C141: Entschädigung in Prozent (Art. 42 Abs. 1 ALVG): | D141: Entschädigung in Prozent (Art. 42 Abs. 1 ALVG):
A142: t_l_Eingabfrist | B142: Eingabefrist (Art. 46 Abs. 1 ALVG): | C142: Eingabefrist (Art. 46 Abs. 1 ALVG): | D142: Eingabefrist (Art. 46 Abs. 1 ALVG):
B143: 0 | D143: 0
A144: t_cmdEBausblenden | B144: Erhebungsbogen ausblenden | C144: Erhebungsbogen ausblenden
A145: t_cmdStammdaten | B145: Stammdaten / Einstellungen / Periode / Saisonalität / Tabellengrösse / Entschädigungsart etc. | C145: Stammdaten / Einstellungen / Periode / Saisonalität / Tabellengrösse / Entschädigungsart etc. | D145: =C145 -> Stammdaten / Einstellungen / Periode / Saisonalität / Tabellengrösse / Entschädigungsart etc.
B146: 0
B147: 0
A148: t_e_titel | B148: Erhebungsbogen für die Ermittlung der saisonalen Ausfallstunden für die Abrechnungsperiode | C148: Erhebungsbogen für die Ermittlung der saisonalen Ausfallstunden für die Abrechnungsperiode
A149: t_e_titel_2 | B149: Dieses Formular ist nur auszufüllen, wenn das Amt für Volkwirtschaft in ihrem Entscheid bezüglich der Saisonalität einen Vorbehalt angebracht hat. Wenn das Amt für Volkwirtschaft in ihrem Entscheid bezüglich der Saisonalität einen Vorbehalt angebracht hat, müssen Sie sämtliche theoretisch bezugsberechtigte Mitarbeiter und MitarbeiterInnen auf der Abrechnung aufführen. | C149: Dieses Formular ist nur auszufüllen, wenn das Amt für Volkwirtschaft in ihrem Entscheid bezüglich der Saisonalität einen Vorbehalt angebracht hat. Wenn das Amt für Volkwirtschaft in ihrem Entscheid bezüglich der Saisonalität einen Vorbehalt angebracht hat, müssen Sie sämtliche theoretisch bezugsberechtigte Mitarbeiter und MitarbeiterInnen auf der Abrechnung aufführen.
A150: t_e_pvorjahr | B150: Zeitgleiche Periode des Vorjahres | C150: Zeitgleiche Periode des Vorjahres
A151: t_e_pvorjahr2 | B151: Zeitgleiche Periode des vorletzten Jahres | C151: Zeitgleiche Periode des vorletzten Jahres
A152: t_e_pvorjahr_u | B152: Prozentualer Arbeitsausfall in der Vergleichsperiode des Vorjahres: | C152: Prozentualer Arbeitsausfall in der Vergleichsperiode des Vorjahres:
A153: t_e_pvorjahr2_u | B153: Prozentualer Arbeitsausfall in der Vergleichsperiode des vorletzten Jahres: | C153: Prozentualer Arbeitsausfall in der Vergleichsperiode des vorletzten Jahres:
A154: t_e_pvorjahr_beide | B154: Durchschnittlicher Arbeitsausfall der beiden Vergleichsperioden: | C154: Durchschnittlicher Arbeitsausfall der beiden Vergleichsperioden:
A155: e_k61 | B155: Ausfall- | C155: Ausfall-
A156: e_k62 | B156: stunden | C156: stunden
B157: 0
B158: 0
A159: copyr | B159: lexaktuell ag, Zentrumsweg 1c, CH-6043 Adligenswil, info@lexaktuell.ch | Download der aktuellsten Version: http://www.llv.li/files/avw/kse.xlt | C159: =Adresse_ombruSOFT&", " & E_mail & " | Download der aktuellsten Version: http://www.llv.li/files/avw/kse.xlt" -> lexaktuell ag, Zentrumsweg 1c, CH-6043 Adligenswil, info@lexaktuell.ch | Download der aktuellsten Version: http://www.llv.li/files/avw/kse.xlt | D159: =C159 -> lexaktuell ag, Zentrumsweg 1c, CH-6043 Adligenswil, info@lexaktuell.ch | Download der aktuellsten Version: http://www.llv.li/files/avw/kse.xlt
B160: 0 | D160: 0
B161: 0 | D161: 0
A162: l_1 | B162: Wenn das Amt für Volkwirtschaft im Entscheid bezüglich Saisonalität einen Vorbehalt angebracht hat, muss der durchschnittliche prozentualen Arbeitsausfall der zeitgleichen Perioden der beiden Vorjahre mit dem 'Erhebungsbogen zur Ermittlung der saisonalen Ausfallstunden' ermittelt werden. Nur der den Durchschnitt der beiden Vorjahresperioden übersteigende Arbeitsausfall ist entschädigungsberechtigt. Wenn das Amt für Volkwirtschaft in ihrem Entscheid bezüglich der Saisonalität einen Vorbehalt angebracht hat, müssen Sie sämtliche theoretisch bezugsberechtigte Mitarbeiter und MitarbeiterInnen auf der Abrechnung aufführen. | C162: Wenn das Amt für Volkwirtschaft im Entscheid bezüglich Saisonalität einen Vorbehalt angebracht hat, muss der durchschnittliche prozentualen Arbeitsausfall der zeitgleichen Perioden der beiden Vorjahre mit dem 'Erhebungsbogen zur Ermittlung der saisonalen Ausfallstunden' ermittelt werden. Nur der den Durchschnitt der beiden Vorjahresperioden übersteigende Arbeitsausfall ist entschädigungsberechtigt. Wenn das Amt für Volkwirtschaft in ihrem Entscheid bezüglich der Saisonalität einen Vorbehalt angebracht hat, müssen Sie sämtliche theoretisch bezugsberechtigte Mitarbeiter und MitarbeiterInnen auf der Abrechnung aufführen. | D162: Wenn das Amt für Volkwirtschaft im Entscheid bezüglich Saisonalität einen Vorbehalt angebracht hat, muss der durchschnittliche prozentualen Arbeitsausfall der zeitgleichen Perioden der beiden Vorjahre mit dem 'Erhebungsbogen zur Ermittlung der saisonalen Ausfallstunden' ermittelt werden. Nur der den Durchschnitt der beiden Vorjahresperioden übersteigende Arbeitsausfall ist entschädigungsberechtigt. Wenn das Amt für Volkwirtschaft in ihrem Entscheid bezüglich der Saisonalität einen Vorbehalt angebracht hat, müssen Sie sämtliche theoretisch bezugsberechtigte Mitarbeiter und MitarbeiterInnen auf der Abrechnung aufführen.
A163: l_2 | B163: =IF(KAE_SWE=1,C163,D163) -> Sie können den Erhebungsbogen direkt in diesem Excelsheet ausfüllen. In der Abrechnung erfasste MitarbeiterInnen werden in den Erhebungsbogen übernommen, können aber gelöscht oder überschieben werden (zwischenzeitliche Änderung des Personalbestandes). Sie müssen sämtliche theoretisch bezugsberechtigte Mitarbeiter und MitarbeiterInnen sowohl auf der Abrechnung der aktuellen Abrechnungsperiode wie auch in den zeitgleichen Perioden der beiden Vorjahre aufführen. | C163: Sie können den Erhebungsbogen direkt in diesem Excelsheet ausfüllen. In der Abrechnung erfasste MitarbeiterInnen werden in den Erhebungsbogen übernommen, können aber gelöscht oder überschieben werden (zwischenzeitliche Änderung des Personalbestandes). Sie müssen sämtliche theoretisch bezugsberechtigte Mitarbeiter und MitarbeiterInnen sowohl auf der Abrechnung der aktuellen Abrechnungsperiode wie auch in den zeitgleichen Perioden der beiden Vorjahre aufführen. | D163: Sie können den Erhebungsbogen direkt in diesem Excelsheet ausfüllen. In der Abrechnung erfasste MitarbeiterInnen werden in den Erhebungsbogen übernommen, können aber gelöscht oder überschieben werden (zwischenzeitliche Änderung des Personalbestandes). Sie müssen sämtliche theoretisch bezugsberechtigte Mitarbeiter und MitarbeiterInnen sowohl auf der Abrechnung der aktuellen Abrechnungsperiode wie auch in den zeitgleichen Perioden der beiden Vorjahre aufführen.
A164: l_3 | B164: Die Aufteilung in saisonale und anrechenbare Ausfallstunden wird von diesem Excelsheet automatisch berechnet und in der Abrechnung berücksichtigt. | C164: Die Aufteilung in saisonale und anrechenbare Ausfallstunden wird von diesem Excelsheet automatisch berechnet und in der Abrechnung berücksichtigt. | D164: Die Aufteilung in saisonale und anrechenbare Ausfallstunden wird von diesem Excelsheet automatisch berechnet und in der Abrechnung berücksichtigt.
A165: l_4 | B165: Wenn in der zeitgleichen Perioden der Vorjahre Kurzarbeitsentschädigung abgerechnet worden ist, müsste der Erhebungsbogen nicht ausgefüllt werden, weil die benötigten Daten von den entsprechenden Abrechnungen der Vorjahre erhoben werden können. Damit die Saisonalität in der aktuellen Abrechnung trotzdem berücksichtigt wird, übertragen Sie die Saldi der entsprechenden Vorjahresabrechnung(en) in eine einzige Zeile des Erhebungsbogens in dieser Tabelle! In die Kollone 'Name Vorname' tragen Sie z.B. 'Saldi Vorjahre' ein! | C165: Wenn in der zeitgleichen Perioden der Vorjahre Kurzarbeitsentschädigung abgerechnet worden ist, müsste der Erhebungsbogen nicht ausgefüllt werden, weil die benötigten Daten von den entsprechenden Abrechnungen der Vorjahre erhoben werden können. Damit die Saisonalität in der aktuellen Abrechnung trotzdem berücksichtigt wird, übertragen Sie die Saldi der entsprechenden Vorjahresabrechnung(en) in eine einzige Zeile des Erhebungsbogens in dieser Tabelle! In die Kollone 'Name Vorname' tragen Sie z.B. 'Saldi Vorjahre' ein! | D165: Wenn in der zeitgleichen Perioden der Vorjahre Kurzarbeitsentschädigung abgerechnet worden ist, müsste der Erhebungsbogen nicht ausgefüllt werden, weil die benötigten Daten von den entsprechenden Abrechnungen der Vorjahre erhoben werden können. Damit die Saisonalität in der aktuellen Abrechnung trotzdem berücksichtigt wird, übertragen Sie die Saldi der entsprechenden Vorjahresabrechnung(en) in eine einzige Zeile des Erhebungsbogens in dieser Tabelle! In die Kollone 'Name Vorname' tragen Sie z.B. 'Saldi Vorjahre' ein!
A166: cmdAnzeigen | B166: Erhebungsbogen anzeigen/ausfüllen | C166: Erhebungsbogen anzeigen/ausfüllen | D166: Erhebungsbogen anzeigen/ausfüllen
A167: frmSACaption | B167: Erhebungsbogen für die Ermittlung der saisonalen Ausfallstunden | C167: Erhebungsbogen für die Ermittlung der saisonalen Ausfallstunden
A168: cmdAusblenden | B168: Saisonalität nicht berücksichtigen (kein Vorbehalt) | C168: Saisonalität nicht berücksichtigen (kein Vorbehalt) | D168: =C168 -> Saisonalität nicht berücksichtigen (kein Vorbehalt)
B169: 0 | D169: 0
A170: l_5 | B170: Wählen Sie hier die gewünschte Tabellengrösse. Sie können die Tabelle bis maximal 187 MitarbeiterInnnen vergrössern. Sie müssen für jede (anerkannte) Betriebsabteilung eine separate Tabelle verwenden. Die benötigte Tabellengrösse ist deshalb abhängig von der abzurechnenden Betriebsabteilung. | C170: Wählen Sie hier die gewünschte Tabellengrösse. Sie können die Tabelle bis maximal 187 MitarbeiterInnnen vergrössern. Sie müssen für jede (anerkannte) Betriebsabteilung eine separate Tabelle verwenden. Die benötigte Tabellengrösse ist deshalb abhängig von der abzurechnenden Betriebsabteilung. | D170: Wählen Sie hier die gewünschte Tabellengrösse. Sie können die Tabelle bis maximal 187 MitarbeiterInnnen vergrössern. Sie müssen für jede (anerkannte) Betriebsabteilung eine separate Tabelle verwenden. Die benötigte Tabellengrösse ist deshalb abhängig von der abzurechnenden Betriebsabteilung.
A171: l_6 | B171: Verunsichert Sie der Begriff 'Betriebsabteilung'? Dann verfügen Sie wahrscheinlich nicht über anerkannte Betriebsabteilungen. Betriebsabteilungen müssen von der zuständigen Amtsstelle anerkannt sein. Die Voranmeldung von Kurzarbeit müssen Sie für jede Betriebsabteilung separat einreichen. Sie erhalten auch für jede (anerkannte) Betriebsabteilung einen separaten Entscheid! Sie können somit nur bei vorliegen solcher Entscheide Betriebsabteilungen separat abrechnen. | C171: Verunsichert Sie der Begriff 'Betriebsabteilung'? Dann verfügen Sie wahrscheinlich nicht über anerkannte Betriebsabteilungen. Betriebsabteilungen müssen von der zuständigen Amtsstelle anerkannt sein. Die Voranmeldung von Kurzarbeit müssen Sie für jede Betriebsabteilung separat einreichen. Sie erhalten auch für jede (anerkannte) Betriebsabteilung einen separaten Entscheid! Sie können somit nur bei vorliegen solcher Entscheide Betriebsabteilungen separat abrechnen. | D171: Verunsichert Sie der Begriff 'Betriebsabteilung'? Dann verfügen Sie wahrscheinlich nicht über anerkannte Betriebsabteilungen. Betriebsabteilungen müssen von der zuständigen Amtsstelle anerkannt sein. Die Voranmeldung von Kurzarbeit müssen Sie für jede Betriebsabteilung separat einreichen. Sie erhalten auch für jede (anerkannte) Betriebsabteilung einen separaten Entscheid! Sie können somit nur bei vorliegen solcher Entscheide Betriebsabteilungen separat abrechnen.
A172: l_7 | B172: Sie können die Tabelle jederzeit, auch wenn Sie schon Daten erfasst haben, vergrössern. Eine einmal vergrösserte Tabelle können Sie jedoch nicht wieder verkleinern! Vergrössern Sie die Tabelle nur soweit nötig! | C172: Sie können die Tabelle jederzeit, auch wenn Sie schon Daten erfasst haben, vergrössern. Eine einmal vergrösserte Tabelle können Sie jedoch nicht wieder verkleinern! Vergrössern Sie die Tabelle nur soweit nötig! | D172: Sie können die Tabelle jederzeit, auch wenn Sie schon Daten erfasst haben, vergrössern. Eine einmal vergrösserte Tabelle können Sie jedoch nicht wieder verkleinern! Vergrössern Sie die Tabelle nur soweit nötig!
A173: op1 | B173: bis 27 MitarbeiterInnen | C173: bis 27 MitarbeiterInnen | D173: bis 27 MitarbeiterInnen
A174: op2 | B174: bis 59 MitarbeiterInnen | C174: bis 59 MitarbeiterInnen | D174: bis 59 MitarbeiterInnen
A175: op3 | B175: bis 91 MitarbeiterInnen | C175: bis 91 MitarbeiterInnen | D175: bis 91 MitarbeiterInnen
A176: op4 | B176: bis 123 MitarbeiterInnen | C176: bis 123 MitarbeiterInnen | D176: bis 123 MitarbeiterInnen
A177: op5 | B177: bis 155 MitarbeiterInnen | C177: bis 155 MitarbeiterInnen | D177: bis 155 MitarbeiterInnen
A178: op6 | B178: bis 187 MitarbeiterInnen | C178: bis 187 MitarbeiterInnen | D178: bis 187 MitarbeiterInnen
A179: cmdClose | B179: Abbrechen, Tabelle (vorläufig) nicht vergrössern... | C179: Abbrechen, Tabelle (vorläufig) nicht vergrössern... | D179: Abbrechen, Tabelle (vorläufig) nicht vergrössern...
A180: cmdOK | B180: OK | C180: OK | D180: OK
A181: frmTabellengrCaption | B181: Wählen Sie die gewünschte Tabellengrösse... | C181: Wählen Sie die gewünschte Tabellengrösse... | D181: Wählen Sie die gewünschte Tabellengrösse...
B182: 0 | D182: =C182 -> 0
A183: KAE_SWE_TEXT | B183: Kurzarbeitsentschädigung | C183: Kurzarbeitsentschädigung | D183: Schlechtwetterentschädigung
A184: Abrechnung | B184: Abrechnung | C184: Abrechnung | D184: Abrechnung
A185: Version | B185: Version | C185: Version | D185: Version
A186: StammMA | B186: Stammdaten MitarbeiterInnen Seite | C186: Stammdaten MitarbeiterInnen Seite | D186: Stammdaten MitarbeiterInnen Seite
A187: Seite | B187: Seite | C187: Seite | D187: Seite
A188: mne | C188: Mindestausfall nicht erreicht! | D188: Mindestausfall nicht erreicht!
A189: übertrag | B189: Übertrag | C189: Übertrag | D189: Übertrag
A190: up | B190: ungültige Periode | C190: ungültige Periode | D190: ungültige Periode
A191: wH | B191: Wenn Sie für diesen Betrieb oder für diese Betriebsabteilung mehr als eine Abrechnung erstellen müssen, sollten Sie jetzt nur die in der Regel gleichbleibenden Daten, d.h. die Lohndaten und ev. die Kolonne 3 ausfüllen und die Tabelle dann als Mustervorlage unter einem eindeutigen Namen speichern. Diese Vorlage können Sie dann für jede neue Abrechnungsperiode wieder verwenden, wobei Sie nur noch die Kolonnen 3 - 7 sowie Kolonne 9 ausfüllen müssen. Es lohnt sich für Sie! Sie werden nicht nochmals darauf hingewiesen! | C191: Wenn Sie für diesen Betrieb oder für diese Betriebsabteilung mehr als eine Abrechnung erstellen müssen, sollten Sie jetzt nur die in der Regel gleichbleibenden Daten, d.h. die Lohndaten und ev. die Kolonne 3 ausfüllen und die Tabelle dann als Mustervorlage unter einem eindeutigen Namen speichern. Diese Vorlage können Sie dann für jede neue Abrechnungsperiode wieder verwenden, wobei Sie nur noch die Kolonnen 3 - 7 sowie Kolonne 9 ausfüllen müssen. Es lohnt sich für Sie! Sie werden nicht nochmals darauf hingewiesen! | D191: Wenn Sie für diesen Betrieb oder für diese Betriebsabteilung mehr als eine Abrechnung erstellen müssen, sollten Sie jetzt nur die in der Regel gleichbleibenden Daten, d.h. die Lohndaten und ev. die Kolonne 3 ausfüllen und die Tabelle dann als Mustervorlage unter einem eindeutigen Namen speichern. Diese Vorlage können Sie dann für jede neue Abrechnungsperiode wieder verwenden, wobei Sie nur noch die Kolonnen 3 - 7 sowie Kolonne 9 ausfüllen müssen. Es lohnt sich für Sie! Sie werden nicht nochmals darauf hingewiesen!
A192: wHt | B192: Wichter Hinweis... | C192: Wichter Hinweis... | D192: Wichter Hinweis...
B193: 0 | D193: 0
B194: 0 | D194: 0

Sheet Diverses (hidden)
D1: =Sprache -> 0 | I1: v | J1: v | L1: v | M1: b
A2: KAE_SWE | B2: 1 | C2: Kurzarbeit = 1, Schlechtwetter = 2 | E2: =EDATUM2(TODAY(),F2) -> 2020-06-30 | F2: -5 | G2: =FormatDatum(E2) -> Juni 2020 | I2: =I32+1 -> 1 | J2: 5 | K2: 80 | L2: =K2/J2 -> 16 | M2: =K2/I2 -> 80
A3: KAE | B3: FALSE | E3: 2020-07-30 | F3: =F2+1 -> -4 | G3: =FormatDatum(E3) -> Juli 2020 | I3: =J2+1 -> 6 | J3: 27 | K3: 300 | L3: =K3/J3 -> 11.11111111 | M3: =K3/I3 -> 50
A4: SWE | B4: FALSE | E4: 2020-08-30 | F4: -3 | G4: =FormatDatum(E4) -> August 2020 | I4: 28 | J4: 59 | K4: 550 | L4: 9.322033898 | M4: 19.64285714
A5: KZ_V | B5: 0 | C5: Karenzzeit verwendet | E5: 2020-09-30 | F5: -2 | G5: September 2020 | I5: 60 | J5: 91 | K5: 700 | L5: 7.692307692 | M5: 11.66666667
A6: E_Mail | B6: info@lexaktuell.ch | E6: 2020-10-30 | F6: -1 | G6: Oktober 2020 | I6: 92 | J6: 123 | K6: 800 | L6: 6.504065041 | M6: 8.695652174
A7: www | B7: http://www.llv.li/files/avw/kse.xlt | E7: 2020-11-30 | F7: 0 | G7: November 2020 | I7: 124 | J7: 155 | K7: 900 | L7: 5.806451613 | M7: 7.258064516
A8: Adresse_ombruSOFT | B8: lexaktuell ag, Zentrumsweg 1c, CH-6043 Adligenswil | E8: 2020-12-30 | F8: 1 | G8: Dezember 2020 | I8: 156 | J8: 187 | K8: 1000 | L8: 5.347593583 | M8: 6.41025641
A9: Telefon | B9: ="+41 41 662 00 60" -> +41 41 662 00 60 | E9: 2021-01-30 | F9: =F8+1 -> 2 | G9: Januar 2021
A11: Version | B11: 2020-07-07 | C11: 2003-04-04
A13: Version2 | B13: ="Tabellenversion "&TEXT(B11,"MMMM JJJJ") -> Tabellenversion Juli 2020
A17: StammPeriode | B17: Dezember 2018 | C17: 2018-12-01
A18: StammSozialAbzug | B18: 6.25
A19: StammVV | B19: 10500
A20: StammJahrestage | B20: 261 | E20: 1. März 2002
A21: StammKarenzzeit_KAE | B21: 0
A22: StammKarenzzeit_SWE | B22: 2
A24: StammMindestausfall | B24: 2
B25: 80
A26: StammAnspruch_in_Prozent_KAE | B26: 80
A27: StammAnspruch_in_Prozent_SWE | B27: 80
A28: StammAnspruch_in_Prozent
B29: 60
A30: Entsch_Liechtenstein_in_Prozent
A32: StammFirma
A33: StammAdresse
A34: StammPLZOrt
A35: StammSachbearbeiterin
A36: StammTelefon
A37: StammTelefax | B37: IBAN Nummer
A38: StammZahlungsverbindung | B38: LURNUMMER
A39: StammBURNummer
A40: StammRegNummer | B40: ABTEILUNG
A41: StammBetriebsabteilung
A42: StammBeginnEnde
A43: StammEmail
B44: 0 | C44: 1 = Vorlage, Hinweis auf Vorlage kommt
A45: Vorlage | B45: 1
A46: AnzahlBlätter | B46: 0 | C46: 1 = Vorlage, Sprache wurde noch nicht automatisch gewählt, 0 = Sprache wurde schon mal automatisch geäwählt
A47: SpracheWahl | B47: 0 | C47: 1 = Ein, 0 = Aus (ausgeblendet)
A48: ErhebungsbogenZustand
B50: 1 | C50: =IF(IstReg>-1,"Lizenz ist in Ordnung") -> Lizenz ist in Ordnung
A51: IstReg
B52: 6 | C52: =LizenzartText(Lizenzart) -> 
A53: Lizenzart

Sheet Monatslohn
A1: Berechnung anrechenbarer Stundenverdienst im Monatslohn
A3: Der von der Arbeitslosenversicherung zu entschädigende anrechenbare Stundenverdienst wird gemäss den Richtlinien der schweizerischen Arbeitslosenversicherung berechnet. Diese Tabelle soll Ihnen helfen, die Berechnung des anrechenbaren Stundenverdienstes nachzuvollziehen. Sie müssen lediglich die grünen Eingabefelder ausfüllen.
A5: Vereinbarter Monatslohn | C5: 10000
A6: Schlechtwetterzulage in Prozent | C6: 0
A7: Schlechtwetterzulage auf Monatlohn | C7: =Monatslohn*C6 -> 0
A8: Monatslohn inkl. Schlechtwetterzulage | C8: =Monatslohn +C7 -> 10000
A9: Gratifikation pro Jahr | C9: 0
A10: Durchschnittliche wöchentliche Arbeitszeit | C10: 45
A11: Arbeitsstunden pro Arbeitstag | C11: =C10/5 -> 9
A12: Anzahl Monatslöhne (12, 13, 13.5 etc.) | C12: 12
A13: Anzahl Ferientage | C13: 25
A14: Anzahl Feiertage | C14: 5
A15: Brutto-Jahresarbeitstage | C15: =StammJahrestage -> 261
A16: Maximal Versicherter Verdienst | C16: 10500
A19: Berechnung
A20: ="Jahresarbeitszeit (" & C15 & " Tage x " & C11 & " Std.)" -> Jahresarbeitszeit (261 Tage x 9 Std.) | B20: = | C20: =C15*C11 -> 2349
A21: ="- Feiertage (" & C14 & " Feiertage x " & C11 & " Std. pro Tag)" -> - Feiertage (5 Feiertage x 9 Std. pro Tag) | B21: = | C21: =C14*C11 -> 45
A22: ="- Feiertage (" & C13 & " Ferientage x " & C11 & " Std. pro Tag)" -> - Feiertage (25 Ferientage x 9 Std. pro Tag) | B22: = | C22: =C13*C11 -> 225
A23: Effektiv zu leistende Arbeitsstunden pro Jahr | B23: = | C23: =C20-C21-C22 -> 2079
A25: ="Effektiv zu leistende Arbeitsstunden pro Monat (" & C23 & " Std. : 12 Monate)" -> Effektiv zu leistende Arbeitsstunden pro Monat (2079 Std. : 12 Monate) | B25: = | C25: =C23/12 -> 173.25
A27: Monatslohn inkl. Schlechtwetterzulage | B27: = | C27: =C8 -> 10000
A28: =" + 13 Monatslohn (("&C12&" Monate x 100 / 12 Monate) - 100 = " & ROUND((C12 * 100 / 12) - 100,2) &" %)" -> + 13 Monatslohn ((12 Monate x 100 / 12 Monate) - 100 = 0 %) | B28: = | C28: =(C12 * 100 / 12 - 100) * C27 / 100 -> 0
A30: ="Massgebender Monatsverdienst (CHF " & C27 & " + CHF " & ROUND(C28,2) & ")" -> Massgebender Monatsverdienst (CHF 10000 + CHF 0) | B30: = | C30: =SUM(C27:C29) -> 10000
A32: ="Anrechenbarer Stundenverdienst (CHF " & ROUND(C30,2) & " : " & ROUND(C25,2) & " Std.)" -> Anrechenbarer Stundenverdienst (CHF 10000 : 173.25 Std.) | B32: = | C32: =C30/C25 -> 57.72005772
A33: ="Gratifikation (CHF " & C9 & " : " & C23 & " Nettoarbeitsstunden)" -> Gratifikation (CHF 0 : 2079 Nettoarbeitsstunden) | B33: = | C33: =C9 / C23 -> 0
A34: Anrechenbarer Stundeverdienst ohne Berücksichtigung des maximal versicherten Verdienstes | B34: = | C34: =SUM(C32:C33) -> 57.72005772
A36: ="Maximal versicherter Stundenverdienst (CHF " & VVMax & " : " & ROUND(C25,2) & " effektiv zu leistende Arbeitsstunden pro Monat):" -> Maximal versicherter Stundenverdienst (CHF 10500 : 173.25 effektiv zu leistende Arbeitsstunden pro Monat): | B36: = | C36: =ROUND(VVMaxML / (NettoStdML / 12),2) -> 60.61
A38: =IF(C36<C34,"Anrechenbarer Stundenverdienst (gekürzt wegen Überschreitung des maximal versicherten Verdienstes):","Anrechenbarer Stundenverdienst (kleiner als maximal Versicherter Stundenverdienst, keine Kürzung):") -> Anrechenbarer Stundenverdienst (kleiner als maximal Versicherter Stundenverdienst, keine Kürzung): | B38: = | C38: =IF(C36<C34,C36,C34) -> 57.72005772

Sheet Stundenlohn
A1: Berechnung anrechenbarer Stundenverdienst im Stundenlohn
A3: Der von der Arbeitslosenversicherung zu entschädigende anrechenbare Stundenverdienst wird gemäss den Richtlinien der schweizerischen Arbeitslosenversicherung berechnet. Diese Tabelle soll Ihnen helfen, die Berechnung des anrechenbaren Stundenverdienstes nachzuvollziehen. Sie müssen lediglich die grünen Eingabefelder ausfüllen.
A5: Grundlohn Stunde | C5: 20
A6: Schlechtwetterzulage in Prozent | C6: 0
A7: Schlechtwetterzulage pro Stunde | C7: =StdLohn*C6 -> 0
A8: Grundlohn Stunde inkl. Schlechtwetterzulage | C8: =StdLohn+C7 -> 20
A9: Gratifikation | C9: 0
A10: Durchschnittliche wöchentliche Arbeitszeit | C10: 40
A11: Arbeitsstunden pro Arbeitstag | C11: =WöchentlicheAZ/5 -> 8
A12: Anzahl Monatslöhne (12, 13, 13.5 etc.) | C12: 12
A13: Anzahl Ferientage | C13: 20
A14: Anzahl Feiertage | C14: 5
A15: Brutto-Jahresarbeitstage | C15: =StammJahrestage -> 261
A16: Maximal Versicherter Verdienst | C16: 10500
A19: Berechnung
A20: ="Brutto-Jahresstunden (" & AnzJahresTage & " Tage à " & AnzStdTag & " Std.)" -> Brutto-Jahresstunden (261 Tage à 8 Std.) | B20: = | C20: =AnzJahresTage * AnzStdTag -> 2088
A21: ="- Feiertage (" & AnzFEI & " Feiertage x " & AnzStdTag & " Std.)" -> - Feiertage (5 Feiertage x 8 Std.) | B21: = | C21: =AnzFEI * AnzStdTag -> 40
A22: ="- Ferien (" & AnzFER & " Ferientage x " & AnzStdTag & " Std.)" -> - Ferien (20 Ferientage x 8 Std.) | B22: = | C22: =AnzFER *AnzStdTag -> 160
A23: Effektive Arbeitsstunden im Jahr (Nettoarbeitsstunden) | B23: = | C23: =C20-C21-C22 -> 1888
A24: Effektive Arbeitsstunden im Monat (Nettoarbeitsstunden) | B24: = | C24: =ROUND(EffektArbeitsStd/12,2) -> 157.33
A26: ="Jahresverdienst (" & StdJahr & " Std. x CHF " & StdLohnInklSWEZulage & ")" -> Jahresverdienst (2088 Std. x CHF 20) | B26: = | C26: =StdJahr * StdLohnInklSWEZulage -> 41760
A27: ="+ 13 Monatslohn (" & AnzMT - 12 & " x 1/12 von CHF " & Jahresverdienst & ")" -> + 13 Monatslohn (0 x 1/12 von CHF 41760) | B27: = | C27: =Jahresverdienst / 12 * (AnzMT - 12) -> 0
A28: Gesamtverdienst | B28: = | C28: =Jahresverdienst+C27 -> 41760
A29: ="Verdienst aus effekt. Arbeitsstunden (" & EffektArbeitsStd & " Std. x CHF " & StdLohnInklSWEZulage & ")" -> Verdienst aus effekt. Arbeitsstunden (1888 Std. x CHF 20) | B29: = | C29: =EffektArbeitsStd * StdLohnInklSWEZulage -> 37760
A30: Differenz (Entschädigung, für die nicht gearbeitet wurde) | B30: = | C30: =C28-C29 -> 4000
A31: ="Differenz in % (CHF " & C30 & " x 100 : CHF " & C29 & ")" -> Differenz in % (CHF 4000 x 100 : CHF 37760) | B31: = | C31: =(C30*100/C29)/100 -> 0.1059322034
A33: Vertraglich vereinbarter Stundenlohn | B33: = | C33: =StdLohnInklSWEZulage -> 20
A34: ="Aufrechnung bei " & AnzFEI & " Feiertagen, " & AnzFER / 4 & " Wochen Ferien und Anspruch auf insgesamt " & AnzMT & " Monatslöhne (insgesamt " & ROUND(100*C31,2) & "%)" -> Aufrechnung bei 5 Feiertagen, 5 Wochen Ferien und Anspruch auf insgesamt 12 Monatslöhne (insgesamt 10.59%) | B34: = | C34: =ROUND(C33*C31,2) -> 2.12
A35: ="Gratifikation (CHF " & Grati & " : " & NettoStd & " Nettoarbeitsstunden)" -> Gratifikation (CHF 0 : 1888 Nettoarbeitsstunden) | C35: =Grati / NettoStd -> 0
A36: Anrechenbarer Stundeverdienst ohne Berücksichtigung des maximal versicherten Verdienstes | B36: = | C36: =SUM(C33:C35) -> 22.12
A38: ="Maximal versicherter Stundenverdienst (CHF " & VVMax & " : " & C24 & " effektiv zu leistende Arbeitsstunden pro Monat):" -> Maximal versicherter Stundenverdienst (CHF 10500 : 157.33 effektiv zu leistende Arbeitsstunden pro Monat): | B38: = | C38: =ROUND(VVMax / (NettoStd / 12),2) -> 66.74
A40: =IF(C38<C36,"Anrechenbarer Stundenverdienst (gekürzt wegen Überschreitung des maximal versicherten Verdienstes):","Anrechenbarer Stundenverdienst (kleiner als maximal Versicherter Stundenverdienst, keine Kürzung):") -> Anrechenbarer Stundenverdienst (kleiner als maximal Versicherter Stundenverdienst, keine Kürzung): | B40: = | C40: =IF(C38<C36,C38,C36) -> 22.12
